Departmental Family,Entity,Date,Expense Type,Expense Area,Supplier,Transaction Number,Amount,Description
Department for Education,DEPARTMENT FOR EDUCATION,18/07/2017,Programme costs,Special Educational Needs and Disadvantage Group,ACHIEVEMENT FOR ALL 3AS LTD,1041003625,9714.28,Funding to deliver policies (excluding consultancy) paid to third parties via a service delivery contract
Department for Education,DEPARTMENT FOR EDUCATION,18/07/2017,Programme costs,Special Educational Needs and Disadvantage Group,ACHIEVEMENT FOR ALL 3AS LTD,1041003625,48571.4,Funding to deliver policies (excluding consultancy) paid to third parties via a service delivery contract
Department for Education,DEPARTMENT FOR EDUCATION,24/07/2017,Grants,Academies Regional Delivery Group,ACTIVATE LEARNING ACADEMY TRUST,1041004196,93263,Grants to local authorities and educational establishments
Department for Education,DEPARTMENT FOR EDUCATION,24/07/2017,Facilities,Property Asset Management Group,ACTIVE FACILITIES MANAGEMENT LTD,1041004156,17429.76,Property management
Department for Education,DEPARTMENT FOR EDUCATION,24/07/2017,Facilities,Property Asset Management Group,ACTIVE FACILITIES MANAGEMENT LTD,1041004156,18093.5,Property management
Department for Education,DEPARTMENT FOR EDUCATION,24/07/2017,Facilities,Property Asset Management Group,ACTIVE FACILITIES MANAGEMENT LTD,1041004156,87148.8,Property management
Department for Education,DEPARTMENT FOR EDUCATION,24/07/2017,Facilities,Property Asset Management Group,ACTIVE FACILITIES MANAGEMENT LTD,1041004156,90467.52,Property management
Department for Education,DEPARTMENT FOR EDUCATION,14/07/2017,Grants,Academies Regional Delivery Group,ALTRINCHAM COLLEGE OF ARTS,1041003399,205000,Grants to local authorities and educational establishments
Department for Education,DEPARTMENT FOR EDUCATION,27/07/2017,Professional Services Consultancy and Contingent Labour,Property Asset Management Group,ARCADIS LLP,1041004607,817.8,Fees / expenses of professionals such as auditors  accountants  lawyers  etc. engaged to provide advice or opinion on how to affect something
Department for Education,DEPARTMENT FOR EDUCATION,27/07/2017,Professional Services Consultancy and Contingent Labour,Property Asset Management Group,ARCADIS LLP,1041004607,2589.7,Fees / expenses of professionals such as auditors  accountants  lawyers  etc. engaged to provide advice or opinion on how to affect something
Department for Education,DEPARTMENT FOR EDUCATION,27/07/2017,Professional Services Consultancy and Contingent Labour,Property Asset Management Group,ARCADIS LLP,1041004607,3407.5,Fees / expenses of professionals such as auditors  accountants  lawyers  etc. engaged to provide advice or opinion on how to affect something
Department for Education,DEPARTMENT FOR EDUCATION,27/07/2017,Professional Services Consultancy and Contingent Labour,Property Asset Management Group,ARCADIS LLP,1041004607,4089,Fees / expenses of professionals such as auditors  accountants  lawyers  etc. engaged to provide advice or opinion on how to affect something
Department for Education,DEPARTMENT FOR EDUCATION,27/07/2017,Professional Services Consultancy and Contingent Labour,Property Asset Management Group,ARCADIS LLP,1041004607,12948.5,Fees / expenses of professionals such as auditors  accountants  lawyers  etc. engaged to provide advice or opinion on how to affect something
Department for Education,DEPARTMENT FOR EDUCATION,27/07/2017,Professional Services Consultancy and Contingent Labour,Property Asset Management Group,ARCADIS LLP,1041004607,17037.5,Fees / expenses of professionals such as auditors  accountants  lawyers  etc. engaged to provide advice or opinion on how to affect something
Department for Education,DEPARTMENT FOR EDUCATION,24/07/2017,Grants,Academies Regional Delivery Group,ARCHBISHOP OF YORK JUNIOR SCHOOL,1041004085,25000,Grants to local authorities and educational establishments
Department for Education,NATIONAL COLLEGE FOR TEACHING & LEADERSHIP,04/07/2017,Grants,Operations Directorate,ARK SCHOOLS,1041002312,38114.97,Grants to local authorities and educational establishments
Department for Education,DEPARTMENT FOR EDUCATION,20/07/2017,Grants,Academies Regional Delivery Group,ARK SCHOOLS,1041003947,70000,Grants to local authorities and educational establishments
Department for Education,NATIONAL COLLEGE FOR TEACHING & LEADERSHIP,04/07/2017,Grants,Operations Directorate,ASTRA SCITT,1041002338,28924.63,Grants to educational establishments or not for profit organisations including other businesses
Department for Education,DEPARTMENT FOR EDUCATION,28/07/2017,Programme costs,Early Years Group,ATKINS LTD,1041004626,15285,Funding to deliver policies (excluding consultancy) paid to third parties via a service delivery contract
Department for Education,DEPARTMENT FOR EDUCATION,28/07/2017,Programme costs,Early Years Group,ATKINS LTD,1041004626,16386.83,Funding to deliver policies (excluding consultancy) paid to third parties via a service delivery contract
Department for Education,DEPARTMENT FOR EDUCATION,28/07/2017,Programme costs,Early Years Group,ATKINS LTD,1041004626,76425,Funding to deliver policies (excluding consultancy) paid to third parties via a service delivery contract
Department for Education,DEPARTMENT FOR EDUCATION,28/07/2017,Programme costs,Early Years Group,ATKINS LTD,1041004626,81934.15,Funding to deliver policies (excluding consultancy) paid to third parties via a service delivery contract
Department for Education,DEPARTMENT FOR EDUCATION,31/07/2017,Grants,Free Schools Group,ATLANTIC CENTRE OF EXCELLENCE MAT,1041004730,30000,Grants to educational establishments or not for profit organisations including other businesses
Department for Education,DEPARTMENT FOR EDUCATION,27/07/2017,Professional Services Other,Digital and Technology Group,AUTOMATED INTELLIGENCE LTD,1041004551,21600,Shared corporate accounting services
Department for Education,DEPARTMENT FOR EDUCATION,27/07/2017,Professional Services Other,Digital and Technology Group,AUTOMATED INTELLIGENCE LTD,1041004551,32000,Shared corporate accounting services
Department for Education,NATIONAL COLLEGE FOR TEACHING & LEADERSHIP,19/07/2017,Grants,Delivery Directorate,AVENUE PRIMARY SCHOOL,1041003742,40000,Grants to local authorities and educational establishments
Department for Education,DEPARTMENT FOR EDUCATION,19/07/2017,Grants,Academies Regional Delivery Group,BARNHILL COMMUNITY HIGH SCHOOL,1041003827,70000,Grants to local authorities and educational establishments
Department for Education,NATIONAL COLLEGE FOR TEACHING & LEADERSHIP,04/07/2017,Grants,Operations Directorate,BARR BEACON SCITT,1041002337,25433.73,Grants to educational establishments or not for profit organisations including other businesses
Department for Education,DEPARTMENT FOR EDUCATION,17/07/2017,Grants,Free Schools Group,BARTON COURT GRAMMAR SCHOOL,1041003476,30000,Grants to educational establishments or not for profit organisations including other businesses
Department for Education,NATIONAL COLLEGE FOR TEACHING & LEADERSHIP,04/07/2017,Grants,Operations Directorate,BATH SPA UNIVERSITY,1041002162,202701.13,Grants to educational establishments or not for profit organisations including other businesses
Department for Education,DEPARTMENT FOR EDUCATION,06/07/2017,Grants,Academies Regional Delivery Group,BAYLIS COURT SCHOOL,1041002617,50000,Grants to local authorities and educational establishments
Department for Education,NATIONAL COLLEGE FOR TEACHING & LEADERSHIP,04/07/2017,Grants,Operations Directorate,BILLERICAY EDUCATIONAL CONSORTIUM,1041002161,38278.83,Grants to educational establishments or not for profit organisations including other businesses
Department for Education,NATIONAL COLLEGE FOR TEACHING & LEADERSHIP,04/07/2017,Grants,Operations Directorate,BIRMINGHAM CITY UNIVERSITY,1041002160,63079.84,Grants to educational establishments or not for profit organisations including other businesses
Department for Education,NATIONAL COLLEGE FOR TEACHING & LEADERSHIP,04/07/2017,Grants,Operations Directorate,BIRMINGHAM CITY UNIVERSITY,1041002160,204669.98,Grants to educational establishments or not for profit organisations including other businesses
Department for Education,NATIONAL COLLEGE FOR TEACHING & LEADERSHIP,04/07/2017,Grants,Operations Directorate,BISHOP GROSSETESTE COLLEGE,1041002138,33938.7,Grants to local authorities and educational establishments
Department for Education,NATIONAL COLLEGE FOR TEACHING & LEADERSHIP,04/07/2017,Grants,Operations Directorate,BISHOP GROSSETESTE COLLEGE,1041002138,107565.65,Grants to local authorities and educational establishments
Department for Education,DEPARTMENT FOR EDUCATION,20/07/2017,Professional Services Other,Further Education Group,BMG RESEARCH,1041003934,50000,Research and evaluation activities
Department for Education,NATIONAL COLLEGE FOR TEACHING & LEADERSHIP,04/07/2017,Grants,Operations Directorate,BOURNEMOUTH POOLE & DORSET EAST SECONDARY,1041002137,40679.72,Grants to educational establishments or not for profit organisations including other businesses
Department for Education,DEPARTMENT FOR EDUCATION,27/07/2017,Grants,Strategy and Social Mobility and Opportunity Areas Group,BRACKNELL FOREST BOROUGH COUNCIL,1041004606,48000,Grants to local authorities and educational establishments
Department for Education,NATIONAL COLLEGE FOR TEACHING & LEADERSHIP,04/07/2017,Grants,Operations Directorate,BRADFORD COLLEGE,1041002136,94610.62,Grants to local authorities and educational establishments
Department for Education,NATIONAL COLLEGE FOR TEACHING & LEADERSHIP,04/07/2017,Grants,Operations Directorate,BRADFORD COLLEGE,1041002136,125734.02,Grants to local authorities and educational establishments
Department for Education,DEPARTMENT FOR EDUCATION,31/07/2017,Grants,Academies Regional Delivery Group,BRIDGNORTH AREA SCHOOLS TRUST,1041004845,25000,Grants to local authorities and educational establishments
Department for Education,NATIONAL COLLEGE FOR TEACHING & LEADERSHIP,07/07/2017,Grants,Operations Directorate,BRITISH COUNCIL,1041002728,32404.29,Grants to local authorities and educational establishments
Department for Education,DEPARTMENT FOR EDUCATION,17/07/2017,Programme costs,Insight Resources and Transformation Group,BRITISH COUNCIL,10000182,225029,Funding to deliver policies (excluding consultancy) paid to third parties via a service delivery contract
Department for Education,DEPARTMENT FOR EDUCATION,17/07/2017,Programme costs,Insight Resources and Transformation Group,BRITISH COUNCIL,10000182,1125145,Funding to deliver policies (excluding consultancy) paid to third parties via a service delivery contract
Department for Education,DEPARTMENT FOR EDUCATION,07/07/2017,Programme costs,Special Educational Needs and Disadvantage Group,BRITISH DYSLEXIA ASSOCIATION,1041002721,0.06,Funding to deliver policies (excluding consultancy) paid to third parties via a service delivery contract
Department for Education,DEPARTMENT FOR EDUCATION,07/07/2017,Programme costs,Special Educational Needs and Disadvantage Group,BRITISH DYSLEXIA ASSOCIATION,1041002721,9520.41,Funding to deliver policies (excluding consultancy) paid to third parties via a service delivery contract
Department for Education,DEPARTMENT FOR EDUCATION,07/07/2017,Programme costs,Special Educational Needs and Disadvantage Group,BRITISH DYSLEXIA ASSOCIATION,1041002721,47602.01,Funding to deliver policies (excluding consultancy) paid to third parties via a service delivery contract
Department for Education,NATIONAL COLLEGE FOR TEACHING & LEADERSHIP,04/07/2017,Grants,Operations Directorate,BROMLEY SCHOOLS COLLEGIATE,1041002135,40252.26,Grants to local authorities and educational establishments
Department for Education,NATIONAL COLLEGE FOR TEACHING & LEADERSHIP,04/07/2017,Grants,Operations Directorate,BRUNEL UNIVERSITY,1041002111,136975.59,Grants to educational establishments or not for profit organisations including other businesses
Department for Education,DEPARTMENT FOR EDUCATION,05/07/2017,ICT,Digital and Technology Group,BT GLOBAL SERVICES,10000136,27018.83,Telecoms facilities and services - telecom rentals
Department for Education,DEPARTMENT FOR EDUCATION,25/07/2017,ICT,Digital and Technology Group,BT GLOBAL SERVICES,1041004327,32402.82,ICT Hardware
Department for Education,DEPARTMENT FOR EDUCATION,06/07/2017,ICT,Digital and Technology Group,BT GLOBAL SERVICES,10000138,114296.33,ICT Hardware
Department for Education,DEPARTMENT FOR EDUCATION,05/07/2017,ICT,Digital and Technology Group,BT GLOBAL SERVICES,10000136,135094.17,Telecoms facilities and services - telecom rentals
Department for Education,DEPARTMENT FOR EDUCATION,25/07/2017,ICT,Digital and Technology Group,BT GLOBAL SERVICES,1041004327,209497.25,ICT Hardware
Department for Education,DEPARTMENT FOR EDUCATION,14/07/2017,Professional Services Consultancy and Contingent Labour,Strategy and Social Mobility and Opportunity Areas Group,BURGES SALMON COMPANY LTD,1041003393,6807,Fees / expenses of professionals such as auditors  accountants  lawyers  etc. engaged to provide advice or opinion on how to affect something
Department for Education,DEPARTMENT FOR EDUCATION,14/07/2017,Professional Services Consultancy and Contingent Labour,Strategy and Social Mobility and Opportunity Areas Group,BURGES SALMON COMPANY LTD,1041003393,34035,Fees / expenses of professionals such as auditors  accountants  lawyers  etc. engaged to provide advice or opinion on how to affect something
Department for Education,DEPARTMENT FOR EDUCATION,24/07/2017,Grants,Academies Regional Delivery Group,BURNT MILL ACADEMY TRUST,1041004229,80000,Grants to local authorities and educational establishments
Department for Education,DEPARTMENT FOR EDUCATION,24/07/2017,Grants,Academies Regional Delivery Group,BURNT MILL ACADEMY TRUST,1041004229,80000,Grants to local authorities and educational establishments
Department for Education,DEPARTMENT FOR EDUCATION,12/07/2017,Grants,Free Schools Group,BURY ST EDMUNDS ACADEMY TRUST,1041003184,30000,Grants to educational establishments or not for profit organisations including other businesses
Department for Education,DEPARTMENT FOR EDUCATION,10/07/2017,ICT,Digital and Technology Group,BYTES SOFTWARE SERVICE,1041002870,4614,Partial payment for IT hardware / consumables
Department for Education,DEPARTMENT FOR EDUCATION,10/07/2017,ICT,Digital and Technology Group,BYTES SOFTWARE SERVICE,1041002870,4980,Partial payment for IT hardware / consumables
Department for Education,DEPARTMENT FOR EDUCATION,10/07/2017,ICT,Digital and Technology Group,BYTES SOFTWARE SERVICE,1041002870,18090,Partial payment for IT hardware / consumables
Department for Education,DEPARTMENT FOR EDUCATION,10/07/2017,ICT,Digital and Technology Group,BYTES SOFTWARE SERVICE,1041002870,23070,Partial payment for IT hardware / consumables
Department for Education,DEPARTMENT FOR EDUCATION,14/07/2017,Learning and Development,Social Care  Mobility and Equalities Directorate Support,CABINET OFFICE,1041003412,4313.04,Staff training and conferences including related travel costs
Department for Education,DEPARTMENT FOR EDUCATION,14/07/2017,Learning and Development,Social Care  Mobility and Equalities Directorate Support,CABINET OFFICE,1041003412,21565.22,Staff training and conferences including related travel costs
Department for Education,STANDARDS AND TESTING AGENCY,21/07/2017,Professional Services Consultancy and Contingent Labour,Test Operations Division,CADENCE PARTNERSHIP,1041004023,112728,Fees / expenses of professionals such as auditors  accountants  lawyers  etc. engaged to provide advice or opinion on how to affect something
Department for Education,DEPARTMENT FOR EDUCATION,19/07/2017,Professional Services Consultancy and Contingent Labour,Digital and Technology Group,CADENCE PARTNERSHIP,1041003753,151517.85,Advisory services including fees  travel and expenses
Department for Education,DEPARTMENT FOR EDUCATION,21/07/2017,Professional Services Consultancy and Contingent Labour,Digital and Technology Group,CADENCE PARTNERSHIP,1041004023,151517.85,Advisory services including fees  travel and expenses
Department for Education,DEPARTMENT FOR EDUCATION,21/07/2017,Professional Services Other,Data Group,CADENCE PARTNERSHIP LLP,1041004014,5693.8,Shared corporate accounting services
Department for Education,DEPARTMENT FOR EDUCATION,21/07/2017,Professional Services Other,Data Group,CADENCE PARTNERSHIP LLP,1041004014,6034.02,Shared corporate accounting services
Department for Education,STANDARDS AND TESTING AGENCY,24/07/2017,Professional Services Consultancy and Contingent Labour,Test Operations Division,CADENCE PARTNERSHIP LLP,1041004187,21975,Fees / expenses of professionals such as auditors  accountants  lawyers  etc. engaged to provide advice or opinion on how to affect something
Department for Education,DEPARTMENT FOR EDUCATION,21/07/2017,Professional Services Other,Data Group,CADENCE PARTNERSHIP LLP,1041004014,28469,Shared corporate accounting services
Department for Education,DEPARTMENT FOR EDUCATION,21/07/2017,Facilities,Digital and Technology Group,CADENCE PARTNERSHIP LLP,1041004014,28836,Maintenance  repair and cleaning including of equipment
Department for Education,DEPARTMENT FOR EDUCATION,21/07/2017,Professional Services Other,Data Group,CADENCE PARTNERSHIP LLP,1041004014,30170.1,Shared corporate accounting services
Department for Education,DEPARTMENT FOR EDUCATION,21/07/2017,Grants,Adoption and Children in Care Division,CAMBRIDGE EDUCATION,1041004046,2048437.39,Grants to educational establishments or not for profit organisations including other businesses
Department for Education,DEPARTMENT FOR EDUCATION,12/07/2017,Grants,System Reform Group,CAMBRIDGESHIRE COUNTY COUNCIL,1041003151,39717,Grants to local authorities and educational establishments
Department for Education,DEPARTMENT FOR EDUCATION,24/07/2017,Grants,Free Schools Group,CAMBRIDGESHIRE EDUCATIONAL TRUST,1041004139,30000,Grants to educational establishments or not for profit organisations including other businesses
Department for Education,NATIONAL COLLEGE FOR TEACHING & LEADERSHIP,04/07/2017,Grants,Operations Directorate,CANTERBURY CHRIST CHURCH UNIVERSITY,1041002110,263836.7,Grants to educational establishments or not for profit organisations including other businesses
Department for Education,NATIONAL COLLEGE FOR TEACHING & LEADERSHIP,04/07/2017,Grants,Operations Directorate,CANTERBURY CHRIST CHURCH UNIVERSITY,1041002110,299623.96,Grants to educational establishments or not for profit organisations including other businesses
Department for Education,DEPARTMENT FOR EDUCATION,14/07/2017,Professional Services Consultancy and Contingent Labour,Data Group,CAPGEMINI UK PLC,1041003409,5706,Costs related to temporary workers
Department for Education,DEPARTMENT FOR EDUCATION,06/07/2017,ICT,Digital and Technology Group,CAPGEMINI UK PLC,1041002626,23696,ICT Services
Department for Education,DEPARTMENT FOR EDUCATION,25/07/2017,Professional Services Other,Digital and Technology Group,CAPGEMINI UK PLC,1041004338,24750.5,Shared corporate accounting services
Department for Education,DEPARTMENT FOR EDUCATION,14/07/2017,Professional Services Consultancy and Contingent Labour,Data Group,CAPGEMINI UK PLC,1041003409,28530,Costs related to temporary workers
Department for Education,DEPARTMENT FOR EDUCATION,04/07/2017,ICT,Data Group,CAPGEMINI UK PLC,1041002116,70700,ICT Services
Department for Education,DEPARTMENT FOR EDUCATION,04/07/2017,ICT,Digital and Technology Group,CAPGEMINI UK PLC,1041002116,75678.52,ICT Services - hardware maintenance and support
Department for Education,DEPARTMENT FOR EDUCATION,20/07/2017,Programme costs,Teachers and Teaching Group,CAPITA BUSINESS SERVICES,1041003954,6568.63,Funding to deliver policies (excluding consultancy) paid to third parties via a service delivery contract
Department for Education,DEPARTMENT FOR EDUCATION,20/07/2017,Programme costs,Teachers and Teaching Group,CAPITA BUSINESS SERVICES,1041003954,9618.07,Funding to deliver policies (excluding consultancy) paid to third parties via a service delivery contract
Department for Education,DEPARTMENT FOR EDUCATION,27/07/2017,Programme costs,Teachers and Teaching Group,CAPITA BUSINESS SERVICES,1041004575,28323.87,Funding to deliver policies (excluding consultancy) paid to third parties via a service delivery contract
Department for Education,DEPARTMENT FOR EDUCATION,20/07/2017,Programme costs,Teachers and Teaching Group,CAPITA BUSINESS SERVICES,1041003954,32843.16,Funding to deliver policies (excluding consultancy) paid to third parties via a service delivery contract
Department for Education,DEPARTMENT FOR EDUCATION,20/07/2017,Programme costs,Teachers and Teaching Group,CAPITA BUSINESS SERVICES,1041003954,48090.35,Funding to deliver policies (excluding consultancy) paid to third parties via a service delivery contract
Department for Education,DEPARTMENT FOR EDUCATION,27/07/2017,Programme costs,Teachers and Teaching Group,CAPITA BUSINESS SERVICES,1041004575,141619.33,Funding to deliver policies (excluding consultancy) paid to third parties via a service delivery contract
Department for Education,DEPARTMENT FOR EDUCATION,20/07/2017,Programme costs,Teachers and Teaching Group,CAPITA BUSINESS SERVICES,1041003954,163464.33,Funding to deliver policies (excluding consultancy) paid to third parties via a service delivery contract
Department for Education,DEPARTMENT FOR EDUCATION,20/07/2017,Programme costs,Teachers and Teaching Group,CAPITA BUSINESS SERVICES,1041003954,817321.64,Funding to deliver policies (excluding consultancy) paid to third parties via a service delivery contract
Department for Education,NATIONAL COLLEGE FOR TEACHING & LEADERSHIP,17/07/2017,Communications,Delivery Directorate,CARAT,1041003560,-33502.85,Publicity  advertising  media advertising campaigns (excluding recruitment adverts)
Department for Education,NATIONAL COLLEGE FOR TEACHING & LEADERSHIP,17/07/2017,Communications,Delivery Directorate,CARAT,1041003560,-6694.26,Publicity  advertising  media advertising campaigns (excluding recruitment adverts)
Department for Education,NATIONAL COLLEGE FOR TEACHING & LEADERSHIP,10/07/2017,Communications,Operations Directorate,CARAT,1041002763,5755.02,Publicity  advertising  media advertising campaigns (excluding recruitment adverts)
Department for Education,NATIONAL COLLEGE FOR TEACHING & LEADERSHIP,17/07/2017,Communications,Operations Directorate,CARAT,1041003560,6796.79,Publicity  advertising  media advertising campaigns (excluding recruitment adverts)
Department for Education,NATIONAL COLLEGE FOR TEACHING & LEADERSHIP,17/07/2017,Communications,Operations Directorate,CARAT,1041003560,8951.82,Publicity  advertising  media advertising campaigns (excluding recruitment adverts)
Department for Education,NATIONAL COLLEGE FOR TEACHING & LEADERSHIP,10/07/2017,Communications,Operations Directorate,CARAT,1041002763,28801.34,Publicity  advertising  media advertising campaigns (excluding recruitment adverts)
Department for Education,NATIONAL COLLEGE FOR TEACHING & LEADERSHIP,17/07/2017,Communications,Operations Directorate,CARAT,1041003560,34014.46,Publicity  advertising  media advertising campaigns (excluding recruitment adverts)
Department for Education,NATIONAL COLLEGE FOR TEACHING & LEADERSHIP,17/07/2017,Communications,Operations Directorate,CARAT,1041003560,44801.28,Publicity  advertising  media advertising campaigns (excluding recruitment adverts)
Department for Education,DEPARTMENT FOR EDUCATION,10/07/2017,Grants,Academies Regional Delivery Group,CARLTON MINIOTT COMMUNITY PRIMARY SCHOOL,1041002834,25000,Grants to local authorities and educational establishments
Department for Education,NATIONAL COLLEGE FOR TEACHING & LEADERSHIP,04/07/2017,Grants,Operations Directorate,CARMEL TEACHER TRAINING PARTNERSHIP,1041002109,73237.74,Grants to educational establishments or not for profit organisations including other businesses
Department for Education,DEPARTMENT FOR EDUCATION,24/07/2017,Grants,Free Schools Group,CAROLINE CHISHOLM SCHOOL,1041004090,30000,Grants to educational establishments or not for profit organisations including other businesses
Department for Education,DEPARTMENT FOR EDUCATION,06/07/2017,Grants,Academies Regional Delivery Group,CAVENDISH LEARNING TRUST,1041002654,70000,Grants to educational establishments or not for profit organisations including other businesses
Department for Education,DEPARTMENT FOR EDUCATION,05/07/2017,ICT,Digital and Technology Group,CDW LTD,1041002507,7486.6,ICT Services
Department for Education,DEPARTMENT FOR EDUCATION,05/07/2017,ICT,Digital and Technology Group,CDW LTD,1041002507,37432.98,ICT Services
Department for Education,NATIONAL COLLEGE FOR TEACHING & LEADERSHIP,04/07/2017,Grants,Operations Directorate,CFBT THE DEEPINGS SCITT,1041002255,27239.1,Grants to educational establishments or not for profit organisations including other businesses
Department for Education,NATIONAL COLLEGE FOR TEACHING & LEADERSHIP,04/07/2017,Grants,Operations Directorate,CHEADLE HULME HIGH SCHOOL,1041002295,31275.65,Grants to local authorities and educational establishments
Department for Education,DEPARTMENT FOR EDUCATION,20/07/2017,Grants,Teachers and Teaching Group,CHEADLE HULME HIGH SCHOOL,1041003870,100875,Grants to local authorities and educational establishments
Department for Education,DEPARTMENT FOR EDUCATION,12/07/2017,Grants,Free Schools Group,CHILTERN LEARNING TRUST,1041003161,30000,Grants to educational establishments or not for profit organisations including other businesses
Department for Education,NATIONAL COLLEGE FOR TEACHING & LEADERSHIP,04/07/2017,Grants,Operations Directorate,CHILTERN TRAINING GROUP,1041002108,32700.51,Grants to educational establishments or not for profit organisations including other businesses
Department for Education,DEPARTMENT FOR EDUCATION,24/07/2017,Grants,Free Schools Group,CITY OF LONDON ACADEMIES TRUST,1041004146,57916,Grants to educational establishments or not for profit organisations including other businesses
Department for Education,DEPARTMENT FOR EDUCATION,20/07/2017,Grants,Academies Regional Delivery Group,CLEVEDON SCHOOL,1041003869,25000,Grants to local authorities and educational establishments
Department for Education,DEPARTMENT FOR EDUCATION,26/07/2017,Grants,Free Schools Group,COAST ACADEMIES,1041004471,30000,Grants to educational establishments or not for profit organisations including other businesses
Department for Education,NATIONAL COLLEGE FOR TEACHING & LEADERSHIP,04/07/2017,Grants,Operations Directorate,COLCHESTER TEACHER TRAINING CONSORTIUM,1041002253,63141.4,Grants to educational establishments or not for profit organisations including other businesses
Department for Education,DEPARTMENT FOR EDUCATION,05/07/2017,Grants,Teachers and Teaching Group,COLLEGE OF TEACHING LTD,1041002508,117000,Grants to local authorities and educational establishments
Department for Education,DEPARTMENT FOR EDUCATION,07/07/2017,ICT,Digital and Technology Group,COMPAREX UK LTD,1041002702,39285,ICT Software
Department for Education,DEPARTMENT FOR EDUCATION,07/07/2017,ICT,Digital and Technology Group,COMPAREX UK LTD,1041002702,196425,ICT Software
Department for Education,DEPARTMENT FOR EDUCATION,31/07/2017,Facilities,Digital and Technology Group,COMPUTACENTER (UK) LTD,1041004809,35152.95,Maintenance  repair and cleaning including of equipment
Department for Education,DEPARTMENT FOR EDUCATION,18/07/2017,Programme costs,Special Educational Needs and Disadvantage Group,CONTACT A FAMILY,1041003634,25000,Funding to deliver policies (excluding consultancy) paid to third parties via a service delivery contract
Department for Education,DEPARTMENT FOR EDUCATION,21/07/2017,Grants,Early Years Group,CONTACT A FAMILY,1041004073,53518.17,Grants to educational establishments or not for profit organisations including other businesses
Department for Education,DEPARTMENT FOR EDUCATION,18/07/2017,Programme costs,Special Educational Needs and Disadvantage Group,CONTACT A FAMILY,1041003634,125000,Funding to deliver policies (excluding consultancy) paid to third parties via a service delivery contract
Department for Education,DEPARTMENT FOR EDUCATION,06/07/2017,ICT,Ministerial and Public Communications Group,CONTENT SUPPORT SERVICES LTD,1041002657,17198.68,Networking systems
Department for Education,DEPARTMENT FOR EDUCATION,06/07/2017,ICT,Ministerial and Public Communications Group,CONTENT SUPPORT SERVICES LTD,1041002657,85993.4,Networking systems
Department for Education,DEPARTMENT FOR EDUCATION,31/07/2017,Grants,Academies Regional Delivery Group,CONYERS SCHOOL,1041004783,25000,Grants to local authorities and educational establishments
Department for Education,DEPARTMENT FOR EDUCATION,04/07/2017,Grants,Careers and Further Education Funding Group,COOPER GIBSON LTD,1041002130,23070,Provision of boarding activities - other costs
Department for Education,DEPARTMENT FOR EDUCATION,05/07/2017,Programme costs,Adoption and Children in Care Division,CORAM,1041002525,38558.25,Funding to deliver policies (excluding consultancy) paid to third parties via a service delivery contract
Department for Education,DEPARTMENT FOR EDUCATION,05/07/2017,Programme costs,Adoption and Children in Care Division,CORAM,1041002525,38558.25,Funding to deliver policies (excluding consultancy) paid to third parties via a service delivery contract
Department for Education,DEPARTMENT FOR EDUCATION,20/07/2017,Programme costs,Adoption and Children in Care Division,CORAM,1041003938,49611.42,Funding to deliver policies (excluding consultancy) paid to third parties via a service delivery contract
Department for Education,DEPARTMENT FOR EDUCATION,20/07/2017,Programme costs,Adoption and Children in Care Division,CORAM,1041003938,49611.42,Funding to deliver policies (excluding consultancy) paid to third parties via a service delivery contract
Department for Education,DEPARTMENT FOR EDUCATION,20/07/2017,Programme costs,Adoption and Children in Care Division,CORAM,1041003938,49611.42,Funding to deliver policies (excluding consultancy) paid to third parties via a service delivery contract
Department for Education,DEPARTMENT FOR EDUCATION,20/07/2017,Programme costs,Adoption and Children in Care Division,CORAM,1041003938,49611.42,Funding to deliver policies (excluding consultancy) paid to third parties via a service delivery contract
Department for Education,DEPARTMENT FOR EDUCATION,12/07/2017,Grants,System Reform Group,CORNWALL COUNCIL,1041003111,47300,Grants to local authorities and educational establishments
Department for Education,NATIONAL COLLEGE FOR TEACHING & LEADERSHIP,04/07/2017,Grants,Operations Directorate,CORNWALL SCITT,1041002132,61838.87,Grants to educational establishments or not for profit organisations including other businesses
Department for Education,DEPARTMENT FOR EDUCATION,20/07/2017,Professional Services Other,Special Educational Needs and Disadvantage Group,COUNCIL FOR DISABLED,1041003926,11480.8,Financial Services
Department for Education,DEPARTMENT FOR EDUCATION,14/07/2017,Programme costs,Special Educational Needs and Disadvantage Group,COUNCIL FOR DISABLED,1041003411,17416.5,Funding to deliver policies (excluding consultancy) paid to third parties via a service delivery contract
Department for Education,DEPARTMENT FOR EDUCATION,20/07/2017,Professional Services Other,Special Educational Needs and Disadvantage Group,COUNCIL FOR DISABLED,1041003926,57404,Financial Services
Department for Education,DEPARTMENT FOR EDUCATION,14/07/2017,Programme costs,Special Educational Needs and Disadvantage Group,COUNCIL FOR DISABLED,1041003411,87082.5,Funding to deliver policies (excluding consultancy) paid to third parties via a service delivery contract
Department for Education,DEPARTMENT FOR EDUCATION,17/07/2017,Grants,Free Schools Group,CROFTON SCHOOLS ACADEMY TRUST,1041003557,30000,Grants to educational establishments or not for profit organisations including other businesses
Department for Education,DEPARTMENT FOR EDUCATION,31/07/2017,Professional Services Consultancy and Contingent Labour,Property Asset Management Group,DAVITT JONES BOULD LTD OFFICE ACCOUNT,10000210,215000,Fees / expenses of professionals such as auditors  accountants  lawyers  etc. engaged to provide advice or opinion on how to affect something
Department for Education,DEPARTMENT FOR EDUCATION,26/07/2017,Professional Services Consultancy and Contingent Labour,Adoption and Children in Care Division,DELOITTE,1041004407,169151.41,Fees / expenses of professionals such as auditors  accountants  lawyers  etc. engaged to provide advice or opinion on how to affect something
Department for Education,DEPARTMENT FOR EDUCATION,13/07/2017,Professional Services Consultancy and Contingent Labour,Strategy and Social Mobility and Opportunity Areas Group,DELOITTE LLP,10000177,26806.94,Fees / expenses of professionals such as auditors  accountants  lawyers  etc. engaged to provide advice or opinion on how to affect something
Department for Education,DEPARTMENT FOR EDUCATION,13/07/2017,Professional Services Consultancy and Contingent Labour,Strategy and Social Mobility and Opportunity Areas Group,DELOITTE LLP,10000177,134034.72,Fees / expenses of professionals such as auditors  accountants  lawyers  etc. engaged to provide advice or opinion on how to affect something
Department for Education,NATIONAL COLLEGE FOR TEACHING & LEADERSHIP,04/07/2017,Grants,Operations Directorate,DENBIGH SCHOOL,1041002324,33797.06,Grants to local authorities and educational establishments
Department for Education,DEPARTMENT FOR EDUCATION,25/07/2017,Grants,Student Finance and Analysis Group,DEPARTMENT FOR THE ECONOMY,10000193,6511744,Current grant funding to other government departments for DfE's contribution to jointly funded programmes 
Department for Education,DEPARTMENT FOR EDUCATION,18/07/2017,Professional Services Other,Strategy and Social Mobility and Opportunity Areas Group,DEPARTMENT OF HEALTH,1041003636,5240,Financial Services
Department for Education,DEPARTMENT FOR EDUCATION,18/07/2017,Professional Services Other,Strategy and Social Mobility and Opportunity Areas Group,DEPARTMENT OF HEALTH,1041003636,26200,Financial Services
Department for Education,DEPARTMENT FOR EDUCATION,04/07/2017,Grants,Academies Regional Delivery Group,DERBY DIOCESAN ACADEMY TRUST,1041002076,70000,Grants to local authorities and educational establishments
Department for Education,DEPARTMENT FOR EDUCATION,12/07/2017,Grants,System Reform Group,DERBYSHIRE COUNTY COUNCIL,1041003007,56225,Grants to local authorities and educational establishments
Department for Education,DEPARTMENT FOR EDUCATION,06/07/2017,Grants,Academies Regional Delivery Group,DEVON COUNTY COUNCIL,1041002618,25000,Grants to local authorities and educational establishments
Department for Education,DEPARTMENT FOR EDUCATION,06/07/2017,Grants,Academies Regional Delivery Group,DEVON COUNTY COUNCIL,1041002618,25000,Grants to local authorities and educational establishments
Department for Education,DEPARTMENT FOR EDUCATION,06/07/2017,Grants,Academies Regional Delivery Group,DEVON COUNTY COUNCIL,1041002618,25000,Grants to local authorities and educational establishments
Department for Education,DEPARTMENT FOR EDUCATION,06/07/2017,Grants,Academies Regional Delivery Group,DEVON COUNTY COUNCIL,1041002618,25000,Grants to local authorities and educational establishments
Department for Education,DEPARTMENT FOR EDUCATION,06/07/2017,Grants,Academies Regional Delivery Group,DEVON COUNTY COUNCIL,1041002618,25000,Grants to local authorities and educational establishments
Department for Education,DEPARTMENT FOR EDUCATION,06/07/2017,Grants,Academies Regional Delivery Group,DEVON COUNTY COUNCIL,1041002618,25000,Grants to local authorities and educational establishments
Department for Education,DEPARTMENT FOR EDUCATION,06/07/2017,Grants,Academies Regional Delivery Group,DEVON COUNTY COUNCIL,1041002618,25000,Grants to local authorities and educational establishments
Department for Education,DEPARTMENT FOR EDUCATION,06/07/2017,Grants,Academies Regional Delivery Group,DEVON COUNTY COUNCIL,1041002618,25000,Grants to local authorities and educational establishments
Department for Education,DEPARTMENT FOR EDUCATION,06/07/2017,Grants,Academies Regional Delivery Group,DEVON COUNTY COUNCIL,1041002618,25000,Grants to local authorities and educational establishments
Department for Education,DEPARTMENT FOR EDUCATION,06/07/2017,Grants,Academies Regional Delivery Group,DEVON COUNTY COUNCIL,1041002618,25000,Grants to local authorities and educational establishments
Department for Education,DEPARTMENT FOR EDUCATION,06/07/2017,Grants,Academies Regional Delivery Group,DEVON COUNTY COUNCIL,1041002618,25000,Grants to local authorities and educational establishments
Department for Education,DEPARTMENT FOR EDUCATION,06/07/2017,Grants,Academies Regional Delivery Group,DEVON COUNTY COUNCIL,1041002618,25000,Grants to local authorities and educational establishments
Department for Education,DEPARTMENT FOR EDUCATION,06/07/2017,Grants,Academies Regional Delivery Group,DEVON COUNTY COUNCIL,1041002618,25000,Grants to local authorities and educational establishments
Department for Education,DEPARTMENT FOR EDUCATION,06/07/2017,Grants,Academies Regional Delivery Group,DEVON COUNTY COUNCIL,1041002618,25000,Grants to local authorities and educational establishments
Department for Education,DEPARTMENT FOR EDUCATION,12/07/2017,Grants,System Reform Group,DEVON COUNTY COUNCIL,1041003183,43642,Grants to local authorities and educational establishments
Department for Education,NATIONAL COLLEGE FOR TEACHING & LEADERSHIP,04/07/2017,Grants,Operations Directorate,DEYES HIGH SCHOOL,1041002300,37260.06,Grants to local authorities and educational establishments
Department for Education,DEPARTMENT FOR EDUCATION,12/07/2017,Grants,Special Educational Needs and Disadvantage Group,DIANA AWARD,1041003200,70000,Grants to educational establishments or not for profit organisations including other businesses
Department for Education,DEPARTMENT FOR EDUCATION,13/07/2017,ICT,Digital and Technology Group,DIGI2AL LTD,1041003292,181100,ICT Services
Department for Education,DEPARTMENT FOR EDUCATION,17/07/2017,Grants,Strategy and Social Mobility and Opportunity Areas Group,DONCASTER CHILDRENS SERVICES TRUST,1041003558,141320,Grants to educational establishments or not for profit organisations including other businesses
Department for Education,NATIONAL COLLEGE FOR TEACHING & LEADERSHIP,04/07/2017,Grants,Operations Directorate,DONCASTER MBC,1041002212,25148.76,Grants to educational establishments or not for profit organisations including other businesses
Department for Education,DEPARTMENT FOR EDUCATION,13/07/2017,Grants,Academies Regional Delivery Group,DORMERS WELLS HIGH SCHOOL,1041003253,25000,Grants to local authorities and educational establishments
Department for Education,DEPARTMENT FOR EDUCATION,13/07/2017,Grants,Academies Regional Delivery Group,DORMERS WELLS HIGH SCHOOL,1041003253,70000,Grants to local authorities and educational establishments
Department for Education,DEPARTMENT FOR EDUCATION,12/07/2017,Grants,System Reform Group,DORSET COUNTY COUNCIL,1041003205,39092,Grants to local authorities and educational establishments
Department for Education,DEPARTMENT FOR EDUCATION,12/07/2017,Grants,System Reform Group,DURHAM COUNTY COUNCIL,1041003192,80950,Grants to local authorities and educational establishments
Department for Education,NATIONAL COLLEGE FOR TEACHING & LEADERSHIP,04/07/2017,Grants,Delivery Directorate,E QUALITAS PROFESSIONAL SERVICES LTD,1041002086,95326.48,Grants to educational establishments or not for profit organisations including other businesses
Department for Education,DEPARTMENT FOR EDUCATION,12/07/2017,Grants,System Reform Group,EAST SUSSEX COUNTY COUNCIL,1041003013,46942,Grants to local authorities and educational establishments
Department for Education,DEPARTMENT FOR EDUCATION,31/07/2017,Grants,Academies Regional Delivery Group,EASTERN MULTI ACADEMY TRUST,1041004773,70000,Grants to local authorities and educational establishments
Department for Education,DEPARTMENT FOR EDUCATION,13/07/2017,Grants,Academies Regional Delivery Group,EBOR ACADEMY TRUST,1041003347,25000,Grants to local authorities and educational establishments
Department for Education,DEPARTMENT FOR EDUCATION,24/07/2017,Grants,Office of the Schools Commissioner Group,EDEN SCHOOLS ACADEMY TRUST,1041004083,31000,Grants to local authorities and educational establishments
Department for Education,DEPARTMENT FOR EDUCATION,26/07/2017,Energy and Fuels,Property Asset Management Group,EDF ENERGY,1041004420,14224.43,Electricity supply
Department for Education,DEPARTMENT FOR EDUCATION,26/07/2017,Energy and Fuels,Property Asset Management Group,EDF ENERGY,1041004420,71205.89,Electricity supply
Department for Education,NATIONAL COLLEGE FOR TEACHING & LEADERSHIP,04/07/2017,Grants,Higher Education Strategy and Policy Group,EDGE HILL UNIVERSITY,1041002141,42840,Grants to educational establishments or not for profit organisations including other businesses
Department for Education,NATIONAL COLLEGE FOR TEACHING & LEADERSHIP,04/07/2017,Grants,Operations Directorate,EDGE HILL UNIVERSITY,1041002141,62371.82,Grants to educational establishments or not for profit organisations including other businesses
Department for Education,NATIONAL COLLEGE FOR TEACHING & LEADERSHIP,04/07/2017,Grants,Operations Directorate,EDGE HILL UNIVERSITY,1041002141,486820.8,Grants to educational establishments or not for profit organisations including other businesses
Department for Education,DEPARTMENT FOR EDUCATION,21/07/2017,Programme costs,System Reform Group,EDUCATION & EMPLOYERS TASKFORCE,1041004000,13194.5,Funding to deliver policies (excluding consultancy) paid to third parties via a service delivery contract
Department for Education,DEPARTMENT FOR EDUCATION,21/07/2017,Programme costs,System Reform Group,EDUCATION & EMPLOYERS TASKFORCE,1041004000,65972.5,Funding to deliver policies (excluding consultancy) paid to third parties via a service delivery contract
Department for Education,DEPARTMENT FOR EDUCATION,27/07/2017,Programme costs,Accountability  Curriculum and Qualifications Group,EDUCATION DEVELOPMENT TRUST,1041004565,20866.55,Funding to deliver policies (excluding consultancy) paid to third parties via a service delivery contract
Department for Education,DEPARTMENT FOR EDUCATION,27/07/2017,Programme costs,Accountability  Curriculum and Qualifications Group,EDUCATION DEVELOPMENT TRUST,1041004565,104332.74,Funding to deliver policies (excluding consultancy) paid to third parties via a service delivery contract
Department for Education,DEPARTMENT FOR EDUCATION,20/07/2017,Grants,Academies Regional Delivery Group,EDUCATION LEARNING TRUST,1041003877,70000,Grants to educational establishments or not for profit organisations including other businesses
Department for Education,DEPARTMENT FOR EDUCATION,05/07/2017,ICT,Digital and Technology Group,EDUSERV,1041002586,-289122.55,ICT Services
Department for Education,DEPARTMENT FOR EDUCATION,27/07/2017,ICT,Digital and Technology Group,EDUSERV,1041004605,22500,ICT Services
Department for Education,DEPARTMENT FOR EDUCATION,27/07/2017,ICT,Digital and Technology Group,EDUSERV,1041004605,54534.2,ICT Services
Department for Education,DEPARTMENT FOR EDUCATION,27/07/2017,ICT,Digital and Technology Group,EDUSERV,1041004605,112500,ICT Services
Department for Education,DEPARTMENT FOR EDUCATION,27/07/2017,ICT,Digital and Technology Group,EDUSERV,1041004605,272671,ICT Services
Department for Education,DEPARTMENT FOR EDUCATION,05/07/2017,Facilities,Digital and Technology Group,EDUSERV,1041002586,289122.55,Maintenance  repair and cleaning including of equipment
Department for Education,DEPARTMENT FOR EDUCATION,05/07/2017,ICT,Digital and Technology Group,EDUSERV,1041002586,289122.55,ICT Services
Department for Education,DEPARTMENT FOR EDUCATION,06/07/2017,Grants,Academies Regional Delivery Group,EDWARD PAULING PRIMARY SCHOOL,1041002623,25000,Grants to local authorities and educational establishments
Department for Education,DEPARTMENT FOR EDUCATION,20/07/2017,Grants,Academies Regional Delivery Group,ELEVATE MULTI ACADEMY TRUST,1041003883,145000,Grants to local authorities and educational establishments
Department for Education,NATIONAL COLLEGE FOR TEACHING & LEADERSHIP,31/07/2017,Programme costs,Delivery Directorate,EMLC,1041004785,58471.95,Funding to external organisations to deliver policies (excluding consultancy)
Department for Education,NATIONAL COLLEGE FOR TEACHING & LEADERSHIP,31/07/2017,Programme costs,Delivery Directorate,EMLC,1041004785,59126.17,Funding to external organisations to deliver policies (excluding consultancy)
Department for Education,NATIONAL COLLEGE FOR TEACHING & LEADERSHIP,31/07/2017,Programme costs,Delivery Directorate,EMLC,1041004785,87170.77,Funding to external organisations to deliver policies (excluding consultancy)
Department for Education,NATIONAL COLLEGE FOR TEACHING & LEADERSHIP,31/07/2017,Programme costs,Delivery Directorate,EMLC,1041004785,99314.37,Funding to external organisations to deliver policies (excluding consultancy)
Department for Education,NATIONAL COLLEGE FOR TEACHING & LEADERSHIP,31/07/2017,Programme costs,Delivery Directorate,EMLC,1041004785,136936.07,Funding to external organisations to deliver policies (excluding consultancy)
Department for Education,DEPARTMENT FOR EDUCATION,13/07/2017,Grants,Academies Regional Delivery Group,ENDEAVOUR ACADEMY TRUST,1041003295,25000,Grants to local authorities and educational establishments
Department for Education,DEPARTMENT FOR EDUCATION,17/07/2017,Grants,Accountability  Curriculum and Qualifications Group,ENTHUSE CHARITABLE TRUST,1041003495,400371.97,Grants to educational establishments or not for profit organisations including other businesses
Department for Education,DEPARTMENT FOR EDUCATION,06/07/2017,Grants,Government Equalities Office,EQUALITY & HUMAN RIGHTS COMMISSION,30000042,901182,Current grants paid to organisations including arms length bodies and educational establishments
Department for Education,DEPARTMENT FOR EDUCATION,10/07/2017,Grants,Academies Regional Delivery Group,EQUALS TRUST,1041002837,25000,Grants to educational establishments or not for profit organisations including other businesses
Department for Education,DEPARTMENT FOR EDUCATION,13/07/2017,Office Solutions,Digital and Technology Group,ERGO COMPUTING UK LTD,1041003304,10,Office machines and equipment
Department for Education,DEPARTMENT FOR EDUCATION,13/07/2017,Office Solutions,Digital and Technology Group,ERGO COMPUTING UK LTD,1041003304,496,Office machines and equipment
Department for Education,DEPARTMENT FOR EDUCATION,13/07/2017,Office Solutions,Digital and Technology Group,ERGO COMPUTING UK LTD,1041003304,1148,Office machines and equipment
Department for Education,DEPARTMENT FOR EDUCATION,13/07/2017,Office Solutions,Digital and Technology Group,ERGO COMPUTING UK LTD,1041003304,3968,Office machines and equipment
Department for Education,DEPARTMENT FOR EDUCATION,13/07/2017,Office Solutions,Digital and Technology Group,ERGO COMPUTING UK LTD,1041003304,4243.4,Office machines and equipment
Department for Education,DEPARTMENT FOR EDUCATION,13/07/2017,Office Solutions,Digital and Technology Group,ERGO COMPUTING UK LTD,1041003304,15595,Office machines and equipment
Department for Education,NATIONAL COLLEGE FOR TEACHING & LEADERSHIP,04/07/2017,Grants,Operations Directorate,ESSEX COUNTY COUNCIL,1041002189,35763.95,Grants to local authorities and educational establishments
Department for Education,DEPARTMENT FOR EDUCATION,12/07/2017,Grants,System Reform Group,ESSEX COUNTY COUNCIL,1041003136,53550,Grants to local authorities and educational establishments
Department for Education,NATIONAL COLLEGE FOR TEACHING & LEADERSHIP,04/07/2017,Grants,Delivery Directorate,ESSEX PRY SCHOOLS TRAINING GROUP,1041002387,59587.95,Grants to local authorities and educational establishments
Department for Education,DEPARTMENT FOR EDUCATION,26/07/2017,ICT,Digital and Technology Group,ESYNERGY SOLUTIONS LTD,1041004506,96441.39,ICT Services
Department for Education,DEPARTMENT FOR EDUCATION,25/07/2017,Programme costs,Insight Resources and Transformation Group,EUROPEAN UNIVERSITY INSTITUTE,20000009,1989692.68,Funding to deliver policies (excluding consultancy) paid to third parties via a service delivery contract
Department for Education,DEPARTMENT FOR EDUCATION,19/07/2017,Grants,Academies Regional Delivery Group,FAIRFAX MULTI ACADEMY TRUST,1041003762,55000,Grants to local authorities and educational establishments
Department for Education,DEPARTMENT FOR EDUCATION,17/07/2017,Grants,Strategy and Social Mobility and Opportunity Areas Group,FAMILY MATTERS INSTITUTE,1041003486,43000,Grants to educational establishments or not for profit organisations including other businesses
Department for Education,DEPARTMENT FOR EDUCATION,24/07/2017,Grants,Academies Regional Delivery Group,FEATHERBY INFANT & NURSERY SCHOOL,1041004225,25000,Grants to local authorities and educational establishments
Department for Education,DEPARTMENT FOR EDUCATION,20/07/2017,Grants,Academies Regional Delivery Group,FERRYHILL BUSINESS ENTERPRISE COLLEGE,1041003879,25000,Grants to local authorities and educational establishments
Department for Education,DEPARTMENT FOR EDUCATION,12/07/2017,Personnel Related,Human Resources Group,FIDELITI LTD,1041003001,103500.11,Childcare voucher scheme for staff
Department for Education,DEPARTMENT FOR EDUCATION,11/07/2017,Loans and Funding,Student Finance and Analysis Group,FINANCE FOR HIGHER EDUCATION,10000167,422914.25,Debt sale subsidy payments for mortgage style loans sold in the late 1990s
Department for Education,DEPARTMENT FOR EDUCATION,31/07/2017,Grants,Academies Regional Delivery Group,FIRST FEDERATION TRUST,1041004741,70000,Grants to educational establishments or not for profit organisations including other businesses
Department for Education,NATIONAL COLLEGE FOR TEACHING & LEADERSHIP,19/07/2017,Grants,Delivery Directorate,FOREST WAY SCHOOL,1041003813,40000,Grants to local authorities and educational establishments
Department for Education,DEPARTMENT FOR EDUCATION,17/07/2017,Grants,Free Schools Group,FYLDE COAST ACADEMY TRUST,1041003468,100000,Grants to educational establishments or not for profit organisations including other businesses
Department for Education,NATIONAL COLLEGE FOR TEACHING & LEADERSHIP,04/07/2017,Grants,Operations Directorate,FYLDE COAST TEACHING SCHOOL,1041002418,27428.53,Grants to local authorities and educational establishments
Department for Education,DEPARTMENT FOR EDUCATION,31/07/2017,Programme costs,Government Equalities Office,G4S GOVERNMENT AND OUTSOURCING SERVICES UK LTD,1041004723,15170.61,Funding to deliver policies (excluding consultancy) paid to third parties via a service delivery contract
Department for Education,DEPARTMENT FOR EDUCATION,31/07/2017,Programme costs,Government Equalities Office,G4S GOVERNMENT AND OUTSOURCING SERVICES UK LTD,1041004723,75853.03,Funding to deliver policies (excluding consultancy) paid to third parties via a service delivery contract
Department for Education,DEPARTMENT FOR EDUCATION,05/07/2017,Professional Services Consultancy and Contingent Labour,Finance and Commercial Group,GALLAGHER BASSETT INTERNATIONAL LTD,1041002517,10249,Fees / expenses of professionals such as auditors  accountants  lawyers  etc. engaged to provide advice or opinion on how to affect something
Department for Education,DEPARTMENT FOR EDUCATION,05/07/2017,Professional Services Consultancy and Contingent Labour,Finance and Commercial Group,GALLAGHER BASSETT INTERNATIONAL LTD,1041002517,13457,Fees / expenses of professionals such as auditors  accountants  lawyers  etc. engaged to provide advice or opinion on how to affect something
Department for Education,DEPARTMENT FOR EDUCATION,05/07/2017,Professional Services Consultancy and Contingent Labour,Finance and Commercial Group,GALLAGHER BASSETT INTERNATIONAL LTD,1041002517,51245,Fees / expenses of professionals such as auditors  accountants  lawyers  etc. engaged to provide advice or opinion on how to affect something
Department for Education,DEPARTMENT FOR EDUCATION,05/07/2017,Professional Services Consultancy and Contingent Labour,Finance and Commercial Group,GALLAGHER BASSETT INTERNATIONAL LTD,1041002517,67285,Fees / expenses of professionals such as auditors  accountants  lawyers  etc. engaged to provide advice or opinion on how to affect something
Department for Education,NATIONAL COLLEGE FOR TEACHING & LEADERSHIP,04/07/2017,Grants,Operations Directorate,GEORGE SPENCER TRAINING SCHOOL,1041002084,25291.24,Grants to local authorities and educational establishments
Department for Education,DEPARTMENT FOR EDUCATION,27/07/2017,Grants,Strategy and Social Mobility and Opportunity Areas Group,GINGERBREAD,1041004571,57459,Grants to educational establishments or not for profit organisations including other businesses
Department for Education,DEPARTMENT FOR EDUCATION,12/07/2017,Grants,System Reform Group,GLOUCESTERSHIRE COUNTY COUNCIL,1041003140,33200,Grants to local authorities and educational establishments
Department for Education,NATIONAL COLLEGE FOR TEACHING & LEADERSHIP,04/07/2017,Grants,Operations Directorate,GLOUCESTERSHIRE ITE PARTNERSHIP,1041002187,62444.44,Grants to educational establishments or not for profit organisations including other businesses
Department for Education,DEPARTMENT FOR EDUCATION,20/07/2017,Grants,Academies Regional Delivery Group,GODMANCHESTER BRIDGE ACADEMY,1041003878,25000,Grants to local authorities and educational establishments
Department for Education,NATIONAL COLLEGE FOR TEACHING & LEADERSHIP,04/07/2017,Grants,Operations Directorate,GOLDSMITH COLLEGE,1041002083,155092.77,Grants to local authorities and educational establishments
Department for Education,NATIONAL COLLEGE FOR TEACHING & LEADERSHIP,26/07/2017,Grants,Operations Directorate,GOLDSMITH COLLEGE,1041004397,391000,Grants to local authorities and educational establishments
Department for Education,DEPARTMENT FOR EDUCATION,05/07/2017,Professional Services Other,Further Education Group,GOOD THINGS FOUNDATION,1041002497,125610.08,Professional Services - IT related
Department for Education,DEPARTMENT FOR EDUCATION,26/07/2017,Professional Services Other,Teachers and Teaching Group,GOVERNMENT ACTUARYS DEPARTMENT,1041004410,13146.81,Financial Services
Department for Education,DEPARTMENT FOR EDUCATION,26/07/2017,Professional Services Other,Teachers and Teaching Group,GOVERNMENT ACTUARYS DEPARTMENT,1041004410,65734.07,Financial Services
Department for Education,DEPARTMENT FOR EDUCATION,04/07/2017,Professional Services Consultancy and Contingent Labour,Finance and Commercial Group,GOVERNMENT ACTUARYS DEPARTMENT GAD,1041002350,5437.05,Fees / expenses of professionals such as auditors  accountants  lawyers  etc. engaged to provide advice or opinion on how to affect something
Department for Education,DEPARTMENT FOR EDUCATION,04/07/2017,Professional Services Consultancy and Contingent Labour,Finance and Commercial Group,GOVERNMENT ACTUARYS DEPARTMENT GAD,1041002350,27185.25,Fees / expenses of professionals such as auditors  accountants  lawyers  etc. engaged to provide advice or opinion on how to affect something
Department for Education,NATIONAL COLLEGE FOR TEACHING & LEADERSHIP,04/07/2017,Grants,Operations Directorate,GRAND UNION TRAINING PARTNERSHIP,1041002477,38996.61,Grants to educational establishments or not for profit organisations including other businesses
Department for Education,DEPARTMENT FOR EDUCATION,24/07/2017,Grants,Academies Regional Delivery Group,GREAT SANKEY HIGH SCHOOL TS ACCOUNT,1041004218,25000,Grants to local authorities and educational establishments
Department for Education,DEPARTMENT FOR EDUCATION,24/07/2017,Grants,Academies Regional Delivery Group,GREAT SANKEY HIGH SCHOOL TS ACCOUNT,1041004218,25000,Grants to local authorities and educational establishments
Department for Education,DEPARTMENT FOR EDUCATION,24/07/2017,Grants,Academies Regional Delivery Group,GREAT SANKEY HIGH SCHOOL TS ACCOUNT,1041004218,25000,Grants to local authorities and educational establishments
Department for Education,DEPARTMENT FOR EDUCATION,24/07/2017,Grants,Academies Regional Delivery Group,GREAT SANKEY HIGH SCHOOL TS ACCOUNT,1041004218,25000,Grants to local authorities and educational establishments
Department for Education,DEPARTMENT FOR EDUCATION,24/07/2017,Grants,Academies Regional Delivery Group,GREAT SANKEY HIGH SCHOOL TS ACCOUNT,1041004218,25000,Grants to local authorities and educational establishments
Department for Education,DEPARTMENT FOR EDUCATION,24/07/2017,Grants,Academies Regional Delivery Group,GREAT SANKEY HIGH SCHOOL TS ACCOUNT,1041004218,25000,Grants to local authorities and educational establishments
Department for Education,DEPARTMENT FOR EDUCATION,24/07/2017,Facilities,Property Asset Management Group,GVA GRIMLEY LTD,1041004227,493828.18,Business rates
Department for Education,DEPARTMENT FOR EDUCATION,24/07/2017,Facilities,Property Asset Management Group,GVA GRIMLEY LTD DCLG,1041004176,373663,Business rates
Department for Education,DEPARTMENT FOR EDUCATION,14/07/2017,Grants,Academies Regional Delivery Group,HALES VALLEY TRUST,1041003442,70000,Grants to educational establishments or not for profit organisations including other businesses
Department for Education,DEPARTMENT FOR EDUCATION,14/07/2017,Grants,Academies Regional Delivery Group,HALES VALLEY TRUST,1041003442,90000,Grants to educational establishments or not for profit organisations including other businesses
Department for Education,DEPARTMENT FOR EDUCATION,10/07/2017,Grants,Academies Regional Delivery Group,HALLSVILLE PRIMARY SCHOOL,1041002811,25000,Grants to local authorities and educational establishments
Department for Education,DEPARTMENT FOR EDUCATION,05/07/2017,Grants,Adoption and Children in Care Division,HAMPSHIRE COUNTY COUNCIL,1041002593,27750.74,Grants to local authorities and educational establishments
Department for Education,DEPARTMENT FOR EDUCATION,12/07/2017,Grants,System Reform Group,HAMPSHIRE COUNTY COUNCIL,1041003189,35167,Grants to local authorities and educational establishments
Department for Education,DEPARTMENT FOR EDUCATION,12/07/2017,Grants,Strategy and Social Mobility and Opportunity Areas Group,HAMPSHIRE COUNTY COUNCIL,1041003046,48000,Grants to local authorities and educational establishments
Department for Education,NATIONAL COLLEGE FOR TEACHING & LEADERSHIP,04/07/2017,Grants,Operations Directorate,HARRIS CITY ACADEMY,1041002207,57520,Grants to local authorities and educational establishments
Department for Education,DEPARTMENT FOR EDUCATION,14/07/2017,Grants,Free Schools Group,HARRIS FEDERATION,1041003395,30000,Grants to educational establishments or not for profit organisations including other businesses
Department for Education,DEPARTMENT FOR EDUCATION,14/07/2017,Grants,Free Schools Group,HARRIS FEDERATION,1041003395,30000,Grants to educational establishments or not for profit organisations including other businesses
Department for Education,DEPARTMENT FOR EDUCATION,14/07/2017,Grants,Free Schools Group,HARRIS FEDERATION,1041003395,30000,Grants to educational establishments or not for profit organisations including other businesses
Department for Education,DEPARTMENT FOR EDUCATION,14/07/2017,Grants,Free Schools Group,HARRIS FEDERATION,1041003395,30000,Grants to educational establishments or not for profit organisations including other businesses
Department for Education,DEPARTMENT FOR EDUCATION,24/07/2017,Grants,Free Schools Group,HARRIS FEDERATION,1041004221,30000,Grants to educational establishments or not for profit organisations including other businesses
Department for Education,DEPARTMENT FOR EDUCATION,24/07/2017,Grants,Free Schools Group,HARRIS FEDERATION,1041004221,30000,Grants to educational establishments or not for profit organisations including other businesses
Department for Education,DEPARTMENT FOR EDUCATION,24/07/2017,Grants,Free Schools Group,HARRIS FEDERATION,1041004221,30000,Grants to educational establishments or not for profit organisations including other businesses
Department for Education,DEPARTMENT FOR EDUCATION,06/07/2017,Grants,Adoption and Children in Care Division,HARTLEPOOL BOROUGH COUNCIL,1041002628,66272,Grants to local authorities and educational establishments
Department for Education,DEPARTMENT FOR EDUCATION,14/07/2017,Grants,Academies Regional Delivery Group,HARTSBOURNE PRIMARY SCHOOL,1041003397,25000,Grants to local authorities and educational establishments
Department for Education,NATIONAL COLLEGE FOR TEACHING & LEADERSHIP,04/07/2017,Grants,Operations Directorate,HAVERING BEACON PARTNERSHIP,1041002476,31278.53,Grants to educational establishments or not for profit organisations including other businesses
Department for Education,NATIONAL COLLEGE FOR TEACHING & LEADERSHIP,04/07/2017,Grants,Operations Directorate,HAYBRIDGE ALLIANCE SCITT,1041002334,34690.73,Grants to educational establishments or not for profit organisations including other businesses
Department for Education,DEPARTMENT FOR EDUCATION,19/07/2017,Grants,Academies Regional Delivery Group,HEARTS ACADEMY TRUST,1041003797,45000,Grants to local authorities and educational establishments
Department for Education,DEPARTMENT FOR EDUCATION,06/07/2017,Grants,Academies Regional Delivery Group,HENLEY PRIMARY SCHOOL,1041002636,25000,Grants to local authorities and educational establishments
Department for Education,NATIONAL COLLEGE FOR TEACHING & LEADERSHIP,04/07/2017,Grants,Operations Directorate,HIBERNIA COLLEGE UK,1041002097,69300.23,Grants to local authorities and educational establishments
Department for Education,NATIONAL COLLEGE FOR TEACHING & LEADERSHIP,04/07/2017,Grants,Operations Directorate,HIBERNIA COLLEGE UK,1041002097,1277232,Grants to local authorities and educational establishments
Department for Education,DEPARTMENT FOR EDUCATION,10/07/2017,Grants,Academies Regional Delivery Group,HIGH STORRS SCHOOL,1041002769,25000,Grants to local authorities and educational establishments
Department for Education,DEPARTMENT FOR EDUCATION,04/07/2017,Grants,Academies Regional Delivery Group,HIGHBURY PRIMARY ACADEMY,1041002433,25000,Grants to local authorities and educational establishments
Department for Education,DEPARTMENT FOR EDUCATION,20/07/2017,Grants,Higher Education Strategy and Policy Group,HIGHER EDUCATION FUNDING COUNCIL,30000049,282000000,Grants to local authorities and educational establishments
Department for Education,DEPARTMENT FOR EDUCATION,20/07/2017,Grants,Early Years Group,HM REVENUE & CUSTOMS,1041003941,100000,Current grant funding to other government departments for DfE's contribution to jointly funded programmes 
Department for Education,DEPARTMENT FOR EDUCATION,27/07/2017,Personnel Related,Human Resources Group,HM REVENUE & CUSTOMS,1041004570,165672,Recruitment costs
Department for Education,DEPARTMENT FOR EDUCATION,18/07/2017,Professional Services Other,Special Educational Needs and Disadvantage Group,HMCTS HM COURTS & TRIBUNALS SERVICE,1041003606,46460,Financial Services
Department for Education,DEPARTMENT FOR EDUCATION,18/07/2017,Professional Services Other,Special Educational Needs and Disadvantage Group,HMCTS HM COURTS & TRIBUNALS SERVICE,1041003606,89200,Financial Services
Department for Education,DEPARTMENT FOR EDUCATION,18/07/2017,Professional Services Other,Special Educational Needs and Disadvantage Group,HMCTS HM COURTS & TRIBUNALS SERVICE,1041003606,110208,Financial Services
Department for Education,DEPARTMENT FOR EDUCATION,26/07/2017,Grants,Academies Regional Delivery Group,HOBART HIGH SCHOOL,1041004470,70000,Grants to local authorities and educational establishments
Department for Education,DEPARTMENT FOR EDUCATION,04/07/2017,Grants,Academies Regional Delivery Group,HOLMESDALE COMMUNITY INFANT SCHOOL,1041002461,25000,Grants to local authorities and educational establishments
Department for Education,NATIONAL COLLEGE FOR TEACHING & LEADERSHIP,04/07/2017,Professional Services Other,Delivery Directorate,HOME OFFICE,1041002165,26278.94,Financial Services
Department for Education,DEPARTMENT FOR EDUCATION,11/07/2017,Loans and Funding,Student Finance and Analysis Group,HONOURS TRUSTEES LTD,10000166,849010.84,Debt sale subsidy payments for mortgage style loans sold in the late 1990s
Department for Education,DEPARTMENT FOR EDUCATION,24/07/2017,Grants,Free Schools Group,HOWARD OF EFFINGHAM SCHOOL,1041004111,30000,Grants to educational establishments or not for profit organisations including other businesses
Department for Education,DEPARTMENT FOR EDUCATION,13/07/2017,Programme costs,Special Educational Needs and Disadvantage Group,I CAN,1041003327,162350,Funding to deliver policies (excluding consultancy) paid to third parties via a service delivery contract
Department for Education,DEPARTMENT FOR EDUCATION,28/07/2017,Professional Services Other,Further Education Group,IFF RESEARCH LTD,1041004703,90000,Research and evaluation activities
Department for Education,DEPARTMENT FOR EDUCATION,27/07/2017,Professional Services Other,Strategic Analysis and Research Group,IFF RESEARCH LTD,1041004567,91312.5,Research and evaluation activities
Department for Education,NATIONAL COLLEGE FOR TEACHING & LEADERSHIP,18/07/2017,Travel,Delivery Directorate,ILUNION TURISMO RESPONSIBLE SL,20000006,27909.41,Staff business travel including air  coach  ferry  rail  taxi and car hire
Department for Education,DEPARTMENT FOR EDUCATION,31/07/2017,Grants,Academies Regional Delivery Group,INCLUSIVE SCHOOLS TRUST,1041004835,70000,Grants to local authorities and educational establishments
Department for Education,DEPARTMENT FOR EDUCATION,18/07/2017,Personnel Related,Human Resources Group,INLAND REVENUE,1041003637,95043,Apprenticeship Levy
Department for Education,DEPARTMENT FOR EDUCATION,04/07/2017,ICT,Digital and Technology Group,INSIGHT DIRECT UK LIMITED,1041002134,92340,ICT Software
Department for Education,DEPARTMENT FOR EDUCATION,04/07/2017,ICT,Digital and Technology Group,INSIGHT DIRECT UK LIMITED,1041002134,154560,ICT Software
Department for Education,DEPARTMENT FOR EDUCATION,04/07/2017,ICT,Digital and Technology Group,INSIGHT DIRECT UK LIMITED,1041002134,307140,ICT Software
Department for Education,DEPARTMENT FOR EDUCATION,26/07/2017,ICT,Digital and Technology Group,INSIGHT DIRECT UK LTD,1041004403,20245.11,ICT Software
Department for Education,DEPARTMENT FOR EDUCATION,05/07/2017,ICT,Digital and Technology Group,INSIGHT DIRECT UK LTD,1041002583,29996.56,ICT Software
Department for Education,DEPARTMENT FOR EDUCATION,26/07/2017,ICT,Digital and Technology Group,INSIGHT DIRECT UK LTD,1041004403,101225.55,ICT Software
Department for Education,DEPARTMENT FOR EDUCATION,05/07/2017,ICT,Digital and Technology Group,INSIGHT DIRECT UK LTD,1041002583,149982.8,ICT Software
Department for Education,DEPARTMENT FOR EDUCATION,12/07/2017,Grants,Early Years Group,INSTITUTE OF WELLBEING LTD,1041003021,32439.43,Grants to educational establishments or not for profit organisations including other businesses
Department for Education,DEPARTMENT FOR EDUCATION,12/07/2017,Grants,Early Years Group,INSTITUTE OF WELLBEING LTD,1041003021,32703.5,Grants to educational establishments or not for profit organisations including other businesses
Department for Education,DEPARTMENT FOR EDUCATION,26/07/2017,Facilities,Property Asset Management Group,INTERSERVE FACILITIES MANAGEMENT LTD,1041004380,4859.03,Property management
Department for Education,DEPARTMENT FOR EDUCATION,06/07/2017,Facilities,Property Asset Management Group,INTERSERVE FACILITIES MANAGEMENT LTD,1041002675,5983.77,Property management
Department for Education,DEPARTMENT FOR EDUCATION,06/07/2017,Facilities,Property Asset Management Group,INTERSERVE FACILITIES MANAGEMENT LTD,1041002675,9392.48,Property management
Department for Education,DEPARTMENT FOR EDUCATION,06/07/2017,Facilities,Property Asset Management Group,INTERSERVE FACILITIES MANAGEMENT LTD,1041002675,11377.4,Property management
Department for Education,DEPARTMENT FOR EDUCATION,26/07/2017,Facilities,Property Asset Management Group,INTERSERVE FACILITIES MANAGEMENT LTD,1041004380,12498.09,Property management
Department for Education,DEPARTMENT FOR EDUCATION,26/07/2017,Facilities,Property Asset Management Group,INTERSERVE FACILITIES MANAGEMENT LTD,1041004399,19464.12,Property management
Department for Education,DEPARTMENT FOR EDUCATION,26/07/2017,Facilities,Property Asset Management Group,INTERSERVE FACILITIES MANAGEMENT LTD,1041004399,19888.21,Property management
Department for Education,DEPARTMENT FOR EDUCATION,26/07/2017,Facilities,Property Asset Management Group,INTERSERVE FACILITIES MANAGEMENT LTD,1041004380,21105.45,Property management
Department for Education,DEPARTMENT FOR EDUCATION,26/07/2017,Facilities,Property Asset Management Group,INTERSERVE FACILITIES MANAGEMENT LTD,1041004380,24295.17,Property management
Department for Education,DEPARTMENT FOR EDUCATION,26/07/2017,Facilities,Property Asset Management Group,INTERSERVE FACILITIES MANAGEMENT LTD,1041004399,26445.93,Property management
Department for Education,DEPARTMENT FOR EDUCATION,06/07/2017,Facilities,Property Asset Management Group,INTERSERVE FACILITIES MANAGEMENT LTD,1041002675,29918.87,Property management
Department for Education,DEPARTMENT FOR EDUCATION,26/07/2017,Facilities,Property Asset Management Group,INTERSERVE FACILITIES MANAGEMENT LTD,1041004380,34797.31,Property management
Department for Education,DEPARTMENT FOR EDUCATION,06/07/2017,Facilities,Property Asset Management Group,INTERSERVE FACILITIES MANAGEMENT LTD,1041002675,46962.39,Property management
Department for Education,DEPARTMENT FOR EDUCATION,26/07/2017,Facilities,Property Asset Management Group,INTERSERVE FACILITIES MANAGEMENT LTD,1041004380,48842.92,Property management
Department for Education,DEPARTMENT FOR EDUCATION,06/07/2017,Facilities,Property Asset Management Group,INTERSERVE FACILITIES MANAGEMENT LTD,1041002675,56886.98,Property management
Department for Education,DEPARTMENT FOR EDUCATION,26/07/2017,Facilities,Property Asset Management Group,INTERSERVE FACILITIES MANAGEMENT LTD,1041004380,62490.44,Property management
Department for Education,DEPARTMENT FOR EDUCATION,26/07/2017,Facilities,Property Asset Management Group,INTERSERVE FACILITIES MANAGEMENT LTD,1041004399,97320.62,Property management
Department for Education,DEPARTMENT FOR EDUCATION,26/07/2017,Facilities,Property Asset Management Group,INTERSERVE FACILITIES MANAGEMENT LTD,1041004399,99441.07,Property management
Department for Education,DEPARTMENT FOR EDUCATION,21/07/2017,Facilities,Property Asset Management Group,INTERSERVE FACILITIES MANAGEMENT LTD,1041004037,102365.7,Property management
Department for Education,DEPARTMENT FOR EDUCATION,26/07/2017,Facilities,Property Asset Management Group,INTERSERVE FACILITIES MANAGEMENT LTD,1041004380,105527.25,Property management
Department for Education,DEPARTMENT FOR EDUCATION,26/07/2017,Facilities,Property Asset Management Group,INTERSERVE FACILITIES MANAGEMENT LTD,1041004399,132229.63,Property management
Department for Education,DEPARTMENT FOR EDUCATION,26/07/2017,Facilities,Property Asset Management Group,INTERSERVE FACILITIES MANAGEMENT LTD,1041004380,173986.56,Property management
Department for Education,DEPARTMENT FOR EDUCATION,26/07/2017,Facilities,Property Asset Management Group,INTERSERVE FACILITIES MANAGEMENT LTD,1041004380,244214.62,Property management
Department for Education,DEPARTMENT FOR EDUCATION,14/07/2017,Programme costs,Accountability  Curriculum and Qualifications Group,IOP INSTITUTE OF PHYSICS,1041003391,155451.17,Funding to deliver policies (excluding consultancy) paid to third parties via a service delivery contract
Department for Education,DEPARTMENT FOR EDUCATION,20/07/2017,Programme costs,Accountability  Curriculum and Qualifications Group,IOP INSTITUTE OF PHYSICS,1041003944,165968.6,Funding to deliver policies (excluding consultancy) paid to third parties via a service delivery contract
Department for Education,DEPARTMENT FOR EDUCATION,04/07/2017,Professional Services Other,Further Education Group,IPSOS MORI,1041002389,21028.4,Financial Services
Department for Education,DEPARTMENT FOR EDUCATION,06/07/2017,Professional Services Other,Further Education Group,IPSOS MORI,1041002662,50000,Research and evaluation activities
Department for Education,DEPARTMENT FOR EDUCATION,04/07/2017,Professional Services Other,Further Education Group,IPSOS MORI,1041002389,105142,Financial Services
Department for Education,DEPARTMENT FOR EDUCATION,07/07/2017,Professional Services Other,Early Years Group,IPSOS MORI,1041002692,242744,Research and evaluation activities
Department for Education,DEPARTMENT FOR EDUCATION,14/07/2017,Grants,Further Education Group,JISC LTD,1041003464,1458000,Grants to educational establishments or not for profit organisations including other businesses
Department for Education,DEPARTMENT FOR EDUCATION,24/07/2017,Grants,Academies Regional Delivery Group,JOHN CLARE PRIMARY SCHOOL,1041004223,25000,Grants to local authorities and educational establishments
Department for Education,DEPARTMENT FOR EDUCATION,20/07/2017,Grants,Academies Regional Delivery Group,JOHN OF ROLLESTON PRIMARY SCHOOL,1041003874,25000,Grants to local authorities and educational establishments
Department for Education,DEPARTMENT FOR EDUCATION,24/07/2017,Grants,Free Schools Group,JOHN TAYLOR HIGH SCHOOL,1041004103,30000,Grants to educational establishments or not for profit organisations including other businesses
Department for Education,DEPARTMENT FOR EDUCATION,06/07/2017,Facilities,Property Asset Management Group,JONES LANG LASALLE LTD,1041002642,24566.5,Rent
Department for Education,NATIONAL COLLEGE FOR TEACHING & LEADERSHIP,04/07/2017,Grants,Operations Directorate,KENT & MEDWAY TRAINING,1041002181,93185.65,Grants to educational establishments or not for profit organisations including other businesses
Department for Education,DEPARTMENT FOR EDUCATION,25/07/2017,Grants,Strategy and Social Mobility and Opportunity Areas Group,KENT COUNTY COUNCIL,1041004345,48000,Grants to local authorities and educational establishments
Department for Education,DEPARTMENT FOR EDUCATION,12/07/2017,Grants,System Reform Group,KENT COUNTY COUNCIL,1041003120,102100,Grants to local authorities and educational establishments
Department for Education,DEPARTMENT FOR EDUCATION,31/07/2017,Grants,Academies Regional Delivery Group,KING EDWARD VII SCHOOL,1041004802,25000,Grants to local authorities and educational establishments
Department for Education,NATIONAL COLLEGE FOR TEACHING & LEADERSHIP,04/07/2017,Grants,Operations Directorate,KINGS COLLEGE GUILDFORD,1041002473,285081.47,Grants to local authorities and educational establishments
Department for Education,DEPARTMENT FOR EDUCATION,24/07/2017,Grants,Academies Regional Delivery Group,KINGS GROUP ACADEMIES,1041004144,25000,Grants to local authorities and educational establishments
Department for Education,DEPARTMENT FOR EDUCATION,24/07/2017,Grants,Academies Regional Delivery Group,KINGS GROUP ACADEMIES,1041004144,25000,Grants to local authorities and educational establishments
Department for Education,DEPARTMENT FOR EDUCATION,20/07/2017,Grants,Academies Regional Delivery Group,KINGSBRIDGE EDUCATIONAL TRUST,1041003882,25000,Grants to educational establishments or not for profit organisations including other businesses
Department for Education,NATIONAL COLLEGE FOR TEACHING & LEADERSHIP,04/07/2017,Grants,Operations Directorate,KINGSBRIDGE EIP SCITT,1041002441,25672.77,Grants to educational establishments or not for profit organisations including other businesses
Department for Education,NATIONAL COLLEGE FOR TEACHING & LEADERSHIP,04/07/2017,Grants,Delivery Directorate,KINGSTON UNIVERSITY,1041002131,27370,Grants to educational establishments or not for profit organisations including other businesses
Department for Education,NATIONAL COLLEGE FOR TEACHING & LEADERSHIP,04/07/2017,Grants,Operations Directorate,KINGSTON UNIVERSITY,1041002131,128770.06,Grants to educational establishments or not for profit organisations including other businesses
Department for Education,DEPARTMENT FOR EDUCATION,13/07/2017,ICT,Digital and Technology Group,KYKLOUD,1041003305,4345,ICT Software
Department for Education,DEPARTMENT FOR EDUCATION,13/07/2017,ICT,Digital and Technology Group,KYKLOUD,1041003305,21725,ICT Software
Department for Education,DEPARTMENT FOR EDUCATION,12/07/2017,Grants,System Reform Group,LANCASHIRE COUNTY COUNCIL,1041003108,54350,Grants to local authorities and educational establishments
Department for Education,STANDARDS AND TESTING AGENCY,31/07/2017,Professional Services Consultancy and Contingent Labour,Test Development Division,LEARNDIRECT LTD,1041004737,254814.95,Fees / expenses of professionals such as auditors  accountants  lawyers  etc. engaged to provide advice or opinion on how to affect something
Department for Education,DEPARTMENT FOR EDUCATION,24/07/2017,Grants,Academies Regional Delivery Group,LEARNERS TRUST,1041004164,42500,Grants to educational establishments or not for profit organisations including other businesses
Department for Education,DEPARTMENT FOR EDUCATION,24/07/2017,Grants,Free Schools Group,LEARNING WITHOUT LIMITS ACADEMY TRUST,1041004154,30000,Grants to educational establishments or not for profit organisations including other businesses
Department for Education,NATIONAL COLLEGE FOR TEACHING & LEADERSHIP,04/07/2017,Grants,Operations Directorate,LEEDS BECKETT UNIVERSITY,1041002325,46308.47,Grants to educational establishments or not for profit organisations including other businesses
Department for Education,NATIONAL COLLEGE FOR TEACHING & LEADERSHIP,04/07/2017,Grants,Operations Directorate,LEEDS CITY COUNCIL,1041002186,29897.4,Grants to local authorities and educational establishments
Department for Education,NATIONAL COLLEGE FOR TEACHING & LEADERSHIP,04/07/2017,Grants,Operations Directorate,LEEDS TRINITY UNIVERSITY COLLEGE,1041002185,208306.89,Grants to local authorities and educational establishments
Department for Education,DEPARTMENT FOR EDUCATION,12/07/2017,Grants,System Reform Group,LEICESTERSHIRE COUNTY COUNCIL,1041003028,30700,Grants to local authorities and educational establishments
Department for Education,NATIONAL COLLEGE FOR TEACHING & LEADERSHIP,04/07/2017,Grants,Operations Directorate,LEICESTERSHIRE SECONDARY SCITT,1041002365,38988.49,Grants to educational establishments or not for profit organisations including other businesses
Department for Education,DEPARTMENT FOR EDUCATION,12/07/2017,Grants,System Reform Group,LINCOLNSHIRE COUNTY COUNCIL,1041003143,53367,Grants to local authorities and educational establishments
Department for Education,NATIONAL COLLEGE FOR TEACHING & LEADERSHIP,04/07/2017,Grants,Operations Directorate,LINCOLNSHIRE TEACHING SCHOOL ALLIANCE,1041002177,39565.31,Grants to local authorities and educational establishments
Department for Education,DEPARTMENT FOR EDUCATION,06/07/2017,Grants,Adoption and Children in Care Division,LIVERPOOL CITY COUNCIL,1041002637,127547.2,Grants to local authorities and educational establishments
Department for Education,NATIONAL COLLEGE FOR TEACHING & LEADERSHIP,04/07/2017,Grants,Operations Directorate,LIVERPOOL HOPE UNIVERSITY,1041002451,269645.31,Grants to educational establishments or not for profit organisations including other businesses
Department for Education,NATIONAL COLLEGE FOR TEACHING & LEADERSHIP,04/07/2017,Grants,Operations Directorate,LIVERPOOL JOHN MOORES UNIVERSITY,1041002353,253153,Grants to educational establishments or not for profit organisations including other businesses
Department for Education,DEPARTMENT FOR EDUCATION,27/07/2017,Grants,Strategy and Social Mobility and Opportunity Areas Group,LONDON BOROUGH OF REDBRIDGE,1041004618,48000,Grants to local authorities / other establishments within aggregate external funding or aggregate exchequer grant
Department for Education,NATIONAL COLLEGE FOR TEACHING & LEADERSHIP,04/07/2017,Grants,Operations Directorate,LONDON METROPOLITAN UNIVERSITY,1041002168,167279.21,Grants to educational establishments or not for profit organisations including other businesses
Department for Education,NATIONAL COLLEGE FOR TEACHING & LEADERSHIP,04/07/2017,Grants,Operations Directorate,LOUGHBOROUGH UNIVERSITY ENTERPRISE LTD,1041002218,46714.69,Grants to educational establishments or not for profit organisations including other businesses
Department for Education,DEPARTMENT FOR EDUCATION,31/07/2017,Grants,Academies Regional Delivery Group,LOXFORD SCHOOL TRUST,1041004746,125000,Grants to local authorities and educational establishments
Department for Education,DEPARTMENT FOR EDUCATION,04/07/2017,Professional Services Consultancy and Contingent Labour,Property Asset Management Group,MACE LTD,1041002235,145109,Estates management services
Department for Education,DEPARTMENT FOR EDUCATION,17/07/2017,Professional Services Consultancy and Contingent Labour,Property Asset Management Group,MACE LTD,1041003561,168823,Estates management services
Department for Education,NATIONAL COLLEGE FOR TEACHING & LEADERSHIP,04/07/2017,Grants,Operations Directorate,MANCHESTER METROPOLITAN UNIVERSITY,1041002448,528485.31,Grants to educational establishments or not for profit organisations including other businesses
Department for Education,DEPARTMENT FOR EDUCATION,13/07/2017,ICT,Digital and Technology Group,MANGROVE DATA LTD,1041003303,39000,ICT Services
Department for Education,DEPARTMENT FOR EDUCATION,07/07/2017,Programme costs,Accountability  Curriculum and Qualifications Group,MATHEMATICS IN EDUCATION & INDUSTRY,1041002724,65955,Funding to deliver policies (excluding consultancy) paid to third parties via a service delivery contract
Department for Education,DEPARTMENT FOR EDUCATION,27/07/2017,Programme costs,Accountability  Curriculum and Qualifications Group,MATHEMATICS IN EDUCATION & INDUSTRY,1041004608,213364,Funding to deliver policies (excluding consultancy) paid to third parties via a service delivery contract
Department for Education,DEPARTMENT FOR EDUCATION,07/07/2017,Programme costs,Accountability  Curriculum and Qualifications Group,MATHEMATICS IN EDUCATION & INDUSTRY,1041002724,295369,Funding to deliver policies (excluding consultancy) paid to third parties via a service delivery contract
Department for Education,DEPARTMENT FOR EDUCATION,10/07/2017,Programme costs,Accountability  Curriculum and Qualifications Group,MATHEMATICS IN EDUCATION & INDUSTRY,1041002825,371045,Funding to deliver policies (excluding consultancy) paid to third parties via a service delivery contract
Department for Education,DEPARTMENT FOR EDUCATION,27/07/2017,Grants,Strategy and Social Mobility and Opportunity Areas Group,METROPOLITAN BOROUGH OF WIRRAL,1041004615,48000,Grants to local authorities / other establishments within aggregate external funding or aggregate exchequer grant
Department for Education,DEPARTMENT FOR EDUCATION,19/07/2017,ICT,Digital and Technology Group,M-HANCE,1041003710,40778.77,ICT Services
Department for Education,DEPARTMENT FOR EDUCATION,28/07/2017,Professional Services Consultancy and Contingent Labour,Digital and Technology Group,MICROSOFT LTD,1041004650,125159.96,Advisory services including fees  travel and expenses
Department for Education,NATIONAL COLLEGE FOR TEACHING & LEADERSHIP,04/07/2017,Grants,Operations Directorate,MID ESSEX INITIAL TEACHER TRAINING,1041002466,28028.81,Grants to educational establishments or not for profit organisations including other businesses
Department for Education,NATIONAL COLLEGE FOR TEACHING & LEADERSHIP,04/07/2017,Grants,Operations Directorate,MID SOMERSET CONSORTIUM FOR TEACHER TRAINING,1041002182,55001.47,Grants to educational establishments or not for profit organisations including other businesses
Department for Education,DEPARTMENT FOR EDUCATION,27/07/2017,Grants,Strategy and Social Mobility and Opportunity Areas Group,MIDAYE SOMALI DEVELOPMENT NETWORK,1041004559,37113.88,Grants to educational establishments or not for profit organisations including other businesses
Department for Education,NATIONAL COLLEGE FOR TEACHING & LEADERSHIP,04/07/2017,Grants,Delivery Directorate,MIDDLESEX UNIVERSITY,1041002429,25085,Grants to educational establishments or not for profit organisations including other businesses
Department for Education,NATIONAL COLLEGE FOR TEACHING & LEADERSHIP,04/07/2017,Grants,Operations Directorate,MIDDLESEX UNIVERSITY,1041002429,125032.88,Grants to educational establishments or not for profit organisations including other businesses
Department for Education,DEPARTMENT FOR EDUCATION,31/07/2017,Grants,Academies Regional Delivery Group,MILTON SCHOOL,1041004772,25000,Grants to local authorities and educational establishments
Department for Education,DEPARTMENT FOR EDUCATION,13/07/2017,Professional Services Other,Teachers and Teaching Group,MINISTRY OF DEFENCE,1041003258,17569.39,Financial Services
Department for Education,DEPARTMENT FOR EDUCATION,13/07/2017,Professional Services Other,Teachers and Teaching Group,MINISTRY OF DEFENCE,1041003258,87846.95,Financial Services
Department for Education,DEPARTMENT FOR EDUCATION,06/07/2017,Grants,Student Finance and Analysis Group,MINISTRY OF DEFENCE,30000041,198345,Current grant funding to other government departments for DfE's contribution to jointly funded programmes 
Department for Education,DEPARTMENT FOR EDUCATION,05/07/2017,Programme costs,Adoption and Children in Care Division,MOTT MACDONALD LTD,1041002547,20053.18,Funding to deliver policies (excluding consultancy) paid to third parties via a service delivery contract
Department for Education,DEPARTMENT FOR EDUCATION,05/07/2017,Programme costs,Early Years Group,MOTT MACDONALD LTD,1041002547,32870.56,Funding to deliver policies (excluding consultancy) paid to third parties via a service delivery contract
Department for Education,DEPARTMENT FOR EDUCATION,05/07/2017,Programme costs,Adoption and Children in Care Division,MOTT MACDONALD LTD,1041002547,100265.91,Funding to deliver policies (excluding consultancy) paid to third parties via a service delivery contract
Department for Education,DEPARTMENT FOR EDUCATION,05/07/2017,Programme costs,Early Years Group,MOTT MACDONALD LTD,1041002547,164352.79,Funding to deliver policies (excluding consultancy) paid to third parties via a service delivery contract
Department for Education,DEPARTMENT FOR EDUCATION,31/07/2017,Grants,Academies Regional Delivery Group,MOULSHAM HIGH SCHOOL,1041004794,60000,Grants to local authorities and educational establishments
Department for Education,DEPARTMENT FOR EDUCATION,31/07/2017,Grants,Academies Regional Delivery Group,MOWBRAY EDUCATION TRUST LTD,1041004803,70000,Grants to educational establishments or not for profit organisations including other businesses
Department for Education,DEPARTMENT FOR EDUCATION,04/07/2017,Professional Services Other,Children's Social Care Group,MUTUAL VENTURES LTD,1041002364,4600.2,Financial Services
Department for Education,DEPARTMENT FOR EDUCATION,04/07/2017,Professional Services Other,Children's Social Care Group,MUTUAL VENTURES LTD,1041002364,23001,Financial Services
Department for Education,DEPARTMENT FOR EDUCATION,03/07/2017,Miscellaneous Expenditure,Finance and Commercial Group,N/A � Risk Protection Arrangement (RPA) member,005921-001641-GB-01,29068.44,Public Liability claim paid out to an academy trust by Gallagher Bassett on behalf of the Department as part of the Department's Risk Protection Arrangement (RPA).
Department for Education,DEPARTMENT FOR EDUCATION,04/07/2017,Miscellaneous Expenditure,Finance and Commercial Group,N/A � Risk Protection Arrangement (RPA) member,005921-001226-TE-01,30000,Property claim paid out to an academy trust by Gallagher Bassett on behalf of the Department as part of the Department's Risk Protection Arrangement (RPA).
Department for Education,DEPARTMENT FOR EDUCATION,28/07/2017,Miscellaneous Expenditure,Finance and Commercial Group,N/A � Risk Protection Arrangement (RPA) member,005921-001544-RB-01,35491.94,Property claim paid out to an academy trust by Gallagher Bassett on behalf of the Department as part of the Department's Risk Protection Arrangement (RPA).
Department for Education,DEPARTMENT FOR EDUCATION,14/07/2017,Miscellaneous Expenditure,Finance and Commercial Group,N/A � Risk Protection Arrangement (RPA) member,005921-001544-RC-01,43281.87,Property claim paid out to an academy trust by Gallagher Bassett on behalf of the Department as part of the Department's Risk Protection Arrangement (RPA).
Department for Education,DEPARTMENT FOR EDUCATION,18/07/2017,Miscellaneous Expenditure,Finance and Commercial Group,N/A � Risk Protection Arrangement (RPA) member,005921-001401-TE-01,56088.11,Property claim paid out to an academy trust by Gallagher Bassett on behalf of the Department as part of the Department's Risk Protection Arrangement (RPA).
Department for Education,DEPARTMENT FOR EDUCATION,28/07/2017,Miscellaneous Expenditure,Finance and Commercial Group,N/A � Risk Protection Arrangement (RPA) member,005921-001756-RB-01,57000,Property claim paid out to an academy trust by Gallagher Bassett on behalf of the Department as part of the Department's Risk Protection Arrangement (RPA).
Department for Education,DEPARTMENT FOR EDUCATION,28/07/2017,Miscellaneous Expenditure,Finance and Commercial Group,N/A � Risk Protection Arrangement (RPA) member,005921-001756-RB-01,72653.27,Property claim paid out to an academy trust by Gallagher Bassett on behalf of the Department as part of the Department's Risk Protection Arrangement (RPA).
Department for Education,DEPARTMENT FOR EDUCATION,04/07/2017,Miscellaneous Expenditure,Finance and Commercial Group,N/A � Risk Protection Arrangement (RPA) member,005921-001226-RB-01,100000,Property claim paid out to an academy trust by Gallagher Bassett on behalf of the Department as part of the Department's Risk Protection Arrangement (RPA).
Department for Education,DEPARTMENT FOR EDUCATION,10/07/2017,Miscellaneous Expenditure,Finance and Commercial Group,N/A � Risk Protection Arrangement (RPA) member,005921-002666-PI-01,100000,Public Liability claim paid out to an academy trust by Gallagher Bassett on behalf of the Department as part of the Department's Risk Protection Arrangement (RPA).
Department for Education,DEPARTMENT FOR EDUCATION,14/07/2017,Miscellaneous Expenditure,Finance and Commercial Group,N/A � Risk Protection Arrangement (RPA) member,005921-001544-RB-01,104154.2,Property claim paid out to an academy trust by Gallagher Bassett on behalf of the Department as part of the Department's Risk Protection Arrangement (RPA).
Department for Education,DEPARTMENT FOR EDUCATION,17/07/2017,Miscellaneous Expenditure,Finance and Commercial Group,N/A � Risk Protection Arrangement (RPA) member,005921-002001-RB-01,125000,Property claim paid out to an academy trust by Gallagher Bassett on behalf of the Department as part of the Department's Risk Protection Arrangement (RPA).
Department for Education,DEPARTMENT FOR EDUCATION,14/07/2017,Miscellaneous Expenditure,Finance and Commercial Group,N/A � Risk Protection Arrangement (RPA) member,005921-001544-RB-01,221931.58,Property claim paid out to an academy trust by Gallagher Bassett on behalf of the Department as part of the Department's Risk Protection Arrangement (RPA).
Department for Education,NATIONAL COLLEGE FOR TEACHING & LEADERSHIP,10/07/2017,Professional Services Consultancy and Contingent Labour,Operations Directorate,NABARRO LLP,1041002815,7321,Fees / expenses of professionals such as auditors  accountants  lawyers  etc. engaged to provide advice or opinion on how to affect something
Department for Education,NATIONAL COLLEGE FOR TEACHING & LEADERSHIP,10/07/2017,Professional Services Consultancy and Contingent Labour,Operations Directorate,NABARRO LLP,1041002815,36605,Fees / expenses of professionals such as auditors  accountants  lawyers  etc. engaged to provide advice or opinion on how to affect something
Department for Education,DEPARTMENT FOR EDUCATION,06/07/2017,Grants,Academies Regional Delivery Group,NABURN CE PRIMARY SCHOOL,1041002640,25000,Grants to local authorities and educational establishments
Department for Education,DEPARTMENT FOR EDUCATION,25/07/2017,Grants,Student Finance and Analysis Group,NATIONAL ASSEMBLY FOR WALES,30000052,8546664,Current grant funding to other government departments for DfE's contribution to jointly funded programmes 
Department for Education,DEPARTMENT FOR EDUCATION,07/07/2017,Programme costs,Special Educational Needs and Disadvantage Group,NATIONAL AUTISTIC SOCIETY,1041002718,62500,Funding to deliver policies (excluding consultancy) paid to third parties via a service delivery contract
Department for Education,DEPARTMENT FOR EDUCATION,17/07/2017,Professional Services Other,Strategic Analysis and Research Group,NATIONAL CENTRE FOR SOCIAL RESEARCH,1041003485,24889,Research and evaluation activities
Department for Education,DEPARTMENT FOR EDUCATION,17/07/2017,Professional Services Other,Strategic Analysis and Research Group,NATIONAL CENTRE FOR SOCIAL RESEARCH,1041003485,64527,Research and evaluation activities
Department for Education,DEPARTMENT FOR EDUCATION,17/07/2017,Programme costs,Special Educational Needs and Disadvantage Group,NATIONAL CHILDRENS BUREAU,1041003498,14772.4,Funding to deliver policies (excluding consultancy) paid to third parties via a service delivery contract
Department for Education,DEPARTMENT FOR EDUCATION,12/07/2017,Grants,Special Educational Needs and Disadvantage Group,NATIONAL CHILDRENS BUREAU,1041003212,56204.81,Grants to educational establishments or not for profit organisations including other businesses
Department for Education,DEPARTMENT FOR EDUCATION,27/07/2017,Grants,Early Years Group,NATIONAL CHILDRENS BUREAU,1041004616,71577,Grants to educational establishments or not for profit organisations including other businesses
Department for Education,DEPARTMENT FOR EDUCATION,17/07/2017,Programme costs,Special Educational Needs and Disadvantage Group,NATIONAL CHILDRENS BUREAU,1041003498,73862,Funding to deliver policies (excluding consultancy) paid to third parties via a service delivery contract
Department for Education,DEPARTMENT FOR EDUCATION,25/07/2017,Grants,Early Years Group,NATIONAL DAY NURSERIES ASSOCIATION,1041004336,32503.6,Grants to educational establishments or not for profit organisations including other businesses
Department for Education,DEPARTMENT FOR EDUCATION,25/07/2017,Grants,Early Years Group,NATIONAL DAY NURSERIES ASSOCIATION,1041004336,45092.54,Grants to educational establishments or not for profit organisations including other businesses
Department for Education,DEPARTMENT FOR EDUCATION,25/07/2017,Grants,Early Years Group,NATIONAL DAY NURSERIES ASSOCIATION,1041004336,63517.13,Grants to educational establishments or not for profit organisations including other businesses
Department for Education,DEPARTMENT FOR EDUCATION,28/07/2017,Grants,Further Education Group,NATIONAL LEARNING & WORK INSTITUTE,1041004692,405000,Grants to educational establishments or not for profit organisations including other businesses
Department for Education,DEPARTMENT FOR EDUCATION,21/07/2017,Programme costs,Special Educational Needs and Disadvantage Group,NCB,1041004044,27081.7,Funding to deliver policies (excluding consultancy) paid to third parties via a service delivery contract
Department for Education,DEPARTMENT FOR EDUCATION,21/07/2017,Programme costs,Special Educational Needs and Disadvantage Group,NCB,1041004044,135408.5,Funding to deliver policies (excluding consultancy) paid to third parties via a service delivery contract
Department for Education,DEPARTMENT FOR EDUCATION,12/07/2017,Grants,Free Schools Group,NEW COLLEGE SWINDON TRUST,1041003160,30000,Grants to educational establishments or not for profit organisations including other businesses
Department for Education,DEPARTMENT FOR EDUCATION,17/07/2017,Grants,Free Schools Group,NEW HORIZONS ACADEMY TRUST,1041003544,30000,Grants to educational establishments or not for profit organisations including other businesses
Department for Education,NATIONAL COLLEGE FOR TEACHING & LEADERSHIP,04/07/2017,Grants,Higher Education Strategy and Policy Group,NEWCASTLE COLLEGE GROUP,1041002339,28560,Grants to local authorities and educational establishments
Department for Education,NATIONAL COLLEGE FOR TEACHING & LEADERSHIP,04/07/2017,Grants,Operations Directorate,NEWMAN COLLEGE,1041002371,88367.29,Grants to local authorities and educational establishments
Department for Education,NATIONAL COLLEGE FOR TEACHING & LEADERSHIP,04/07/2017,Grants,Operations Directorate,NEWMAN COLLEGE,1041002371,125682.83,Grants to local authorities and educational establishments
Department for Education,DEPARTMENT FOR EDUCATION,24/07/2017,Grants,Free Schools Group,NEWQUAY EDUCATION TRUST,1041004185,30000,Grants to educational establishments or not for profit organisations including other businesses
Department for Education,STANDARDS AND TESTING AGENCY,20/07/2017,Programme costs,Test Development Division,NFER,1041003942,95038.86,Funding to deliver policies (excluding consultancy) paid to third parties via a service delivery contract
Department for Education,STANDARDS AND TESTING AGENCY,20/07/2017,Programme costs,Test Development Division,NFER,1041003942,263820.37,Funding to deliver policies (excluding consultancy) paid to third parties via a service delivery contract
Department for Education,DEPARTMENT FOR EDUCATION,12/07/2017,Grants,System Reform Group,NORFOLK COUNTY COUNCIL,1041003113,55692,Grants to local authorities and educational establishments
Department for Education,NATIONAL COLLEGE FOR TEACHING & LEADERSHIP,04/07/2017,Grants,Operations Directorate,NORTH BEDS SCITT CONSORTIUM,1041002347,37371.75,Grants to educational establishments or not for profit organisations including other businesses
Department for Education,NATIONAL COLLEGE FOR TEACHING & LEADERSHIP,04/07/2017,Grants,Operations Directorate,NORTH ESSEX TEACHER TRAINING,1041002321,35015.71,Grants to educational establishments or not for profit organisations including other businesses
Department for Education,DEPARTMENT FOR EDUCATION,13/07/2017,Grants,Academies Regional Delivery Group,NORTH SOMERSET COUNCIL,1041003268,25000,Grants to local authorities and educational establishments
Department for Education,DEPARTMENT FOR EDUCATION,13/07/2017,Grants,Academies Regional Delivery Group,NORTH SOMERSET COUNCIL,1041003268,25000,Grants to local authorities and educational establishments
Department for Education,DEPARTMENT FOR EDUCATION,13/07/2017,Grants,Academies Regional Delivery Group,NORTH SOMERSET COUNCIL,1041003268,25000,Grants to local authorities and educational establishments
Department for Education,DEPARTMENT FOR EDUCATION,13/07/2017,Grants,Academies Regional Delivery Group,NORTH SOMERSET COUNCIL,1041003268,25000,Grants to local authorities and educational establishments
Department for Education,DEPARTMENT FOR EDUCATION,13/07/2017,Grants,Academies Regional Delivery Group,NORTH SOMERSET COUNCIL,1041003268,25000,Grants to local authorities and educational establishments
Department for Education,DEPARTMENT FOR EDUCATION,13/07/2017,Grants,Academies Regional Delivery Group,NORTH SOMERSET COUNCIL,1041003268,25000,Grants to local authorities and educational establishments
Department for Education,DEPARTMENT FOR EDUCATION,12/07/2017,Grants,System Reform Group,NORTH YORKSHIRE COUNTY COUNCIL,1041002992,26417,Grants to local authorities and educational establishments
Department for Education,DEPARTMENT FOR EDUCATION,19/07/2017,Grants,Academies Regional Delivery Group,NORTHAMPTON PRIMARY ACADEMY TRUST,1041003741,25000,Grants to local authorities and educational establishments
Department for Education,DEPARTMENT FOR EDUCATION,12/07/2017,Grants,System Reform Group,NORTHAMPTONSHIRE COUNTY COUNCIL,1041003213,28467,Grants to local authorities and educational establishments
Department for Education,NATIONAL COLLEGE FOR TEACHING & LEADERSHIP,04/07/2017,Grants,Operations Directorate,NORWICH CITY COLLEGE,1041002395,31278.53,Grants to local authorities and educational establishments
Department for Education,NATIONAL COLLEGE FOR TEACHING & LEADERSHIP,04/07/2017,Grants,Operations Directorate,NOTRE DAME HIGH SCHOOL,1041002184,56707.57,Grants to local authorities and educational establishments
Department for Education,NATIONAL COLLEGE FOR TEACHING & LEADERSHIP,04/07/2017,Grants,Operations Directorate,NOTTINGHAM TRENT UNIVERSITY,1041002103,143800,Grants to educational establishments or not for profit organisations including other businesses
Department for Education,DEPARTMENT FOR EDUCATION,12/07/2017,Grants,System Reform Group,NOTTINGHAMSHIRE COUNTY COUNCIL,1041003096,35167,Grants to local authorities and educational establishments
Department for Education,NATIONAL COLLEGE FOR TEACHING & LEADERSHIP,04/07/2017,Grants,Operations Directorate,NOTTINGHAMSHIRE TORCH SCITT,1041002176,29166.21,Grants to educational establishments or not for profit organisations including other businesses
Department for Education,DEPARTMENT FOR EDUCATION,14/07/2017,Professional Services Consultancy and Contingent Labour,Strategy and Social Mobility and Opportunity Areas Group,NWG NETWORK,1041003467,106434.14,Fees / expenses of professionals such as auditors  accountants  lawyers  etc. engaged to provide advice or opinion on how to affect something
Department for Education,DEPARTMENT FOR EDUCATION,20/07/2017,Grants,Higher Education Strategy and Policy Group,OFFICE FOR FAIR ACCESS,30000050,200000,Current grants paid to organisations including arms length bodies and educational establishments
Department for Education,DEPARTMENT FOR EDUCATION,04/07/2017,Professional Services Other,Further Education Group,OFFICE FOR NATIONAL STATISTICS,1041002219,53236.4,Financial Services
Department for Education,DEPARTMENT FOR EDUCATION,04/07/2017,Professional Services Other,Further Education Group,OFFICE FOR NATIONAL STATISTICS,1041002219,78645,Financial Services
Department for Education,DEPARTMENT FOR EDUCATION,04/07/2017,Professional Services Other,Further Education Group,OFFICE FOR NATIONAL STATISTICS,1041002219,266182,Financial Services
Department for Education,DEPARTMENT FOR EDUCATION,04/07/2017,Professional Services Other,Further Education Group,OFFICE FOR NATIONAL STATISTICS,1041002219,393225,Financial Services
Department for Education,DEPARTMENT FOR EDUCATION,03/07/2017,Grants,Strategy and Social Mobility and Opportunity Areas Group,OFFICE OF THE CHILDRENS COMMISSIONER,30000037,96832.92,Current grants paid to organisations including arms length bodies and educational establishments
Department for Education,DEPARTMENT FOR EDUCATION,04/07/2017,Grants,Academies Regional Delivery Group,OKEHAMPTON COLLEGE,1041002271,25000,Grants to local authorities and educational establishments
Department for Education,DEPARTMENT FOR EDUCATION,17/07/2017,Professional Services Consultancy and Contingent Labour,Education Funding Group,OLIVE JAR DIGITAL LTD,1041003540,7386.4,Costs related to temporary workers
Department for Education,DEPARTMENT FOR EDUCATION,17/07/2017,Professional Services Consultancy and Contingent Labour,Education Funding Group,OLIVE JAR DIGITAL LTD,1041003540,36932,Costs related to temporary workers
Department for Education,STANDARDS AND TESTING AGENCY,11/07/2017,Professional Services Consultancy and Contingent Labour,Test Operations Division,OLIVE JAR DIGITAL LTD,1041002949,79789.49,Fees / expenses of professionals such as auditors  accountants  lawyers  etc. engaged to provide advice or opinion on how to affect something
Department for Education,DEPARTMENT FOR EDUCATION,18/07/2017,Programme costs,Government Equalities Office,OMB RESEARCH LTD,1041003593,4992.6,Funding to deliver policies (excluding consultancy) paid to third parties via a service delivery contract
Department for Education,DEPARTMENT FOR EDUCATION,18/07/2017,Programme costs,Government Equalities Office,OMB RESEARCH LTD,1041003593,24963,Funding to deliver policies (excluding consultancy) paid to third parties via a service delivery contract
Department for Education,DEPARTMENT FOR EDUCATION,20/07/2017,Grants,Academies Regional Delivery Group,OUTWOODS PRIMARY SCHOOL,1041003876,25000,Grants to local authorities and educational establishments
Department for Education,NATIONAL COLLEGE FOR TEACHING & LEADERSHIP,04/07/2017,Grants,Operations Directorate,OXFORD BROOKES UNIVERSITY,1041002377,38671.64,Grants to educational establishments or not for profit organisations including other businesses
Department for Education,DEPARTMENT FOR EDUCATION,12/07/2017,Grants,System Reform Group,OXFORDSHIRE COUNTY COUNCIL,1041003126,26775,Grants to local authorities and educational establishments
Department for Education,DEPARTMENT FOR EDUCATION,25/07/2017,Grants,Adoption and Children in Care Division,PAC UK,1041004282,73441.38,Grants to educational establishments or not for profit organisations including other businesses
Department for Education,NATIONAL COLLEGE FOR TEACHING & LEADERSHIP,04/07/2017,Grants,Operations Directorate,PADDINGTON ACADEMY,1041002193,44196.16,Grants to local authorities and educational establishments
Department for Education,STANDARDS AND TESTING AGENCY,11/07/2017,Office Solutions,Test Operations Division,PARCELFORCE WORLDWIDE,1041002967,24658.74,Post and courier services
Department for Education,STANDARDS AND TESTING AGENCY,19/07/2017,Office Solutions,Test Operations Division,PARCELFORCE WORLDWIDE,1041003796,28085.39,Post and courier services
Department for Education,STANDARDS AND TESTING AGENCY,11/07/2017,Office Solutions,Test Operations Division,PARCELFORCE WORLDWIDE,1041002967,104573.59,Post and courier services
Department for Education,STANDARDS AND TESTING AGENCY,11/07/2017,Office Solutions,Test Operations Division,PARCELFORCE WORLDWIDE,1041002967,123293.72,Post and courier services
Department for Education,STANDARDS AND TESTING AGENCY,19/07/2017,Office Solutions,Test Operations Division,PARCELFORCE WORLDWIDE,1041003796,140426.94,Post and courier services
Department for Education,STANDARDS AND TESTING AGENCY,11/07/2017,Office Solutions,Test Operations Division,PARCELFORCE WORLDWIDE,1041002967,186147.89,Post and courier services
Department for Education,STANDARDS AND TESTING AGENCY,11/07/2017,Office Solutions,Test Operations Division,PARCELFORCE WORLDWIDE,1041002967,522867.94,Post and courier services
Department for Education,STANDARDS AND TESTING AGENCY,11/07/2017,Office Solutions,Test Operations Division,PARCELFORCE WORLDWIDE,1041002967,930739.44,Post and courier services
Department for Education,DEPARTMENT FOR EDUCATION,17/07/2017,Professional Services Consultancy and Contingent Labour,Digital and Technology Group,PARITY PROFESSIONALS LTD,1041003546,4304.32,Costs related to temporary workers
Department for Education,DEPARTMENT FOR EDUCATION,04/07/2017,Professional Services Consultancy and Contingent Labour,Digital and Technology Group,PARITY PROFESSIONALS LTD,1041002174,4740.64,Costs related to temporary workers
Department for Education,DEPARTMENT FOR EDUCATION,17/07/2017,Professional Services Consultancy and Contingent Labour,Digital and Technology Group,PARITY PROFESSIONALS LTD,1041003546,21521.6,Costs related to temporary workers
Department for Education,DEPARTMENT FOR EDUCATION,04/07/2017,Professional Services Consultancy and Contingent Labour,Digital and Technology Group,PARITY PROFESSIONALS LTD,1041002174,23703.2,Costs related to temporary workers
Department for Education,DEPARTMENT FOR EDUCATION,04/07/2017,Grants,Academies Regional Delivery Group,PARKSTONE PRIMARY SCHOOL,1041002434,25000,Grants to local authorities and educational establishments
Department for Education,DEPARTMENT FOR EDUCATION,13/07/2017,Grants,Academies Regional Delivery Group,PARTNERSHIP LEARNING,1041003328,40000,Capital grants paid to a private sector organisation
Department for Education,DEPARTMENT FOR EDUCATION,13/07/2017,Grants,Academies Regional Delivery Group,PARTNERSHIP LEARNING,1041003328,150000,Grants to educational establishments or not for profit organisations including other businesses
Department for Education,NATIONAL COLLEGE FOR TEACHING & LEADERSHIP,04/07/2017,Grants,Operations Directorate,PARTNERSHIP LONDON SCITT,1041002309,31988.08,Grants to educational establishments or not for profit organisations including other businesses
Department for Education,STANDARDS AND TESTING AGENCY,21/07/2017,Programme costs,Test Operations Division,PEARSON EDUCATION LTD,10000188,135041.4,Funding to deliver policies (excluding consultancy) paid to third parties via a service delivery contract
Department for Education,STANDARDS AND TESTING AGENCY,21/07/2017,Programme costs,Test Operations Division,PEARSON EDUCATION LTD,10000189,891957,Funding to deliver policies (excluding consultancy) paid to third parties via a service delivery contract
Department for Education,STANDARDS AND TESTING AGENCY,21/07/2017,Programme costs,Test Operations Division,PEARSON EDUCATION LTD,10000190,2977972.95,Funding to deliver policies (excluding consultancy) paid to third parties via a service delivery contract
Department for Education,STANDARDS AND TESTING AGENCY,21/07/2017,Programme costs,Test Operations Division,PEARSON EDUCATION LTD,10000191,3093876.58,Funding to deliver policies (excluding consultancy) paid to third parties via a service delivery contract
Department for Education,NATIONAL COLLEGE FOR TEACHING & LEADERSHIP,04/07/2017,Grants,Operations Directorate,PENINSULA TEACHER TRAINING CORNWALL SCITT,1041002124,39809.04,Grants to educational establishments or not for profit organisations including other businesses
Department for Education,NATIONAL COLLEGE FOR TEACHING & LEADERSHIP,04/07/2017,Grants,Operations Directorate,PERRY BEECHES ACADEMY,1041002082,25554.46,Grants to local authorities and educational establishments
Department for Education,NATIONAL COLLEGE FOR TEACHING & LEADERSHIP,04/07/2017,Grants,Operations Directorate,PILGRIM SCITT,1041002293,44196.16,Grants to educational establishments or not for profit organisations including other businesses
Department for Education,DEPARTMENT FOR EDUCATION,31/07/2017,Grants,Academies Regional Delivery Group,PLYMOUTH CITY COUNCIL,1041004808,25000,Grants to local authorities and educational establishments
Department for Education,DEPARTMENT FOR EDUCATION,31/07/2017,Grants,Academies Regional Delivery Group,PLYMOUTH CITY COUNCIL,1041004808,25000,Grants to local authorities and educational establishments
Department for Education,DEPARTMENT FOR EDUCATION,31/07/2017,Grants,Academies Regional Delivery Group,PLYMOUTH CITY COUNCIL,1041004808,25000,Grants to local authorities and educational establishments
Department for Education,DEPARTMENT FOR EDUCATION,31/07/2017,Grants,Academies Regional Delivery Group,PLYMOUTH CITY COUNCIL,1041004808,25000,Grants to local authorities and educational establishments
Department for Education,DEPARTMENT FOR EDUCATION,24/07/2017,Grants,Free Schools Group,PRIMARY FIRST TRUST,1041004206,30000,Grants to educational establishments or not for profit organisations including other businesses
Department for Education,DEPARTMENT FOR EDUCATION,14/07/2017,Professional Services Consultancy and Contingent Labour,Digital and Technology Group,PRO CEDURE LTD,1041003384,72000,Advisory services including fees  travel and expenses
Department for Education,STANDARDS AND TESTING AGENCY,07/07/2017,Professional Services Consultancy and Contingent Labour,Test Operations Division,PROLOG,1041002704,8473,Fees / expenses of professionals such as auditors  accountants  lawyers  etc. engaged to provide advice or opinion on how to affect something
Department for Education,STANDARDS AND TESTING AGENCY,07/07/2017,Professional Services Consultancy and Contingent Labour,Test Operations Division,PROLOG,1041002704,42365,Fees / expenses of professionals such as auditors  accountants  lawyers  etc. engaged to provide advice or opinion on how to affect something
Department for Education,DEPARTMENT FOR EDUCATION,07/07/2017,ICT,Data Group,PROLOG,1041002704,65178.38,ICT Services
Department for Education,STANDARDS AND TESTING AGENCY,14/07/2017,Programme costs,Test Development Division,PROMOTIONAL LOGISTICS LTD,1041003466,4824.8,Funding to deliver policies (excluding consultancy) paid to third parties via a service delivery contract
Department for Education,STANDARDS AND TESTING AGENCY,14/07/2017,Programme costs,Test Development Division,PROMOTIONAL LOGISTICS LTD,1041003466,24124,Funding to deliver policies (excluding consultancy) paid to third parties via a service delivery contract
Department for Education,DEPARTMENT FOR EDUCATION,24/07/2017,Grants,Academies Regional Delivery Group,PROSPER LEARNING TRUST,1041004234,70000,Grants to educational establishments or not for profit organisations including other businesses
Department for Education,DEPARTMENT FOR EDUCATION,20/07/2017,Grants,Teachers and Teaching Group,PTSA ACTIVITIES,1041003920,32229.75,Grants to educational establishments or not for profit organisations including other businesses
Department for Education,DEPARTMENT FOR EDUCATION,31/07/2017,Grants,Academies Regional Delivery Group,QUEEN ELIZABETHS GRAMMAR SCHOOL ASHBOURNE,1041004786,150000,Grants to local authorities and educational establishments
Department for Education,DEPARTMENT FOR EDUCATION,10/07/2017,Grants,Academies Regional Delivery Group,REACH SOUTH MAT,1041002859,258000,Grants to educational establishments or not for profit organisations including other businesses
Department for Education,NATIONAL COLLEGE FOR TEACHING & LEADERSHIP,04/07/2017,Grants,Operations Directorate,RED KITE TEACHER TRAINING,1041002308,60282.26,Grants to educational establishments or not for profit organisations including other businesses
Department for Education,DEPARTMENT FOR EDUCATION,18/07/2017,Professional Services Other,Finance and Commercial Group,REDFERN TRAVEL LTD,1041003602,86.33,Financial Services
Department for Education,DEPARTMENT FOR EDUCATION,18/07/2017,Professional Services Other,Finance and Commercial Group,REDFERN TRAVEL LTD,1041003602,629091.86,Financial Services
Department for Education,DEPARTMENT FOR EDUCATION,06/07/2017,Programme costs,Data Group,RESEARCH MACHINES PLC,1041002630,75786.2,Funding to deliver policies (excluding consultancy) paid to third parties via a service delivery contract
Department for Education,DEPARTMENT FOR EDUCATION,06/07/2017,Programme costs,Data Group,RESEARCH MACHINES PLC,1041002630,378931,Funding to deliver policies (excluding consultancy) paid to third parties via a service delivery contract
Department for Education,DEPARTMENT FOR EDUCATION,06/07/2017,Grants,Academies Regional Delivery Group,RICHMOND SCHOOL,1041002622,25000,Grants to local authorities and educational establishments
Department for Education,DEPARTMENT FOR EDUCATION,05/07/2017,Programme costs,Data Group,RM EDUCATION PLC,1041002520,5387.2,Funding to deliver policies (excluding consultancy) paid to third parties via a service delivery contract
Department for Education,DEPARTMENT FOR EDUCATION,05/07/2017,Programme costs,Data Group,RM EDUCATION PLC,1041002520,26936,Funding to deliver policies (excluding consultancy) paid to third parties via a service delivery contract
Department for Education,DEPARTMENT FOR EDUCATION,19/07/2017,Miscellaneous Expenditure,Finance and Commercial Group,ROYAL BANK OF SCOTLAND GROUP,10000184,32.37,Payment of electronic procurement card (ePCS) invoice from July 2017. Details of ePCS spend over 500 can be found at https://www.gov.uk/government/collections/dfe-government-procurement-card-gpc-over-500
Department for Education,DEPARTMENT FOR EDUCATION,19/07/2017,Miscellaneous Expenditure,Finance and Commercial Group,ROYAL BANK OF SCOTLAND GROUP,10000184,35,Payment of electronic procurement card (ePCS) invoice from July 2017. Details of ePCS spend over 500 can be found at https://www.gov.uk/government/collections/dfe-government-procurement-card-gpc-over-500
Department for Education,DEPARTMENT FOR EDUCATION,19/07/2017,Miscellaneous Expenditure,Finance and Commercial Group,ROYAL BANK OF SCOTLAND GROUP,10000184,37.28,Payment of electronic procurement card (ePCS) invoice from July 2017. Details of ePCS spend over 500 can be found at https://www.gov.uk/government/collections/dfe-government-procurement-card-gpc-over-500
Department for Education,DEPARTMENT FOR EDUCATION,19/07/2017,Miscellaneous Expenditure,Finance and Commercial Group,ROYAL BANK OF SCOTLAND GROUP,10000184,62.86,Payment of electronic procurement card (ePCS) invoice from July 2017. Details of ePCS spend over 500 can be found at https://www.gov.uk/government/collections/dfe-government-procurement-card-gpc-over-500
Department for Education,DEPARTMENT FOR EDUCATION,19/07/2017,Miscellaneous Expenditure,Finance and Commercial Group,ROYAL BANK OF SCOTLAND GROUP,10000184,65.83,Payment of electronic procurement card (ePCS) invoice from July 2017. Details of ePCS spend over 500 can be found at https://www.gov.uk/government/collections/dfe-government-procurement-card-gpc-over-500
Department for Education,DEPARTMENT FOR EDUCATION,19/07/2017,Miscellaneous Expenditure,Finance and Commercial Group,ROYAL BANK OF SCOTLAND GROUP,10000184,82.8,Payment of electronic procurement card (ePCS) invoice from July 2017. Details of ePCS spend over 500 can be found at https://www.gov.uk/government/collections/dfe-government-procurement-card-gpc-over-500
Department for Education,DEPARTMENT FOR EDUCATION,19/07/2017,Miscellaneous Expenditure,Finance and Commercial Group,ROYAL BANK OF SCOTLAND GROUP,10000184,126,Payment of electronic procurement card (ePCS) invoice from July 2017. Details of ePCS spend over 500 can be found at https://www.gov.uk/government/collections/dfe-government-procurement-card-gpc-over-500
Department for Education,DEPARTMENT FOR EDUCATION,19/07/2017,Miscellaneous Expenditure,Finance and Commercial Group,ROYAL BANK OF SCOTLAND GROUP,10000184,195,Payment of electronic procurement card (ePCS) invoice from July 2017. Details of ePCS spend over 500 can be found at https://www.gov.uk/government/collections/dfe-government-procurement-card-gpc-over-500
Department for Education,DEPARTMENT FOR EDUCATION,19/07/2017,Miscellaneous Expenditure,Finance and Commercial Group,ROYAL BANK OF SCOTLAND GROUP,10000184,284.65,Payment of electronic procurement card (ePCS) invoice from July 2017. Details of ePCS spend over 500 can be found at https://www.gov.uk/government/collections/dfe-government-procurement-card-gpc-over-500
Department for Education,DEPARTMENT FOR EDUCATION,19/07/2017,Miscellaneous Expenditure,Finance and Commercial Group,ROYAL BANK OF SCOTLAND GROUP,10000184,297,Payment of electronic procurement card (ePCS) invoice from July 2017. Details of ePCS spend over 500 can be found at https://www.gov.uk/government/collections/dfe-government-procurement-card-gpc-over-500
Department for Education,DEPARTMENT FOR EDUCATION,19/07/2017,Miscellaneous Expenditure,Finance and Commercial Group,ROYAL BANK OF SCOTLAND GROUP,10000184,321,Payment of electronic procurement card (ePCS) invoice from July 2017. Details of ePCS spend over 500 can be found at https://www.gov.uk/government/collections/dfe-government-procurement-card-gpc-over-500
Department for Education,DEPARTMENT FOR EDUCATION,19/07/2017,Miscellaneous Expenditure,Finance and Commercial Group,ROYAL BANK OF SCOTLAND GROUP,10000184,323.38,Payment of electronic procurement card (ePCS) invoice from July 2017. Details of ePCS spend over 500 can be found at https://www.gov.uk/government/collections/dfe-government-procurement-card-gpc-over-500
Department for Education,DEPARTMENT FOR EDUCATION,19/07/2017,Miscellaneous Expenditure,Finance and Commercial Group,ROYAL BANK OF SCOTLAND GROUP,10000184,369.6,Payment of electronic procurement card (ePCS) invoice from July 2017. Details of ePCS spend over 500 can be found at https://www.gov.uk/government/collections/dfe-government-procurement-card-gpc-over-500
Department for Education,DEPARTMENT FOR EDUCATION,19/07/2017,Miscellaneous Expenditure,Finance and Commercial Group,ROYAL BANK OF SCOTLAND GROUP,10000184,396,Payment of electronic procurement card (ePCS) invoice from July 2017. Details of ePCS spend over 500 can be found at https://www.gov.uk/government/collections/dfe-government-procurement-card-gpc-over-500
Department for Education,DEPARTMENT FOR EDUCATION,19/07/2017,Miscellaneous Expenditure,Finance and Commercial Group,ROYAL BANK OF SCOTLAND GROUP,10000184,412.29,Payment of electronic procurement card (ePCS) invoice from July 2017. Details of ePCS spend over 500 can be found at https://www.gov.uk/government/collections/dfe-government-procurement-card-gpc-over-500
Department for Education,DEPARTMENT FOR EDUCATION,19/07/2017,Miscellaneous Expenditure,Finance and Commercial Group,ROYAL BANK OF SCOTLAND GROUP,10000184,452.36,Payment of electronic procurement card (ePCS) invoice from July 2017. Details of ePCS spend over 500 can be found at https://www.gov.uk/government/collections/dfe-government-procurement-card-gpc-over-500
Department for Education,DEPARTMENT FOR EDUCATION,19/07/2017,Miscellaneous Expenditure,Finance and Commercial Group,ROYAL BANK OF SCOTLAND GROUP,10000184,483.59,Payment of electronic procurement card (ePCS) invoice from July 2017. Details of ePCS spend over 500 can be found at https://www.gov.uk/government/collections/dfe-government-procurement-card-gpc-over-500
Department for Education,DEPARTMENT FOR EDUCATION,19/07/2017,Miscellaneous Expenditure,Finance and Commercial Group,ROYAL BANK OF SCOTLAND GROUP,10000184,522,Payment of electronic procurement card (ePCS) invoice from July 2017. Details of ePCS spend over 500 can be found at https://www.gov.uk/government/collections/dfe-government-procurement-card-gpc-over-500
Department for Education,DEPARTMENT FOR EDUCATION,19/07/2017,Miscellaneous Expenditure,Finance and Commercial Group,ROYAL BANK OF SCOTLAND GROUP,10000184,580.7,Payment of electronic procurement card (ePCS) invoice from July 2017. Details of ePCS spend over 500 can be found at https://www.gov.uk/government/collections/dfe-government-procurement-card-gpc-over-500
Department for Education,DEPARTMENT FOR EDUCATION,19/07/2017,Miscellaneous Expenditure,Finance and Commercial Group,ROYAL BANK OF SCOTLAND GROUP,10000184,686.01,Payment of electronic procurement card (ePCS) invoice from July 2017. Details of ePCS spend over 500 can be found at https://www.gov.uk/government/collections/dfe-government-procurement-card-gpc-over-500
Department for Education,DEPARTMENT FOR EDUCATION,19/07/2017,Miscellaneous Expenditure,Finance and Commercial Group,ROYAL BANK OF SCOTLAND GROUP,10000184,719.95,Payment of electronic procurement card (ePCS) invoice from July 2017. Details of ePCS spend over 500 can be found at https://www.gov.uk/government/collections/dfe-government-procurement-card-gpc-over-500
Department for Education,DEPARTMENT FOR EDUCATION,19/07/2017,Miscellaneous Expenditure,Finance and Commercial Group,ROYAL BANK OF SCOTLAND GROUP,10000184,744,Payment of electronic procurement card (ePCS) invoice from July 2017. Details of ePCS spend over 500 can be found at https://www.gov.uk/government/collections/dfe-government-procurement-card-gpc-over-500
Department for Education,DEPARTMENT FOR EDUCATION,19/07/2017,Miscellaneous Expenditure,Finance and Commercial Group,ROYAL BANK OF SCOTLAND GROUP,10000184,857.41,Payment of electronic procurement card (ePCS) invoice from July 2017. Details of ePCS spend over 500 can be found at https://www.gov.uk/government/collections/dfe-government-procurement-card-gpc-over-500
Department for Education,DEPARTMENT FOR EDUCATION,19/07/2017,Miscellaneous Expenditure,Finance and Commercial Group,ROYAL BANK OF SCOTLAND GROUP,10000184,941.65,Payment of electronic procurement card (ePCS) invoice from July 2017. Details of ePCS spend over 500 can be found at https://www.gov.uk/government/collections/dfe-government-procurement-card-gpc-over-500
Department for Education,DEPARTMENT FOR EDUCATION,19/07/2017,Miscellaneous Expenditure,Finance and Commercial Group,ROYAL BANK OF SCOTLAND GROUP,10000184,950,Payment of electronic procurement card (ePCS) invoice from July 2017. Details of ePCS spend over 500 can be found at https://www.gov.uk/government/collections/dfe-government-procurement-card-gpc-over-500
Department for Education,DEPARTMENT FOR EDUCATION,19/07/2017,Miscellaneous Expenditure,Finance and Commercial Group,ROYAL BANK OF SCOTLAND GROUP,10000184,1336.74,Payment of electronic procurement card (ePCS) invoice from July 2017. Details of ePCS spend over 500 can be found at https://www.gov.uk/government/collections/dfe-government-procurement-card-gpc-over-500
Department for Education,DEPARTMENT FOR EDUCATION,19/07/2017,Miscellaneous Expenditure,Finance and Commercial Group,ROYAL BANK OF SCOTLAND GROUP,10000184,1913.01,Payment of electronic procurement card (ePCS) invoice from July 2017. Details of ePCS spend over 500 can be found at https://www.gov.uk/government/collections/dfe-government-procurement-card-gpc-over-500
Department for Education,DEPARTMENT FOR EDUCATION,19/07/2017,Miscellaneous Expenditure,Finance and Commercial Group,ROYAL BANK OF SCOTLAND GROUP,10000184,2125.07,Payment of electronic procurement card (ePCS) invoice from July 2017. Details of ePCS spend over 500 can be found at https://www.gov.uk/government/collections/dfe-government-procurement-card-gpc-over-500
Department for Education,DEPARTMENT FOR EDUCATION,19/07/2017,Miscellaneous Expenditure,Finance and Commercial Group,ROYAL BANK OF SCOTLAND GROUP,10000184,2184.19,Payment of electronic procurement card (ePCS) invoice from July 2017. Details of ePCS spend over 500 can be found at https://www.gov.uk/government/collections/dfe-government-procurement-card-gpc-over-500
Department for Education,DEPARTMENT FOR EDUCATION,19/07/2017,Miscellaneous Expenditure,Finance and Commercial Group,ROYAL BANK OF SCOTLAND GROUP,10000184,2352.49,Payment of electronic procurement card (ePCS) invoice from July 2017. Details of ePCS spend over 500 can be found at https://www.gov.uk/government/collections/dfe-government-procurement-card-gpc-over-500
Department for Education,DEPARTMENT FOR EDUCATION,19/07/2017,Miscellaneous Expenditure,Finance and Commercial Group,ROYAL BANK OF SCOTLAND GROUP,10000184,2409.2,Payment of electronic procurement card (ePCS) invoice from July 2017. Details of ePCS spend over 500 can be found at https://www.gov.uk/government/collections/dfe-government-procurement-card-gpc-over-500
Department for Education,DEPARTMENT FOR EDUCATION,19/07/2017,Miscellaneous Expenditure,Finance and Commercial Group,ROYAL BANK OF SCOTLAND GROUP,10000184,2706,Payment of electronic procurement card (ePCS) invoice from July 2017. Details of ePCS spend over 500 can be found at https://www.gov.uk/government/collections/dfe-government-procurement-card-gpc-over-500
Department for Education,DEPARTMENT FOR EDUCATION,19/07/2017,Miscellaneous Expenditure,Finance and Commercial Group,ROYAL BANK OF SCOTLAND GROUP,10000184,4491.39,Payment of electronic procurement card (ePCS) invoice from July 2017. Details of ePCS spend over 500 can be found at https://www.gov.uk/government/collections/dfe-government-procurement-card-gpc-over-500
Department for Education,NATIONAL COLLEGE FOR TEACHING & LEADERSHIP,04/07/2017,Grants,Operations Directorate,SACRED HEART NEWCASTLE SCITT,1041002361,33634.58,Grants to educational establishments or not for profit organisations including other businesses
Department for Education,DEPARTMENT FOR EDUCATION,13/07/2017,Grants,Free Schools Group,SAFFRON ACADEMY TRUST,1041003271,30000,Grants to educational establishments or not for profit organisations including other businesses
Department for Education,DEPARTMENT FOR EDUCATION,19/07/2017,Grants,Academies Regional Delivery Group,SAFFRON ACADEMY TRUST,1041003690,60000,Grants to local authorities and educational establishments
Department for Education,DEPARTMENT FOR EDUCATION,27/07/2017,Grants,Strategy and Social Mobility and Opportunity Areas Group,SALFORD CITY COUNCIL,1041004593,48000,Grants to local authorities and educational establishments
Department for Education,DEPARTMENT FOR EDUCATION,31/07/2017,Grants,Academies Regional Delivery Group,SAPIENTIA EDUCATION TRUST,1041004844,25000,Grants to educational establishments or not for profit organisations including other businesses
Department for Education,DEPARTMENT FOR EDUCATION,18/07/2017,Programme costs,Special Educational Needs and Disadvantage Group,SCHOOL DEVELOPMENT SUPPORT AGENCY,1041003626,1540,Funding to deliver policies (excluding consultancy) paid to third parties via a service delivery contract
Department for Education,DEPARTMENT FOR EDUCATION,18/07/2017,Programme costs,Special Educational Needs and Disadvantage Group,SCHOOL DEVELOPMENT SUPPORT AGENCY,1041003626,33460,Funding to deliver policies (excluding consultancy) paid to third parties via a service delivery contract
Department for Education,DEPARTMENT FOR EDUCATION,26/07/2017,Grants,Free Schools Group,SEAX TRUST,1041004492,30000,Grants to educational establishments or not for profit organisations including other businesses
Department for Education,DEPARTMENT FOR EDUCATION,24/07/2017,Grants,Academies Regional Delivery Group,SEAX TRUST,1041004126,60000,Grants to educational establishments or not for profit organisations including other businesses
Department for Education,DEPARTMENT FOR EDUCATION,11/07/2017,Professional Services Other,Finance and Commercial Group,SHARED SERVICES CONNECTED LTD,1041002965,44874.85,Shared corporate accounting services
Department for Education,DEPARTMENT FOR EDUCATION,04/07/2017,Professional Services Other,Finance and Commercial Group,SHARED SERVICES CONNECTED LTD,1041002341,93500.5,Shared corporate payroll services
Department for Education,DEPARTMENT FOR EDUCATION,11/07/2017,Professional Services Other,Finance and Commercial Group,SHARED SERVICES CONNECTED LTD,1041002965,193206.6,Shared corporate accounting services
Department for Education,DEPARTMENT FOR EDUCATION,04/07/2017,Professional Services Other,Finance and Commercial Group,SHARED SERVICES CONNECTED LTD,1041002341,253372.67,Shared corporate accounting services
Department for Education,NATIONAL COLLEGE FOR TEACHING & LEADERSHIP,04/07/2017,Grants,Operations Directorate,SHEFFIELD HALLAM UNIVERSITY,1041002190,349588.36,Grants to educational establishments or not for profit organisations including other businesses
Department for Education,NATIONAL COLLEGE FOR TEACHING & LEADERSHIP,04/07/2017,Grants,Operations Directorate,SHOTTON HALL SCITT,1041002439,71737.51,Grants to educational establishments or not for profit organisations including other businesses
Department for Education,DEPARTMENT FOR EDUCATION,24/07/2017,Grants,Academies Regional Delivery Group,SIDMOUTH PRIMARY SCHOOL,1041004086,25000,Grants to local authorities and educational establishments
Department for Education,DEPARTMENT FOR EDUCATION,27/07/2017,Grants,Strategy and Social Mobility and Opportunity Areas Group,SLOUGH CHILDRENS SERVICES TRUST LTD,1041004566,75379.29,Grants to local authorities / other establishments within aggregate external funding or aggregate exchequer grant
Department for Education,DEPARTMENT FOR EDUCATION,17/07/2017,Grants,Strategy and Social Mobility and Opportunity Areas Group,SLOUGH CHILDRENS SERVICES TRUST LTD,1041003556,243341,Grants to local authorities / other establishments within aggregate external funding or aggregate exchequer grant
Department for Education,DEPARTMENT FOR EDUCATION,05/07/2017,Grants,Strategy and Social Mobility and Opportunity Areas Group,SLOUGH CHILDRENS SERVICES TRUST LTD,1041002512,257342,Grants to local authorities / other establishments within aggregate external funding or aggregate exchequer grant
Department for Education,DEPARTMENT FOR EDUCATION,12/07/2017,Grants,System Reform Group,SOMERSET COUNTY COUNCIL,1041003127,32308,Grants to local authorities and educational establishments
Department for Education,DEPARTMENT FOR EDUCATION,26/07/2017,Grants,Strategy and Social Mobility and Opportunity Areas Group,SOMERSET COUNTY COUNCIL,1041004408,48000,Grants to local authorities and educational establishments
Department for Education,DEPARTMENT FOR EDUCATION,13/07/2017,Grants,Academies Regional Delivery Group,SOUTH TYNESIDE ACADEMY TRUST,1041003294,25000,Grants to local authorities and educational establishments
Department for Education,NATIONAL COLLEGE FOR TEACHING & LEADERSHIP,04/07/2017,Grants,Operations Directorate,SOUTH WEST TEACHER TRAINING,1041002241,31359.77,Grants to educational establishments or not for profit organisations including other businesses
Department for Education,DEPARTMENT FOR EDUCATION,20/07/2017,Grants,Academies Regional Delivery Group,SOWERBY COMMUNITY PRIMARY SCHOOL,1041003881,25000,Grants to local authorities and educational establishments
Department for Education,NATIONAL COLLEGE FOR TEACHING & LEADERSHIP,17/07/2017,Programme costs,Operations Directorate,SPEAKEASY PRODUCTIONS LTD,1041003555,8545.41,Funding to deliver policies (excluding consultancy) paid to third parties via a service delivery contract
Department for Education,NATIONAL COLLEGE FOR TEACHING & LEADERSHIP,17/07/2017,Programme costs,Operations Directorate,SPEAKEASY PRODUCTIONS LTD,1041003555,42727.07,Funding to deliver policies (excluding consultancy) paid to third parties via a service delivery contract
Department for Education,DEPARTMENT FOR EDUCATION,24/07/2017,Grants,Academies Regional Delivery Group,ST CHADS ACADEMIES TRUST,1041004208,80000,Grants to local authorities and educational establishments
Department for Education,DEPARTMENT FOR EDUCATION,24/07/2017,Grants,Free Schools Group,ST CLERES COOPERATIVE ACADEMY TRUST,1041004220,30000,Grants to educational establishments or not for profit organisations including other businesses
Department for Education,DEPARTMENT FOR EDUCATION,31/07/2017,Grants,Academies Regional Delivery Group,ST EDMUNDSBURY & IPSWICH DIOCESAN MULTI ACADEMY TRUST,1041004734,25000,Grants to local authorities and educational establishments
Department for Education,DEPARTMENT FOR EDUCATION,31/07/2017,Grants,Academies Regional Delivery Group,ST EDMUNDSBURY & IPSWICH DIOCESAN MULTI ACADEMY TRUST,1041004734,70000,Grants to local authorities and educational establishments
Department for Education,DEPARTMENT FOR EDUCATION,31/07/2017,Grants,Academies Regional Delivery Group,ST EDMUNDSBURY & IPSWICH DIOCESAN MULTI ACADEMY TRUST,1041004734,70000,Grants to local authorities and educational establishments
Department for Education,DEPARTMENT FOR EDUCATION,31/07/2017,Grants,Academies Regional Delivery Group,ST EDMUNDSBURY & IPSWICH DIOCESAN MULTI ACADEMY TRUST,1041004734,70000,Grants to local authorities and educational establishments
Department for Education,NATIONAL COLLEGE FOR TEACHING & LEADERSHIP,04/07/2017,Grants,Operations Directorate,ST MARY & ST PAULS CE PRIMARY SCHOOL TS ACCOUNT,1041002078,182980.27,Grants to local authorities and educational establishments
Department for Education,NATIONAL COLLEGE FOR TEACHING & LEADERSHIP,04/07/2017,Grants,Operations Directorate,ST MARYS UNIVERSITY COLLEGE,1041002133,54896.81,Grants to local authorities and educational establishments
Department for Education,NATIONAL COLLEGE FOR TEACHING & LEADERSHIP,04/07/2017,Grants,Operations Directorate,ST MARYS UNIVERSITY COLLEGE,1041002133,249740.79,Grants to local authorities and educational establishments
Department for Education,DEPARTMENT FOR EDUCATION,31/07/2017,Grants,Academies Regional Delivery Group,ST OSWALDS CE PRIMARY SCHOOL,1041004779,25000,Grants to local authorities and educational establishments
Department for Education,NATIONAL COLLEGE FOR TEACHING & LEADERSHIP,04/07/2017,Grants,Operations Directorate,STAFFORDSHIRE UNIVERSITY,1041002240,53620.34,Grants to educational establishments or not for profit organisations including other businesses
Department for Education,DEPARTMENT FOR EDUCATION,20/07/2017,Professional Services Consultancy and Contingent Labour,Accountability  Curriculum and Qualifications Group,STEM LEARNING LTD,1041003936,7154.83,Fees / expenses of professionals such as auditors  accountants  lawyers  etc. engaged to provide advice or opinion on how to affect something
Department for Education,DEPARTMENT FOR EDUCATION,20/07/2017,Professional Services Consultancy and Contingent Labour,Accountability  Curriculum and Qualifications Group,STEM LEARNING LTD,1041003936,35774.15,Fees / expenses of professionals such as auditors  accountants  lawyers  etc. engaged to provide advice or opinion on how to affect something
Department for Education,DEPARTMENT FOR EDUCATION,20/07/2017,Professional Services Consultancy and Contingent Labour,Accountability  Curriculum and Qualifications Group,STEM LEARNING LTD,1041003936,175559.83,Fees / expenses of professionals such as auditors  accountants  lawyers  etc. engaged to provide advice or opinion on how to affect something
Department for Education,DEPARTMENT FOR EDUCATION,04/07/2017,Grants,Academies Regional Delivery Group,STOCKSBRIDGE HIGH SCHOOL,1041002435,25000,Grants to local authorities and educational establishments
Department for Education,DEPARTMENT FOR EDUCATION,25/07/2017,Grants,Student Finance and Analysis Group,STUDENT AWARDS AGENCY FOR SCOTLAND SAAS,30000051,12073858,Current grant funding to other government departments for DfE's contribution to jointly funded programmes 
Department for Education,DEPARTMENT FOR EDUCATION,03/07/2017,Grants,Student Finance and Analysis Group,STUDENT LOANS COMPANY LTD,30000036,3520871.97,Current grants paid to organisations including arms length bodies and educational establishments
Department for Education,DEPARTMENT FOR EDUCATION,03/07/2017,Grants,Student Finance and Analysis Group,STUDENT LOANS COMPANY LTD,30000036,17666489.47,Current grants paid to organisations including arms length bodies and educational establishments
Department for Education,DEPARTMENT FOR EDUCATION,17/07/2017,Student Payments,Further Education Group,STUDENT LOANS COMPANY LTD,30000044,20812434,Payments for new student loans
Department for Education,DEPARTMENT FOR EDUCATION,17/07/2017,Student Payments,Student Finance and Analysis Group,STUDENT LOANS COMPANY LTD,30000045,55297333,Payments for new student loans
Department for Education,DEPARTMENT FOR EDUCATION,12/07/2017,Grants,System Reform Group,SUFFOLK COUNTY COUNCIL,1041003128,45425,Grants to local authorities and educational establishments
Department for Education,NATIONAL COLLEGE FOR TEACHING & LEADERSHIP,04/07/2017,Grants,Operations Directorate,SUFFOLK COUNTY COUNCIL,1041002211,51023.78,Grants to local authorities and educational establishments
Department for Education,DEPARTMENT FOR EDUCATION,24/07/2017,Grants,Free Schools Group,SUSSEX LEARNING TRUST,1041004236,30000,Grants to educational establishments or not for profit organisations including other businesses
Department for Education,NATIONAL COLLEGE FOR TEACHING & LEADERSHIP,04/07/2017,Grants,Operations Directorate,SUTTON SCITT,1041002463,45455.42,Grants to educational establishments or not for profit organisations including other businesses
Department for Education,NATIONAL COLLEGE FOR TEACHING & LEADERSHIP,04/07/2017,Grants,Operations Directorate,SWINDON SCITT,1041002178,35381.3,Grants to educational establishments or not for profit organisations including other businesses
Department for Education,NATIONAL COLLEGE FOR TEACHING & LEADERSHIP,04/07/2017,Grants,Operations Directorate,TEACH SOUTHEAST,1041002256,56353.2,Grants to educational establishments or not for profit organisations including other businesses
Department for Education,NATIONAL COLLEGE FOR TEACHING & LEADERSHIP,07/07/2017,Programme costs,Delivery Directorate,TELEPERFORMANCE LTD,1041002707,163.62,Funding to deliver policies (excluding consultancy) paid to third parties via a service delivery contract
Department for Education,NATIONAL COLLEGE FOR TEACHING & LEADERSHIP,07/07/2017,Professional Services Consultancy and Contingent Labour,Delivery Directorate,TELEPERFORMANCE LTD,1041002707,8728.18,Fees / expenses of professionals such as auditors  accountants  lawyers  etc. engaged to provide advice or opinion on how to affect something
Department for Education,NATIONAL COLLEGE FOR TEACHING & LEADERSHIP,10/07/2017,Programme costs,Delivery Directorate,TELEPERFORMANCE LTD,1041002778,29404.04,Funding to deliver policies (excluding consultancy) paid to third parties via a service delivery contract
Department for Education,NATIONAL COLLEGE FOR TEACHING & LEADERSHIP,10/07/2017,Programme costs,Delivery Directorate,TELEPERFORMANCE LTD,1041002778,41280.96,Funding to deliver policies (excluding consultancy) paid to third parties via a service delivery contract
Department for Education,NATIONAL COLLEGE FOR TEACHING & LEADERSHIP,07/07/2017,Professional Services Consultancy and Contingent Labour,Delivery Directorate,TELEPERFORMANCE LTD,1041002707,43640.91,Fees / expenses of professionals such as auditors  accountants  lawyers  etc. engaged to provide advice or opinion on how to affect something
Department for Education,NATIONAL COLLEGE FOR TEACHING & LEADERSHIP,10/07/2017,Programme costs,Delivery Directorate,TELEPERFORMANCE LTD,1041002778,137118.43,Funding to deliver policies (excluding consultancy) paid to third parties via a service delivery contract
Department for Education,NATIONAL COLLEGE FOR TEACHING & LEADERSHIP,07/07/2017,Programme costs,Delivery Directorate,TELEPERFORMANCE LTD,1041002707,181368.38,Funding to deliver policies (excluding consultancy) paid to third parties via a service delivery contract
Department for Education,NATIONAL COLLEGE FOR TEACHING & LEADERSHIP,10/07/2017,Programme costs,Delivery Directorate,TELEPERFORMANCE LTD,1041002778,202478,Funding to deliver policies (excluding consultancy) paid to third parties via a service delivery contract
Department for Education,NATIONAL COLLEGE FOR TEACHING & LEADERSHIP,06/07/2017,Programme costs,Operations Directorate,TEXUNA TECHNOLOGIES,1041002688,4804.37,Funding to deliver policies (excluding consultancy) paid to third parties via a service delivery contract
Department for Education,NATIONAL COLLEGE FOR TEACHING & LEADERSHIP,06/07/2017,Programme costs,Operations Directorate,TEXUNA TECHNOLOGIES,1041002688,24021.83,Funding to deliver policies (excluding consultancy) paid to third parties via a service delivery contract
Department for Education,DEPARTMENT FOR EDUCATION,31/07/2017,Grants,Academies Regional Delivery Group,THE ACTIVE LEARNING TRUST LTD,1041004774,70000,Grants to educational establishments or not for profit organisations including other businesses
Department for Education,NATIONAL COLLEGE FOR TEACHING & LEADERSHIP,04/07/2017,Grants,Operations Directorate,THE ARTHUR TERRY SCHOOL SCITT,1041002472,35265.25,Grants to local authorities and educational establishments
Department for Education,DEPARTMENT FOR EDUCATION,04/07/2017,Grants,Academies Regional Delivery Group,THE CAM ACADEMY TRUST,1041002195,25000,Grants to local authorities and educational establishments
Department for Education,NATIONAL COLLEGE FOR TEACHING & LEADERSHIP,04/07/2017,Grants,Operations Directorate,THE CAMBRIDGE PARTNERSHIP,1041002237,38996.61,Grants to educational establishments or not for profit organisations including other businesses
Department for Education,DEPARTMENT FOR EDUCATION,17/07/2017,Grants,Careers and Further Education Funding Group,THE CAREERS & ENTERPRISE COMPANY,1041003549,1231152,Grants to educational establishments or not for profit organisations including other businesses
Department for Education,DEPARTMENT FOR EDUCATION,24/07/2017,Grants,Free Schools Group,THE CASTLE SCHOOL,1041004091,30000,Grants to educational establishments or not for profit organisations including other businesses
Department for Education,NATIONAL COLLEGE FOR TEACHING & LEADERSHIP,04/07/2017,Grants,Operations Directorate,THE CHERWELL SCHOOL TS ACCOUNT,1041002396,26647.68,Grants to local authorities and educational establishments
Department for Education,DEPARTMENT FOR EDUCATION,12/07/2017,Grants,Free Schools Group,THE CHERWELL SCHOOL TS ACCOUNT,1041003014,30000,Grants to educational establishments or not for profit organisations including other businesses
Department for Education,NATIONAL COLLEGE FOR TEACHING & LEADERSHIP,04/07/2017,Grants,Operations Directorate,THE COLLEGE OF ST MARK & ST JOHN,1041002427,53571.67,Grants to local authorities and educational establishments
Department for Education,NATIONAL COLLEGE FOR TEACHING & LEADERSHIP,04/07/2017,Grants,Operations Directorate,THE COLLEGE OF ST MARK & ST JOHN,1041002427,54026.55,Grants to local authorities and educational establishments
Department for Education,DEPARTMENT FOR EDUCATION,17/07/2017,Grants,Free Schools Group,THE COLLEGIATE TRUST,1041003552,30000,Grants to educational establishments or not for profit organisations including other businesses
Department for Education,DEPARTMENT FOR EDUCATION,06/07/2017,Grants,Academies Regional Delivery Group,THE DEAN TRUST,1041002605,25000,Grants to educational establishments or not for profit organisations including other businesses
Department for Education,DEPARTMENT FOR EDUCATION,06/07/2017,Professional Services Other,Further Education Group,THE ECONOMIC AND SOCIAL RESEARCH COUNCIL,1041002672,50000,Research and evaluation activities
Department for Education,DEPARTMENT FOR EDUCATION,31/07/2017,Grants,Special Educational Needs and Disadvantage Group,THE FAMILY FUND TRUST,1041004811,2157000,Grants to educational establishments or not for profit organisations including other businesses
Department for Education,NATIONAL COLLEGE FOR TEACHING & LEADERSHIP,19/07/2017,Grants,Delivery Directorate,THE FEDERATION OF ST ELPHEGES,1041003781,40000,Grants to educational establishments or not for profit organisations including other businesses
Department for Education,DEPARTMENT FOR EDUCATION,24/07/2017,Learning and Development,Strategy and Social Mobility and Opportunity Areas Group,THE FRONTLINE ORGANISATION,1041004140,9954.31,Staff training and conferences including related travel costs
Department for Education,DEPARTMENT FOR EDUCATION,24/07/2017,Learning and Development,Strategy and Social Mobility and Opportunity Areas Group,THE FRONTLINE ORGANISATION,1041004140,11217.83,Staff training and conferences including related travel costs
Department for Education,DEPARTMENT FOR EDUCATION,04/07/2017,Grants,Strategy and Social Mobility and Opportunity Areas Group,THE FRONTLINE ORGANISATION,1041002146,36519.28,Grants to educational establishments or not for profit organisations including other businesses
Department for Education,DEPARTMENT FOR EDUCATION,24/07/2017,Learning and Development,Strategy and Social Mobility and Opportunity Areas Group,THE FRONTLINE ORGANISATION,1041004140,143814.61,Staff training and conferences including related travel costs
Department for Education,DEPARTMENT FOR EDUCATION,24/07/2017,Learning and Development,Strategy and Social Mobility and Opportunity Areas Group,THE FRONTLINE ORGANISATION,1041004140,153454.31,Staff training and conferences including related travel costs
Department for Education,DEPARTMENT FOR EDUCATION,26/07/2017,Grants,Academies Regional Delivery Group,THE FUTURES TRUST,1041004508,80000,Grants to educational establishments or not for profit organisations including other businesses
Department for Education,DEPARTMENT FOR EDUCATION,31/07/2017,Grants,Free Schools Group,THE GORSE ACADEMIES TRUST,1041004766,30000,Grants to educational establishments or not for profit organisations including other businesses
Department for Education,DEPARTMENT FOR EDUCATION,31/07/2017,Grants,Academies Regional Delivery Group,THE GORSE ACADEMIES TRUST,1041004766,110000,Grants to local authorities and educational establishments
Department for Education,DEPARTMENT FOR EDUCATION,13/07/2017,Grants,Academies Regional Delivery Group,THE HARMONY TRUST,1041003339,40000,Grants to educational establishments or not for profit organisations including other businesses
Department for Education,DEPARTMENT FOR EDUCATION,13/07/2017,Grants,Academies Regional Delivery Group,THE HAWKSMOOR LEARNING TRUST,1041003264,40000,Capital grants paid to a private sector organisation
Department for Education,DEPARTMENT FOR EDUCATION,13/07/2017,Grants,Academies Regional Delivery Group,THE HAWKSMOOR LEARNING TRUST,1041003264,110000,Grants to educational establishments or not for profit organisations including other businesses
Department for Education,DEPARTMENT FOR EDUCATION,26/07/2017,Grants,Academies Regional Delivery Group,THE INSPIRATION TRUST,1041004385,35000,Grants to educational establishments or not for profit organisations including other businesses
Department for Education,DEPARTMENT FOR EDUCATION,31/07/2017,Grants,Free Schools Group,THE KEMNAL ACADEMIES TRUST,1041004787,30000,Grants to educational establishments or not for profit organisations including other businesses
Department for Education,DEPARTMENT FOR EDUCATION,12/07/2017,Grants,Free Schools Group,THE LAURUS TRUST,1041003162,30000,Grants to educational establishments or not for profit organisations including other businesses
Department for Education,DEPARTMENT FOR EDUCATION,24/07/2017,Grants,Free Schools Group,THE LAURUS TRUST,1041004175,30000,Grants to educational establishments or not for profit organisations including other businesses
Department for Education,DEPARTMENT FOR EDUCATION,20/07/2017,Grants,Teachers and Teaching Group,THE LEIGH ACADEMIES TRUST,1041003953,40175,Grants to local authorities and educational establishments
Department for Education,DEPARTMENT FOR EDUCATION,31/07/2017,Grants,Academies Regional Delivery Group,THE MARIST CATHOLIC PRIMARY SCHOOL,1041004784,25000,Grants to local authorities and educational establishments
Department for Education,NATIONAL COLLEGE FOR TEACHING & LEADERSHIP,04/07/2017,Grants,Operations Directorate,THE MORLEY ACADEMY,1041002115,81771.02,Grants to local authorities and educational establishments
Department for Education,DEPARTMENT FOR EDUCATION,31/07/2017,Grants,Academies Regional Delivery Group,THE NORTHWORTHY TRUST,1041004841,150000,Grants to educational establishments or not for profit organisations including other businesses
Department for Education,NATIONAL COLLEGE FOR TEACHING & LEADERSHIP,04/07/2017,Grants,Operations Directorate,THE OAKS SCITT,1041002259,76287.12,Grants to educational establishments or not for profit organisations including other businesses
Department for Education,DEPARTMENT FOR EDUCATION,31/07/2017,Grants,Academies Regional Delivery Group,THE OLYMPUS ACADEMY TRUST,1041004775,150000,Grants to local authorities and educational establishments
Department for Education,NATIONAL COLLEGE FOR TEACHING & LEADERSHIP,04/07/2017,Grants,Operations Directorate,THE POLESWORTH SCHOOL,1041002102,40047.86,Grants to local authorities and educational establishments
Department for Education,DEPARTMENT FOR EDUCATION,24/07/2017,Grants,Academies Regional Delivery Group,THE PRIORY FEDERATION OF ACADEMIES TRUST,1041004113,80000,Grants to local authorities and educational establishments
Department for Education,DEPARTMENT FOR EDUCATION,24/07/2017,Grants,Academies Regional Delivery Group,THE PRIORY FEDERATION OF ACADEMIES TRUST,1041004113,150000,Grants to local authorities and educational establishments
Department for Education,NATIONAL COLLEGE FOR TEACHING & LEADERSHIP,20/07/2017,Grants,Operations Directorate,THE QUEEN KATHERINE SCHOOL ACADEMY TRUST,10000185,33000,Grants to local authorities and educational establishments
Department for Education,DEPARTMENT FOR EDUCATION,26/07/2017,Grants,Academies Regional Delivery Group,THE RAYLEIGH PRIMARY SCHOOL TRUST,1041004383,70000,Grants to local authorities and educational establishments
Department for Education,DEPARTMENT FOR EDUCATION,04/07/2017,Grants,Academies Regional Delivery Group,THE REDHIL ACADEMY TRUST,1041002172,25000,Grants to local authorities and educational establishments
Department for Education,NATIONAL COLLEGE FOR TEACHING & LEADERSHIP,04/07/2017,Grants,Operations Directorate,THE ROYAL LATIN SCHOOL,1041002322,25077.51,Grants to local authorities and educational establishments
Department for Education,DEPARTMENT FOR EDUCATION,20/07/2017,Grants,Teachers and Teaching Group,THE RUTLAND LEARNING TRUST,1041003896,49800,Grants to educational establishments or not for profit organisations including other businesses
Department for Education,DEPARTMENT FOR EDUCATION,05/07/2017,Programme costs,Adoption and Children in Care Division,THE SHARE FOUNDATION,1041002544,11510.8,Funding to deliver policies (excluding consultancy) paid to third parties via a service delivery contract
Department for Education,DEPARTMENT FOR EDUCATION,05/07/2017,Programme costs,Adoption and Children in Care Division,THE SHARE FOUNDATION,1041002544,57554,Funding to deliver policies (excluding consultancy) paid to third parties via a service delivery contract
Department for Education,DEPARTMENT FOR EDUCATION,10/07/2017,Professional Services Other,Adoption and Children in Care Division,THE SHARE FOUNDATION 3RD PARTY TRUST,1041002762,27000,Financial Services
Department for Education,DEPARTMENT FOR EDUCATION,18/07/2017,Professional Services Other,Adoption and Children in Care Division,THE SHARE FOUNDATION 3RD PARTY TRUST,1041003607,54200,Financial Services
Department for Education,DEPARTMENT FOR EDUCATION,20/07/2017,Professional Services Other,Adoption and Children in Care Division,THE SHARE FOUNDATION 3RD PARTY TRUST,1041003940,64000,Financial Services
Department for Education,DEPARTMENT FOR EDUCATION,10/07/2017,Professional Services Other,Adoption and Children in Care Division,THE SHARE FOUNDATION 3RD PARTY TRUST,1041002762,93600,Financial Services
Department for Education,DEPARTMENT FOR EDUCATION,24/07/2017,Grants,Free Schools Group,THE SOUTHFIELD TRUST,1041004235,30000,Grants to educational establishments or not for profit organisations including other businesses
Department for Education,NATIONAL COLLEGE FOR TEACHING & LEADERSHIP,04/07/2017,Grants,Operations Directorate,THE UNIVERSITY OF LEEDS,1041002327,157367.57,Grants to educational establishments or not for profit organisations including other businesses
Department for Education,NATIONAL COLLEGE FOR TEACHING & LEADERSHIP,04/07/2017,Grants,Operations Directorate,THE UNIVERSITY OF MANCHESTER,1041002216,26097,Grants to educational establishments or not for profit organisations including other businesses
Department for Education,NATIONAL COLLEGE FOR TEACHING & LEADERSHIP,04/07/2017,Grants,Operations Directorate,THE UNIVERSITY OF MANCHESTER,1041002216,305229.72,Grants to educational establishments or not for profit organisations including other businesses
Department for Education,NATIONAL COLLEGE FOR TEACHING & LEADERSHIP,04/07/2017,Grants,Operations Directorate,THE UNIVERSITY OF READING,1041002424,34904.35,Grants to educational establishments or not for profit organisations including other businesses
Department for Education,NATIONAL COLLEGE FOR TEACHING & LEADERSHIP,04/07/2017,Grants,Operations Directorate,THE UNIVERSITY OF READING,1041002424,228130.17,Grants to educational establishments or not for profit organisations including other businesses
Department for Education,DEPARTMENT FOR EDUCATION,24/07/2017,Grants,Academies Regional Delivery Group,THE VILLAGES MULTI ACADEMY TRUST,1041004084,25000,Grants to local authorities and educational establishments
Department for Education,NATIONAL COLLEGE FOR TEACHING & LEADERSHIP,04/07/2017,Grants,Operations Directorate,THORNDEN SCHOOL,1041002352,25104.07,Grants to local authorities and educational establishments
Department for Education,DEPARTMENT FOR EDUCATION,10/07/2017,Grants,Academies Regional Delivery Group,TOLLBAR MULTI ACADEMY TRUST,1041002781,79500,Grants to local authorities and educational establishments
Department for Education,DEPARTMENT FOR EDUCATION,10/07/2017,Grants,Academies Regional Delivery Group,TOLLBAR MULTI ACADEMY TRUST,1041002781,80000,Grants to local authorities and educational establishments
Department for Education,DEPARTMENT FOR EDUCATION,10/07/2017,Grants,Academies Regional Delivery Group,TOLLBAR MULTI ACADEMY TRUST,1041002781,150000,Grants to local authorities and educational establishments
Department for Education,DEPARTMENT FOR EDUCATION,26/07/2017,Professional Services Consultancy and Contingent Labour,Digital and Technology Group,TOTAL ENTERPRISE SOLUTIONS,1041004392,4588,Fees / expenses of professionals such as auditors  accountants  lawyers  etc. engaged to provide advice or opinion on how to affect something
Department for Education,DEPARTMENT FOR EDUCATION,26/07/2017,ICT,Digital and Technology Group,TOTAL ENTERPRISE SOLUTIONS,1041004392,21073.7,ICT Services
Department for Education,DEPARTMENT FOR EDUCATION,26/07/2017,Professional Services Consultancy and Contingent Labour,Digital and Technology Group,TOTAL ENTERPRISE SOLUTIONS,1041004392,22940,Fees / expenses of professionals such as auditors  accountants  lawyers  etc. engaged to provide advice or opinion on how to affect something
Department for Education,DEPARTMENT FOR EDUCATION,12/07/2017,Grants,Free Schools Group,TOTTENHAM UTC,1041003003,60000,Grants to educational establishments or not for profit organisations including other businesses
Department for Education,DEPARTMENT FOR EDUCATION,26/07/2017,Grants,Free Schools Group,TOVE LEARNING TRUST,1041004509,30000,Grants to educational establishments or not for profit organisations including other businesses
Department for Education,DEPARTMENT FOR EDUCATION,14/07/2017,Programme costs,Accountability  Curriculum and Qualifications Group,TRIBAL EDUCATION,1041003392,27477.4,Funding to deliver policies (excluding consultancy) paid to third parties via a service delivery contract
Department for Education,DEPARTMENT FOR EDUCATION,31/07/2017,Programme costs,Accountability  Curriculum and Qualifications Group,TRIBAL EDUCATION,1041004743,30487.2,Funding to deliver policies (excluding consultancy) paid to third parties via a service delivery contract
Department for Education,DEPARTMENT FOR EDUCATION,14/07/2017,Programme costs,Accountability  Curriculum and Qualifications Group,TRIBAL EDUCATION,1041003392,137387,Funding to deliver policies (excluding consultancy) paid to third parties via a service delivery contract
Department for Education,DEPARTMENT FOR EDUCATION,31/07/2017,Programme costs,Accountability  Curriculum and Qualifications Group,TRIBAL EDUCATION,1041004743,152436,Funding to deliver policies (excluding consultancy) paid to third parties via a service delivery contract
Department for Education,DEPARTMENT FOR EDUCATION,13/07/2017,Grants,Academies Regional Delivery Group,TRINITAS ACADEMY TRUST,1041003340,25000,Grants to local authorities and educational establishments
Department for Education,DEPARTMENT FOR EDUCATION,06/07/2017,Grants,Academies Regional Delivery Group,TRINITY ACADEMY HALIFAX MULTI ACADEMY TRUST,1041002661,150000,Grants to local authorities and educational establishments
Department for Education,DEPARTMENT FOR EDUCATION,21/07/2017,Grants,Further Education Group,TUC,1041004001,972857,Grants to educational establishments or not for profit organisations including other businesses
Department for Education,NATIONAL COLLEGE FOR TEACHING & LEADERSHIP,26/07/2017,Programme costs,Operations Directorate,UCAS,1041004411,7275,Funding to deliver policies (excluding consultancy) paid to third parties via a service delivery contract
Department for Education,NATIONAL COLLEGE FOR TEACHING & LEADERSHIP,26/07/2017,Programme costs,Operations Directorate,UCAS,1041004411,36375,Funding to deliver policies (excluding consultancy) paid to third parties via a service delivery contract
Department for Education,NATIONAL COLLEGE FOR TEACHING & LEADERSHIP,04/07/2017,Grants,Operations Directorate,UCL INSTITUTE OF EDUCATION,1041002100,616977.4,Grants to educational establishments or not for profit organisations including other businesses
Department for Education,DEPARTMENT FOR EDUCATION,31/07/2017,Programme costs,Insight Resources and Transformation Group,UKCISA,1041004821,82500,Funding to deliver policies (excluding consultancy) paid to third parties via a service delivery contract
Department for Education,DEPARTMENT FOR EDUCATION,31/07/2017,Grants,Academies Regional Delivery Group,UNITED LEARNING TRUST,1041004777,125000,Grants to educational establishments or not for profit organisations including other businesses
Department for Education,DEPARTMENT FOR EDUCATION,20/07/2017,Grants,Teachers and Teaching Group,UNITED LEARNING TRUST,1041003858,150000,Grants to educational establishments or not for profit organisations including other businesses
Department for Education,NATIONAL COLLEGE FOR TEACHING & LEADERSHIP,04/07/2017,Grants,Operations Directorate,UNIVERSITY OF BEDFORDSHIRE,1041002399,70762.6,Grants to educational establishments or not for profit organisations including other businesses
Department for Education,NATIONAL COLLEGE FOR TEACHING & LEADERSHIP,06/07/2017,Grants,Operations Directorate,UNIVERSITY OF BIRMINGHAM,1041002619,321072.09,Grants to educational establishments or not for profit organisations including other businesses
Department for Education,NATIONAL COLLEGE FOR TEACHING & LEADERSHIP,04/07/2017,Grants,Higher Education Strategy and Policy Group,UNIVERSITY OF BOLTON,1041002340,36360,Grants to educational establishments or not for profit organisations including other businesses
Department for Education,NATIONAL COLLEGE FOR TEACHING & LEADERSHIP,04/07/2017,Grants,Operations Directorate,UNIVERSITY OF BRIGHTON,1041002398,61352.39,Grants to educational establishments or not for profit organisations including other businesses
Department for Education,NATIONAL COLLEGE FOR TEACHING & LEADERSHIP,04/07/2017,Grants,Operations Directorate,UNIVERSITY OF BRIGHTON,1041002299,200426.33,Grants to educational establishments or not for profit organisations including other businesses
Department for Education,DEPARTMENT FOR EDUCATION,12/07/2017,Grants,Free Schools Group,UNIVERSITY OF BRIGHTON ACADEMIES TRUST,1041003186,30000,Grants to educational establishments or not for profit organisations including other businesses
Department for Education,NATIONAL COLLEGE FOR TEACHING & LEADERSHIP,04/07/2017,Grants,Operations Directorate,UNIVERSITY OF BRISTOL,1041002144,257946.33,Grants to educational establishments or not for profit organisations including other businesses
Department for Education,NATIONAL COLLEGE FOR TEACHING & LEADERSHIP,04/07/2017,Grants,Operations Directorate,UNIVERSITY OF CAMBRIDGE,1041002478,273869.94,Grants to educational establishments or not for profit organisations including other businesses
Department for Education,DEPARTMENT FOR EDUCATION,25/07/2017,Grants,Accountability  Curriculum and Qualifications Group,UNIVERSITY OF CAMBRIDGE,1041004292,300000,Grants to educational establishments or not for profit organisations including other businesses
Department for Education,NATIONAL COLLEGE FOR TEACHING & LEADERSHIP,04/07/2017,Grants,Operations Directorate,UNIVERSITY OF CHESTER,1041002483,221305.76,Grants to educational establishments or not for profit organisations including other businesses
Department for Education,NATIONAL COLLEGE FOR TEACHING & LEADERSHIP,04/07/2017,Grants,Operations Directorate,UNIVERSITY OF CHICHESTER,1041002292,111790.28,Grants to educational establishments or not for profit organisations including other businesses
Department for Education,NATIONAL COLLEGE FOR TEACHING & LEADERSHIP,04/07/2017,Grants,Operations Directorate,UNIVERSITY OF CUMBRIA,1041002397,282562.94,Grants to educational establishments or not for profit organisations including other businesses
Department for Education,NATIONAL COLLEGE FOR TEACHING & LEADERSHIP,04/07/2017,Grants,Higher Education Strategy and Policy Group,UNIVERSITY OF DERBY,1041002374,40950,Grants to educational establishments or not for profit organisations including other businesses
Department for Education,NATIONAL COLLEGE FOR TEACHING & LEADERSHIP,04/07/2017,Grants,Operations Directorate,UNIVERSITY OF DERBY,1041002374,64263.16,Grants to educational establishments or not for profit organisations including other businesses
Department for Education,NATIONAL COLLEGE FOR TEACHING & LEADERSHIP,04/07/2017,Grants,Operations Directorate,UNIVERSITY OF DURHAM,1041002480,160942.26,Grants to educational establishments or not for profit organisations including other businesses
Department for Education,NATIONAL COLLEGE FOR TEACHING & LEADERSHIP,04/07/2017,Grants,Operations Directorate,UNIVERSITY OF EAST ANGLIA,1041002379,196364.18,Grants to educational establishments or not for profit organisations including other businesses
Department for Education,NATIONAL COLLEGE FOR TEACHING & LEADERSHIP,04/07/2017,Grants,Operations Directorate,UNIVERSITY OF EAST LONDON,1041002373,77617.97,Grants to educational establishments or not for profit organisations including other businesses
Department for Education,NATIONAL COLLEGE FOR TEACHING & LEADERSHIP,04/07/2017,Grants,Operations Directorate,UNIVERSITY OF EAST LONDON,1041002373,214725.09,Grants to educational establishments or not for profit organisations including other businesses
Department for Education,DEPARTMENT FOR EDUCATION,21/07/2017,Grants,Strategy and Social Mobility and Opportunity Areas Group,UNIVERSITY OF ESSEX,1041004034,25504.08,Grants to educational establishments or not for profit organisations including other businesses
Department for Education,NATIONAL COLLEGE FOR TEACHING & LEADERSHIP,04/07/2017,Grants,Operations Directorate,UNIVERSITY OF EXETER,1041002090,293205.76,Grants to educational establishments or not for profit organisations including other businesses
Department for Education,NATIONAL COLLEGE FOR TEACHING & LEADERSHIP,04/07/2017,Grants,Delivery Directorate,UNIVERSITY OF GLOUCESTERSHIRE,1041002372,38080,Grants to educational establishments or not for profit organisations including other businesses
Department for Education,NATIONAL COLLEGE FOR TEACHING & LEADERSHIP,04/07/2017,Grants,Operations Directorate,UNIVERSITY OF GLOUCESTERSHIRE,1041002372,51426.78,Grants to educational establishments or not for profit organisations including other businesses
Department for Education,NATIONAL COLLEGE FOR TEACHING & LEADERSHIP,04/07/2017,Grants,Operations Directorate,UNIVERSITY OF GREENWICH,1041002370,26404.33,Grants to educational establishments or not for profit organisations including other businesses
Department for Education,NATIONAL COLLEGE FOR TEACHING & LEADERSHIP,04/07/2017,Grants,Higher Education Strategy and Policy Group,UNIVERSITY OF GREENWICH,1041002370,43680,Grants to educational establishments or not for profit organisations including other businesses
Department for Education,NATIONAL COLLEGE FOR TEACHING & LEADERSHIP,04/07/2017,Grants,Operations Directorate,UNIVERSITY OF GREENWICH,1041002370,166304.29,Grants to educational establishments or not for profit organisations including other businesses
Department for Education,NATIONAL COLLEGE FOR TEACHING & LEADERSHIP,04/07/2017,Grants,Operations Directorate,UNIVERSITY OF HERTFORDSHIRE,1041002348,132669.72,Grants to educational establishments or not for profit organisations including other businesses
Department for Education,NATIONAL COLLEGE FOR TEACHING & LEADERSHIP,04/07/2017,Grants,Operations Directorate,UNIVERSITY OF HUDDERSFIELD,1041002095,84655.14,Grants to educational establishments or not for profit organisations including other businesses
Department for Education,NATIONAL COLLEGE FOR TEACHING & LEADERSHIP,04/07/2017,Grants,Operations Directorate,UNIVERSITY OF HULL,1041002346,25678.04,Grants to educational establishments or not for profit organisations including other businesses
Department for Education,NATIONAL COLLEGE FOR TEACHING & LEADERSHIP,04/07/2017,Grants,Operations Directorate,UNIVERSITY OF HULL,1041002346,199857.63,Grants to educational establishments or not for profit organisations including other businesses
Department for Education,NATIONAL COLLEGE FOR TEACHING & LEADERSHIP,04/07/2017,Grants,Operations Directorate,UNIVERSITY OF LEICESTER,1041002404,183527.8,Grants to educational establishments or not for profit organisations including other businesses
Department for Education,NATIONAL COLLEGE FOR TEACHING & LEADERSHIP,04/07/2017,Grants,Operations Directorate,UNIVERSITY OF NEWCASTLE UPON TYNE,1041002169,161673.45,Grants to educational establishments or not for profit organisations including other businesses
Department for Education,NATIONAL COLLEGE FOR TEACHING & LEADERSHIP,04/07/2017,Grants,Delivery Directorate,UNIVERSITY OF NORTHAMPTON,1041002088,34395.34,Grants to educational establishments or not for profit organisations including other businesses
Department for Education,NATIONAL COLLEGE FOR TEACHING & LEADERSHIP,04/07/2017,Grants,Operations Directorate,UNIVERSITY OF NORTHUMBRIA,1041002345,58819.89,Grants to educational establishments or not for profit organisations including other businesses
Department for Education,NATIONAL COLLEGE FOR TEACHING & LEADERSHIP,04/07/2017,Grants,Operations Directorate,UNIVERSITY OF NOTTINGHAM,1041002400,268345.42,Grants to educational establishments or not for profit organisations including other businesses
Department for Education,NATIONAL COLLEGE FOR TEACHING & LEADERSHIP,04/07/2017,Grants,Operations Directorate,UNIVERSITY OF OXFORD,1041002344,233329.72,Grants to educational establishments or not for profit organisations including other businesses
Department for Education,NATIONAL COLLEGE FOR TEACHING & LEADERSHIP,04/07/2017,Grants,Operations Directorate,UNIVERSITY OF PLYMOUTH,1041002375,43560.85,Grants to educational establishments or not for profit organisations including other businesses
Department for Education,NATIONAL COLLEGE FOR TEACHING & LEADERSHIP,04/07/2017,Grants,Operations Directorate,UNIVERSITY OF PORTSMOUTH,1041002432,154036.61,Grants to educational establishments or not for profit organisations including other businesses
Department for Education,NATIONAL COLLEGE FOR TEACHING & LEADERSHIP,04/07/2017,Grants,Operations Directorate,UNIVERSITY OF ROEHAMPTON,1041002414,131613.56,Grants to educational establishments or not for profit organisations including other businesses
Department for Education,NATIONAL COLLEGE FOR TEACHING & LEADERSHIP,04/07/2017,Grants,Operations Directorate,UNIVERSITY OF SHEFFIELD,1041002298,173209.94,Grants to educational establishments or not for profit organisations including other businesses
Department for Education,NATIONAL COLLEGE FOR TEACHING & LEADERSHIP,04/07/2017,Grants,Operations Directorate,UNIVERSITY OF SOUTHAMPTON,1041002140,26299.94,Grants to educational establishments or not for profit organisations including other businesses
Department for Education,NATIONAL COLLEGE FOR TEACHING & LEADERSHIP,04/07/2017,Grants,Operations Directorate,UNIVERSITY OF SOUTHAMPTON,1041002140,234962.7,Grants to educational establishments or not for profit organisations including other businesses
Department for Education,NATIONAL COLLEGE FOR TEACHING & LEADERSHIP,04/07/2017,Grants,Operations Directorate,UNIVERSITY OF SUNDERLAND,1041002319,161917.18,Grants to educational establishments or not for profit organisations including other businesses
Department for Education,NATIONAL COLLEGE FOR TEACHING & LEADERSHIP,04/07/2017,Grants,Delivery Directorate,UNIVERSITY OF SUSSEX,1041002318,38167.02,Grants to educational establishments or not for profit organisations including other businesses
Department for Education,NATIONAL COLLEGE FOR TEACHING & LEADERSHIP,04/07/2017,Grants,Operations Directorate,UNIVERSITY OF SUSSEX,1041002318,277200.9,Grants to educational establishments or not for profit organisations including other businesses
Department for Education,NATIONAL COLLEGE FOR TEACHING & LEADERSHIP,04/07/2017,Grants,Operations Directorate,UNIVERSITY OF SUSSEX,1041002318,391759.6,Grants to educational establishments or not for profit organisations including other businesses
Department for Education,NATIONAL COLLEGE FOR TEACHING & LEADERSHIP,04/07/2017,Grants,Operations Directorate,UNIVERSITY OF THE WEST OF ENGLAND,1041002091,181496.72,Grants to educational establishments or not for profit organisations including other businesses
Department for Education,NATIONAL COLLEGE FOR TEACHING & LEADERSHIP,04/07/2017,Grants,Operations Directorate,UNIVERSITY OF WARWICK,1041002158,206925.76,Grants to educational establishments or not for profit organisations including other businesses
Department for Education,NATIONAL COLLEGE FOR TEACHING & LEADERSHIP,04/07/2017,Grants,Operations Directorate,UNIVERSITY OF WINCHESTER,1041002456,34447.01,Grants to educational establishments or not for profit organisations including other businesses
Department for Education,NATIONAL COLLEGE FOR TEACHING & LEADERSHIP,04/07/2017,Grants,Operations Directorate,UNIVERSITY OF WOLVERHAMPTON,1041002403,172803.73,Grants to educational establishments or not for profit organisations including other businesses
Department for Education,NATIONAL COLLEGE FOR TEACHING & LEADERSHIP,04/07/2017,Grants,Operations Directorate,UNIVERSITY OF WORCESTER,1041002317,48800,Grants to educational establishments or not for profit organisations including other businesses
Department for Education,NATIONAL COLLEGE FOR TEACHING & LEADERSHIP,04/07/2017,Grants,Operations Directorate,UNIVERSITY OF WORCESTER,1041002317,180278.08,Grants to educational establishments or not for profit organisations including other businesses
Department for Education,NATIONAL COLLEGE FOR TEACHING & LEADERSHIP,04/07/2017,Grants,Operations Directorate,UNIVERSITY OF YORK,1041002294,168741.58,Grants to educational establishments or not for profit organisations including other businesses
Department for Education,DEPARTMENT FOR EDUCATION,12/07/2017,Grants,Free Schools Group,VALLEY INVICTA ACADEMIES TRUST,1041003002,30000,Grants to educational establishments or not for profit organisations including other businesses
Department for Education,DEPARTMENT FOR EDUCATION,31/07/2017,Various,Various,Various,Various,4734728711,The total redacted transactions  including funding payment to Education and Skills Funding Agency. See Technical Notes for further information.
Department for Education,DEPARTMENT FOR EDUCATION,04/07/2017,Grants,Academies Regional Delivery Group,VICTORIA ACADEMIES TRUST,1041002261,70000,Grants to local authorities and educational establishments
Department for Education,DEPARTMENT FOR EDUCATION,10/07/2017,Grants,Academies Regional Delivery Group,VISION MULTI ACADEMY TRUST,1041002832,25000,Grants to local authorities and educational establishments
Department for Education,DEPARTMENT FOR EDUCATION,10/07/2017,Grants,Academies Regional Delivery Group,VISION MULTI ACADEMY TRUST,1041002832,25000,Grants to local authorities and educational establishments
Department for Education,DEPARTMENT FOR EDUCATION,10/07/2017,Grants,Academies Regional Delivery Group,VISION MULTI ACADEMY TRUST,1041002832,25000,Grants to local authorities and educational establishments
Department for Education,DEPARTMENT FOR EDUCATION,17/07/2017,ICT,Families Group,VODAFONE CORPORATE,1041003479,-4.19,Telecoms facilities and services - mobiles and pagers
Department for Education,DEPARTMENT FOR EDUCATION,17/07/2017,ICT,Families Group,VODAFONE CORPORATE,1041003479,-4.19,Telecoms facilities and services - mobiles and pagers
Department for Education,DEPARTMENT FOR EDUCATION,17/07/2017,ICT,Families Group,VODAFONE CORPORATE,1041003479,-3.23,Telecoms facilities and services - mobiles and pagers
Department for Education,DEPARTMENT FOR EDUCATION,17/07/2017,ICT,Families Group,VODAFONE CORPORATE,1041003479,-3.23,Telecoms facilities and services - mobiles and pagers
Department for Education,DEPARTMENT FOR EDUCATION,17/07/2017,ICT,Families Group,VODAFONE CORPORATE,1041003479,-2.26,Telecoms facilities and services - mobiles and pagers
Department for Education,DEPARTMENT FOR EDUCATION,17/07/2017,ICT,Families Group,VODAFONE CORPORATE,1041003479,-2.26,Telecoms facilities and services - mobiles and pagers
Department for Education,DEPARTMENT FOR EDUCATION,17/07/2017,ICT,Families Group,VODAFONE CORPORATE,1041003479,0.17,Telecoms facilities and services - mobiles and pagers
Department for Education,DEPARTMENT FOR EDUCATION,17/07/2017,ICT,Families Group,VODAFONE CORPORATE,1041003479,0.3,Telecoms facilities and services - mobiles and pagers
Department for Education,DEPARTMENT FOR EDUCATION,17/07/2017,ICT,Families Group,VODAFONE CORPORATE,1041003479,0.3,Telecoms facilities and services - mobiles and pagers
Department for Education,DEPARTMENT FOR EDUCATION,14/07/2017,ICT,Digital and Technology Group,VODAFONE CORPORATE,1041003410,0.32,Telecoms facilities and services - mobiles and pagers
Department for Education,DEPARTMENT FOR EDUCATION,17/07/2017,ICT,Families Group,VODAFONE CORPORATE,1041003479,0.33,Telecoms facilities and services - mobiles and pagers
Department for Education,DEPARTMENT FOR EDUCATION,17/07/2017,ICT,Families Group,VODAFONE CORPORATE,1041003479,0.33,Telecoms facilities and services - mobiles and pagers
Department for Education,DEPARTMENT FOR EDUCATION,17/07/2017,ICT,Families Group,VODAFONE CORPORATE,1041003479,0.33,Telecoms facilities and services - mobiles and pagers
Department for Education,DEPARTMENT FOR EDUCATION,17/07/2017,ICT,Families Group,VODAFONE CORPORATE,1041003479,0.33,Telecoms facilities and services - mobiles and pagers
Department for Education,DEPARTMENT FOR EDUCATION,17/07/2017,ICT,Families Group,VODAFONE CORPORATE,1041003479,0.33,Telecoms facilities and services - mobiles and pagers
Department for Education,DEPARTMENT FOR EDUCATION,17/07/2017,ICT,Families Group,VODAFONE CORPORATE,1041003479,0.33,Telecoms facilities and services - mobiles and pagers
Department for Education,DEPARTMENT FOR EDUCATION,17/07/2017,ICT,Families Group,VODAFONE CORPORATE,1041003479,0.33,Telecoms facilities and services - mobiles and pagers
Department for Education,DEPARTMENT FOR EDUCATION,17/07/2017,ICT,Families Group,VODAFONE CORPORATE,1041003479,0.33,Telecoms facilities and services - mobiles and pagers
Department for Education,DEPARTMENT FOR EDUCATION,17/07/2017,ICT,Families Group,VODAFONE CORPORATE,1041003479,0.33,Telecoms facilities and services - mobiles and pagers
Department for Education,DEPARTMENT FOR EDUCATION,17/07/2017,ICT,Families Group,VODAFONE CORPORATE,1041003479,0.33,Telecoms facilities and services - mobiles and pagers
Department for Education,DEPARTMENT FOR EDUCATION,17/07/2017,ICT,Families Group,VODAFONE CORPORATE,1041003479,0.33,Telecoms facilities and services - mobiles and pagers
Department for Education,DEPARTMENT FOR EDUCATION,17/07/2017,ICT,Families Group,VODAFONE CORPORATE,1041003479,0.33,Telecoms facilities and services - mobiles and pagers
Department for Education,DEPARTMENT FOR EDUCATION,17/07/2017,ICT,Families Group,VODAFONE CORPORATE,1041003479,0.33,Telecoms facilities and services - mobiles and pagers
Department for Education,DEPARTMENT FOR EDUCATION,17/07/2017,ICT,Families Group,VODAFONE CORPORATE,1041003479,0.33,Telecoms facilities and services - mobiles and pagers
Department for Education,DEPARTMENT FOR EDUCATION,17/07/2017,ICT,Families Group,VODAFONE CORPORATE,1041003479,0.33,Telecoms facilities and services - mobiles and pagers
Department for Education,DEPARTMENT FOR EDUCATION,17/07/2017,ICT,Families Group,VODAFONE CORPORATE,1041003479,0.33,Telecoms facilities and services - mobiles and pagers
Department for Education,DEPARTMENT FOR EDUCATION,17/07/2017,ICT,Families Group,VODAFONE CORPORATE,1041003479,0.33,Telecoms facilities and services - mobiles and pagers
Department for Education,DEPARTMENT FOR EDUCATION,17/07/2017,ICT,Families Group,VODAFONE CORPORATE,1041003479,0.33,Telecoms facilities and services - mobiles and pagers
Department for Education,DEPARTMENT FOR EDUCATION,17/07/2017,ICT,Families Group,VODAFONE CORPORATE,1041003479,0.33,Telecoms facilities and services - mobiles and pagers
Department for Education,DEPARTMENT FOR EDUCATION,17/07/2017,ICT,Families Group,VODAFONE CORPORATE,1041003479,0.33,Telecoms facilities and services - mobiles and pagers
Department for Education,DEPARTMENT FOR EDUCATION,17/07/2017,ICT,Families Group,VODAFONE CORPORATE,1041003479,0.33,Telecoms facilities and services - mobiles and pagers
Department for Education,DEPARTMENT FOR EDUCATION,17/07/2017,ICT,Families Group,VODAFONE CORPORATE,1041003479,0.33,Telecoms facilities and services - mobiles and pagers
Department for Education,DEPARTMENT FOR EDUCATION,17/07/2017,ICT,Families Group,VODAFONE CORPORATE,1041003479,0.33,Telecoms facilities and services - mobiles and pagers
Department for Education,DEPARTMENT FOR EDUCATION,17/07/2017,ICT,Families Group,VODAFONE CORPORATE,1041003479,0.33,Telecoms facilities and services - mobiles and pagers
Department for Education,DEPARTMENT FOR EDUCATION,17/07/2017,ICT,Families Group,VODAFONE CORPORATE,1041003479,0.33,Telecoms facilities and services - mobiles and pagers
Department for Education,DEPARTMENT FOR EDUCATION,17/07/2017,ICT,Families Group,VODAFONE CORPORATE,1041003479,0.33,Telecoms facilities and services - mobiles and pagers
Department for Education,DEPARTMENT FOR EDUCATION,17/07/2017,ICT,Families Group,VODAFONE CORPORATE,1041003479,0.33,Telecoms facilities and services - mobiles and pagers
Department for Education,DEPARTMENT FOR EDUCATION,17/07/2017,ICT,Families Group,VODAFONE CORPORATE,1041003479,0.33,Telecoms facilities and services - mobiles and pagers
Department for Education,DEPARTMENT FOR EDUCATION,17/07/2017,ICT,Families Group,VODAFONE CORPORATE,1041003479,0.33,Telecoms facilities and services - mobiles and pagers
Department for Education,DEPARTMENT FOR EDUCATION,17/07/2017,ICT,Families Group,VODAFONE CORPORATE,1041003479,0.33,Telecoms facilities and services - mobiles and pagers
Department for Education,DEPARTMENT FOR EDUCATION,17/07/2017,ICT,Families Group,VODAFONE CORPORATE,1041003479,0.33,Telecoms facilities and services - mobiles and pagers
Department for Education,DEPARTMENT FOR EDUCATION,17/07/2017,ICT,Families Group,VODAFONE CORPORATE,1041003479,0.33,Telecoms facilities and services - mobiles and pagers
Department for Education,DEPARTMENT FOR EDUCATION,17/07/2017,ICT,Families Group,VODAFONE CORPORATE,1041003479,0.33,Telecoms facilities and services - mobiles and pagers
Department for Education,DEPARTMENT FOR EDUCATION,17/07/2017,ICT,Families Group,VODAFONE CORPORATE,1041003479,0.33,Telecoms facilities and services - mobiles and pagers
Department for Education,DEPARTMENT FOR EDUCATION,17/07/2017,ICT,Families Group,VODAFONE CORPORATE,1041003479,0.33,Telecoms facilities and services - mobiles and pagers
Department for Education,DEPARTMENT FOR EDUCATION,17/07/2017,ICT,Families Group,VODAFONE CORPORATE,1041003479,0.33,Telecoms facilities and services - mobiles and pagers
Department for Education,DEPARTMENT FOR EDUCATION,17/07/2017,ICT,Families Group,VODAFONE CORPORATE,1041003479,0.33,Telecoms facilities and services - mobiles and pagers
Department for Education,DEPARTMENT FOR EDUCATION,17/07/2017,ICT,Families Group,VODAFONE CORPORATE,1041003479,0.33,Telecoms facilities and services - mobiles and pagers
Department for Education,DEPARTMENT FOR EDUCATION,17/07/2017,ICT,Families Group,VODAFONE CORPORATE,1041003479,0.33,Telecoms facilities and services - mobiles and pagers
Department for Education,DEPARTMENT FOR EDUCATION,17/07/2017,ICT,Families Group,VODAFONE CORPORATE,1041003479,0.33,Telecoms facilities and services - mobiles and pagers
Department for Education,DEPARTMENT FOR EDUCATION,17/07/2017,ICT,Families Group,VODAFONE CORPORATE,1041003479,0.33,Telecoms facilities and services - mobiles and pagers
Department for Education,DEPARTMENT FOR EDUCATION,17/07/2017,ICT,Families Group,VODAFONE CORPORATE,1041003479,0.33,Telecoms facilities and services - mobiles and pagers
Department for Education,DEPARTMENT FOR EDUCATION,17/07/2017,ICT,Families Group,VODAFONE CORPORATE,1041003479,0.33,Telecoms facilities and services - mobiles and pagers
Department for Education,DEPARTMENT FOR EDUCATION,17/07/2017,ICT,Families Group,VODAFONE CORPORATE,1041003479,0.33,Telecoms facilities and services - mobiles and pagers
Department for Education,DEPARTMENT FOR EDUCATION,17/07/2017,ICT,Families Group,VODAFONE CORPORATE,1041003479,0.33,Telecoms facilities and services - mobiles and pagers
Department for Education,DEPARTMENT FOR EDUCATION,17/07/2017,ICT,Families Group,VODAFONE CORPORATE,1041003479,0.33,Telecoms facilities and services - mobiles and pagers
Department for Education,DEPARTMENT FOR EDUCATION,17/07/2017,ICT,Families Group,VODAFONE CORPORATE,1041003479,0.33,Telecoms facilities and services - mobiles and pagers
Department for Education,DEPARTMENT FOR EDUCATION,17/07/2017,ICT,Families Group,VODAFONE CORPORATE,1041003479,0.33,Telecoms facilities and services - mobiles and pagers
Department for Education,DEPARTMENT FOR EDUCATION,17/07/2017,ICT,Families Group,VODAFONE CORPORATE,1041003479,0.33,Telecoms facilities and services - mobiles and pagers
Department for Education,DEPARTMENT FOR EDUCATION,17/07/2017,ICT,Families Group,VODAFONE CORPORATE,1041003479,0.33,Telecoms facilities and services - mobiles and pagers
Department for Education,DEPARTMENT FOR EDUCATION,17/07/2017,ICT,Families Group,VODAFONE CORPORATE,1041003479,0.33,Telecoms facilities and services - mobiles and pagers
Department for Education,DEPARTMENT FOR EDUCATION,17/07/2017,ICT,Families Group,VODAFONE CORPORATE,1041003479,0.33,Telecoms facilities and services - mobiles and pagers
Department for Education,DEPARTMENT FOR EDUCATION,17/07/2017,ICT,Families Group,VODAFONE CORPORATE,1041003479,0.33,Telecoms facilities and services - mobiles and pagers
Department for Education,DEPARTMENT FOR EDUCATION,17/07/2017,ICT,Families Group,VODAFONE CORPORATE,1041003479,0.33,Telecoms facilities and services - mobiles and pagers
Department for Education,DEPARTMENT FOR EDUCATION,17/07/2017,ICT,Families Group,VODAFONE CORPORATE,1041003479,0.33,Telecoms facilities and services - mobiles and pagers
Department for Education,DEPARTMENT FOR EDUCATION,17/07/2017,ICT,Families Group,VODAFONE CORPORATE,1041003479,0.33,Telecoms facilities and services - mobiles and pagers
Department for Education,DEPARTMENT FOR EDUCATION,17/07/2017,ICT,Families Group,VODAFONE CORPORATE,1041003479,0.33,Telecoms facilities and services - mobiles and pagers
Department for Education,DEPARTMENT FOR EDUCATION,17/07/2017,ICT,Families Group,VODAFONE CORPORATE,1041003479,0.33,Telecoms facilities and services - mobiles and pagers
Department for Education,DEPARTMENT FOR EDUCATION,17/07/2017,ICT,Families Group,VODAFONE CORPORATE,1041003479,0.33,Telecoms facilities and services - mobiles and pagers
Department for Education,DEPARTMENT FOR EDUCATION,17/07/2017,ICT,Families Group,VODAFONE CORPORATE,1041003479,0.33,Telecoms facilities and services - mobiles and pagers
Department for Education,DEPARTMENT FOR EDUCATION,17/07/2017,ICT,Families Group,VODAFONE CORPORATE,1041003479,0.33,Telecoms facilities and services - mobiles and pagers
Department for Education,DEPARTMENT FOR EDUCATION,17/07/2017,ICT,Families Group,VODAFONE CORPORATE,1041003479,0.33,Telecoms facilities and services - mobiles and pagers
Department for Education,DEPARTMENT FOR EDUCATION,17/07/2017,ICT,Families Group,VODAFONE CORPORATE,1041003479,0.33,Telecoms facilities and services - mobiles and pagers
Department for Education,DEPARTMENT FOR EDUCATION,17/07/2017,ICT,Families Group,VODAFONE CORPORATE,1041003479,0.33,Telecoms facilities and services - mobiles and pagers
Department for Education,DEPARTMENT FOR EDUCATION,17/07/2017,ICT,Families Group,VODAFONE CORPORATE,1041003479,0.33,Telecoms facilities and services - mobiles and pagers
Department for Education,DEPARTMENT FOR EDUCATION,17/07/2017,ICT,Families Group,VODAFONE CORPORATE,1041003479,0.33,Telecoms facilities and services - mobiles and pagers
Department for Education,DEPARTMENT FOR EDUCATION,17/07/2017,ICT,Families Group,VODAFONE CORPORATE,1041003479,0.33,Telecoms facilities and services - mobiles and pagers
Department for Education,DEPARTMENT FOR EDUCATION,17/07/2017,ICT,Families Group,VODAFONE CORPORATE,1041003479,0.33,Telecoms facilities and services - mobiles and pagers
Department for Education,DEPARTMENT FOR EDUCATION,17/07/2017,ICT,Families Group,VODAFONE CORPORATE,1041003479,0.33,Telecoms facilities and services - mobiles and pagers
Department for Education,DEPARTMENT FOR EDUCATION,17/07/2017,ICT,Families Group,VODAFONE CORPORATE,1041003479,0.33,Telecoms facilities and services - mobiles and pagers
Department for Education,DEPARTMENT FOR EDUCATION,17/07/2017,ICT,Families Group,VODAFONE CORPORATE,1041003479,0.33,Telecoms facilities and services - mobiles and pagers
Department for Education,DEPARTMENT FOR EDUCATION,17/07/2017,ICT,Families Group,VODAFONE CORPORATE,1041003479,0.33,Telecoms facilities and services - mobiles and pagers
Department for Education,DEPARTMENT FOR EDUCATION,17/07/2017,ICT,Families Group,VODAFONE CORPORATE,1041003479,0.33,Telecoms facilities and services - mobiles and pagers
Department for Education,DEPARTMENT FOR EDUCATION,17/07/2017,ICT,Families Group,VODAFONE CORPORATE,1041003479,0.33,Telecoms facilities and services - mobiles and pagers
Department for Education,DEPARTMENT FOR EDUCATION,17/07/2017,ICT,Families Group,VODAFONE CORPORATE,1041003479,0.33,Telecoms facilities and services - mobiles and pagers
Department for Education,DEPARTMENT FOR EDUCATION,17/07/2017,ICT,Families Group,VODAFONE CORPORATE,1041003479,0.33,Telecoms facilities and services - mobiles and pagers
Department for Education,DEPARTMENT FOR EDUCATION,17/07/2017,ICT,Families Group,VODAFONE CORPORATE,1041003479,0.33,Telecoms facilities and services - mobiles and pagers
Department for Education,DEPARTMENT FOR EDUCATION,17/07/2017,ICT,Families Group,VODAFONE CORPORATE,1041003479,0.33,Telecoms facilities and services - mobiles and pagers
Department for Education,DEPARTMENT FOR EDUCATION,17/07/2017,ICT,Families Group,VODAFONE CORPORATE,1041003479,0.33,Telecoms facilities and services - mobiles and pagers
Department for Education,DEPARTMENT FOR EDUCATION,17/07/2017,ICT,Families Group,VODAFONE CORPORATE,1041003479,0.33,Telecoms facilities and services - mobiles and pagers
Department for Education,DEPARTMENT FOR EDUCATION,17/07/2017,ICT,Families Group,VODAFONE CORPORATE,1041003479,0.33,Telecoms facilities and services - mobiles and pagers
Department for Education,DEPARTMENT FOR EDUCATION,17/07/2017,ICT,Families Group,VODAFONE CORPORATE,1041003479,0.33,Telecoms facilities and services - mobiles and pagers
Department for Education,DEPARTMENT FOR EDUCATION,17/07/2017,ICT,Families Group,VODAFONE CORPORATE,1041003479,0.33,Telecoms facilities and services - mobiles and pagers
Department for Education,DEPARTMENT FOR EDUCATION,17/07/2017,ICT,Families Group,VODAFONE CORPORATE,1041003479,0.33,Telecoms facilities and services - mobiles and pagers
Department for Education,DEPARTMENT FOR EDUCATION,17/07/2017,ICT,Families Group,VODAFONE CORPORATE,1041003479,0.33,Telecoms facilities and services - mobiles and pagers
Department for Education,DEPARTMENT FOR EDUCATION,17/07/2017,ICT,Families Group,VODAFONE CORPORATE,1041003479,0.33,Telecoms facilities and services - mobiles and pagers
Department for Education,DEPARTMENT FOR EDUCATION,17/07/2017,ICT,Families Group,VODAFONE CORPORATE,1041003479,0.33,Telecoms facilities and services - mobiles and pagers
Department for Education,DEPARTMENT FOR EDUCATION,17/07/2017,ICT,Families Group,VODAFONE CORPORATE,1041003479,0.33,Telecoms facilities and services - mobiles and pagers
Department for Education,DEPARTMENT FOR EDUCATION,17/07/2017,ICT,Families Group,VODAFONE CORPORATE,1041003479,0.33,Telecoms facilities and services - mobiles and pagers
Department for Education,DEPARTMENT FOR EDUCATION,17/07/2017,ICT,Families Group,VODAFONE CORPORATE,1041003479,0.33,Telecoms facilities and services - mobiles and pagers
Department for Education,DEPARTMENT FOR EDUCATION,17/07/2017,ICT,Families Group,VODAFONE CORPORATE,1041003479,0.33,Telecoms facilities and services - mobiles and pagers
Department for Education,DEPARTMENT FOR EDUCATION,17/07/2017,ICT,Families Group,VODAFONE CORPORATE,1041003479,0.33,Telecoms facilities and services - mobiles and pagers
Department for Education,DEPARTMENT FOR EDUCATION,17/07/2017,ICT,Families Group,VODAFONE CORPORATE,1041003479,0.33,Telecoms facilities and services - mobiles and pagers
Department for Education,DEPARTMENT FOR EDUCATION,17/07/2017,ICT,Families Group,VODAFONE CORPORATE,1041003479,0.33,Telecoms facilities and services - mobiles and pagers
Department for Education,DEPARTMENT FOR EDUCATION,17/07/2017,ICT,Families Group,VODAFONE CORPORATE,1041003479,0.33,Telecoms facilities and services - mobiles and pagers
Department for Education,DEPARTMENT FOR EDUCATION,17/07/2017,ICT,Families Group,VODAFONE CORPORATE,1041003479,0.33,Telecoms facilities and services - mobiles and pagers
Department for Education,DEPARTMENT FOR EDUCATION,17/07/2017,ICT,Families Group,VODAFONE CORPORATE,1041003479,0.33,Telecoms facilities and services - mobiles and pagers
Department for Education,DEPARTMENT FOR EDUCATION,17/07/2017,ICT,Families Group,VODAFONE CORPORATE,1041003479,0.33,Telecoms facilities and services - mobiles and pagers
Department for Education,DEPARTMENT FOR EDUCATION,17/07/2017,ICT,Families Group,VODAFONE CORPORATE,1041003479,0.33,Telecoms facilities and services - mobiles and pagers
Department for Education,DEPARTMENT FOR EDUCATION,17/07/2017,ICT,Families Group,VODAFONE CORPORATE,1041003479,0.33,Telecoms facilities and services - mobiles and pagers
Department for Education,DEPARTMENT FOR EDUCATION,17/07/2017,ICT,Families Group,VODAFONE CORPORATE,1041003479,0.33,Telecoms facilities and services - mobiles and pagers
Department for Education,DEPARTMENT FOR EDUCATION,17/07/2017,ICT,Families Group,VODAFONE CORPORATE,1041003479,0.33,Telecoms facilities and services - mobiles and pagers
Department for Education,DEPARTMENT FOR EDUCATION,17/07/2017,ICT,Families Group,VODAFONE CORPORATE,1041003479,0.33,Telecoms facilities and services - mobiles and pagers
Department for Education,DEPARTMENT FOR EDUCATION,17/07/2017,ICT,Families Group,VODAFONE CORPORATE,1041003479,0.33,Telecoms facilities and services - mobiles and pagers
Department for Education,DEPARTMENT FOR EDUCATION,17/07/2017,ICT,Families Group,VODAFONE CORPORATE,1041003479,0.33,Telecoms facilities and services - mobiles and pagers
Department for Education,DEPARTMENT FOR EDUCATION,17/07/2017,ICT,Families Group,VODAFONE CORPORATE,1041003479,0.33,Telecoms facilities and services - mobiles and pagers
Department for Education,DEPARTMENT FOR EDUCATION,17/07/2017,ICT,Families Group,VODAFONE CORPORATE,1041003479,0.33,Telecoms facilities and services - mobiles and pagers
Department for Education,DEPARTMENT FOR EDUCATION,17/07/2017,ICT,Families Group,VODAFONE CORPORATE,1041003479,0.33,Telecoms facilities and services - mobiles and pagers
Department for Education,DEPARTMENT FOR EDUCATION,17/07/2017,ICT,Families Group,VODAFONE CORPORATE,1041003479,0.33,Telecoms facilities and services - mobiles and pagers
Department for Education,DEPARTMENT FOR EDUCATION,17/07/2017,ICT,Families Group,VODAFONE CORPORATE,1041003479,0.33,Telecoms facilities and services - mobiles and pagers
Department for Education,DEPARTMENT FOR EDUCATION,17/07/2017,ICT,Families Group,VODAFONE CORPORATE,1041003479,0.33,Telecoms facilities and services - mobiles and pagers
Department for Education,DEPARTMENT FOR EDUCATION,17/07/2017,ICT,Families Group,VODAFONE CORPORATE,1041003479,0.33,Telecoms facilities and services - mobiles and pagers
Department for Education,DEPARTMENT FOR EDUCATION,17/07/2017,ICT,Families Group,VODAFONE CORPORATE,1041003479,0.33,Telecoms facilities and services - mobiles and pagers
Department for Education,DEPARTMENT FOR EDUCATION,17/07/2017,ICT,Families Group,VODAFONE CORPORATE,1041003479,0.33,Telecoms facilities and services - mobiles and pagers
Department for Education,DEPARTMENT FOR EDUCATION,17/07/2017,ICT,Families Group,VODAFONE CORPORATE,1041003479,0.33,Telecoms facilities and services - mobiles and pagers
Department for Education,DEPARTMENT FOR EDUCATION,17/07/2017,ICT,Families Group,VODAFONE CORPORATE,1041003479,0.33,Telecoms facilities and services - mobiles and pagers
Department for Education,DEPARTMENT FOR EDUCATION,17/07/2017,ICT,Families Group,VODAFONE CORPORATE,1041003479,0.33,Telecoms facilities and services - mobiles and pagers
Department for Education,DEPARTMENT FOR EDUCATION,17/07/2017,ICT,Families Group,VODAFONE CORPORATE,1041003479,0.33,Telecoms facilities and services - mobiles and pagers
Department for Education,DEPARTMENT FOR EDUCATION,17/07/2017,ICT,Families Group,VODAFONE CORPORATE,1041003479,0.33,Telecoms facilities and services - mobiles and pagers
Department for Education,DEPARTMENT FOR EDUCATION,17/07/2017,ICT,Families Group,VODAFONE CORPORATE,1041003479,0.33,Telecoms facilities and services - mobiles and pagers
Department for Education,DEPARTMENT FOR EDUCATION,17/07/2017,ICT,Families Group,VODAFONE CORPORATE,1041003479,0.33,Telecoms facilities and services - mobiles and pagers
Department for Education,DEPARTMENT FOR EDUCATION,17/07/2017,ICT,Families Group,VODAFONE CORPORATE,1041003479,0.33,Telecoms facilities and services - mobiles and pagers
Department for Education,DEPARTMENT FOR EDUCATION,17/07/2017,ICT,Families Group,VODAFONE CORPORATE,1041003479,0.33,Telecoms facilities and services - mobiles and pagers
Department for Education,DEPARTMENT FOR EDUCATION,17/07/2017,ICT,Families Group,VODAFONE CORPORATE,1041003479,0.33,Telecoms facilities and services - mobiles and pagers
Department for Education,DEPARTMENT FOR EDUCATION,17/07/2017,ICT,Families Group,VODAFONE CORPORATE,1041003479,0.33,Telecoms facilities and services - mobiles and pagers
Department for Education,DEPARTMENT FOR EDUCATION,17/07/2017,ICT,Families Group,VODAFONE CORPORATE,1041003479,0.33,Telecoms facilities and services - mobiles and pagers
Department for Education,DEPARTMENT FOR EDUCATION,17/07/2017,ICT,Families Group,VODAFONE CORPORATE,1041003479,0.33,Telecoms facilities and services - mobiles and pagers
Department for Education,DEPARTMENT FOR EDUCATION,17/07/2017,ICT,Families Group,VODAFONE CORPORATE,1041003479,0.33,Telecoms facilities and services - mobiles and pagers
Department for Education,DEPARTMENT FOR EDUCATION,17/07/2017,ICT,Families Group,VODAFONE CORPORATE,1041003479,0.33,Telecoms facilities and services - mobiles and pagers
Department for Education,DEPARTMENT FOR EDUCATION,17/07/2017,ICT,Families Group,VODAFONE CORPORATE,1041003479,0.33,Telecoms facilities and services - mobiles and pagers
Department for Education,DEPARTMENT FOR EDUCATION,17/07/2017,ICT,Families Group,VODAFONE CORPORATE,1041003479,0.33,Telecoms facilities and services - mobiles and pagers
Department for Education,DEPARTMENT FOR EDUCATION,17/07/2017,ICT,Families Group,VODAFONE CORPORATE,1041003479,0.33,Telecoms facilities and services - mobiles and pagers
